Workbook

Sheet DATABASE
A1: Anni | B1: TAV | C1: Altezza | D1: Peso | E1: BSA | F1: BMI | G1: Systolic pressure | H1: Diastolic pressure | I1: Heart rate | J1: Ipertensione | K1: bpco | L1: Diabete | M1: Fumo | N1: Dislipidemia | O1: Insufficienza renale | P1: Cardiopatia Ischemica | Q1: ICD/PM | R1: Cardiomiopatia | S1: Angina instabile/IMA | T1: FA | U1: TIA | V1: ictus | W1: ENCEFALOPATIA VASCOLARE | X1: ASA | Y1: statine | Z1: anticoagulanti | AA1: antiaggreganti | AB1: Beta bloccanti | AC1: alfa bloccante | AD1: ACE inib./ Sartano | AE1: Diuretico | AF1: Calcio antag. | AG1: Digossina | AH1: Volume TD (ml) | AI1: Volume TS (ml) | AJ1: Stroke volume | AK1: Cardiac Output | AL1: Mean arterial pressure | AM1: Dtd | AN1: Dts | AO1: SIV | AP1: PP | AQ1: Diametro antero posteriore atrio | AR1: Area atrio sn | AS1: DIAMETRO BULBO | AT1: DIAMETRO ANULUS | AU1: DIAMETRO GIUNZIONE SENO TUBULARE | AV1: DIAMETRO AORTA ASCENDENTE | AW1: DIAMETRO AORTA ASCENDENTE INDICIZZATO | AX1: variazione nell'anno del diametro aorta ascendente non indicizzato | AY1: DIAMETRO ARCO AORTICO | AZ1: TAPSE | BA1: E | BB1: A | BC1: DECELERATION TIME | BD1: IM | BE1: E' | BF1: V. transv aortica | BG1: Gradiente Max | BH1: Gradiente Medio | BI1: STENOSI AORTICA | BJ1: IA | BK1: IT | BL1: IT Regurgitation | BM1: PAPS | BN1: hsamiR100000437 | BO1: hsamiR1000385 | BP1: hsamiR101000438 | BQ1: hsamiR10a000387 | BR1: hsamiR124a000446 | BS1: hsamiR125a3p002199 | BT1: hsamiR125b000449 | BU1: hsamiR126000450 | BV1: hsamiR133a000458 | BW1: hsamiR143002249 | BX1: hsamiR145000467 | BY1: hsamiR146a000468 | BZ1: hsamiR155002287 | CA1: hsamiR155002623 | CB1: hsamiR15b000390 | CC1: hsamiR16000391 | CD1: hsamiR181a000480 | CE1: hsamiR18b001009 | CF1: hsamiR195000494 | CG1: hsamiR199a000498 | CH1: hsamiR204000508 | CI1: hsamiR208000511 | CJ1: hsamiR208b002290 | CK1: hsamiR21000397 | CL1: hsamiR214002306 | CM1: hsamiR217002337 | CN1: hsamiR221000524 | CO1: hsamiR222002276 | CP1: hsamiR223002295 | CQ1: hsamiR24000402 | CR1: hsamiR26a000404 | CS1: hsamiR29a000412 | CT1: hsamiR29b000413 | CU1: hsamiR30b000602 | CV1: hsamiR320000536 | CW1: hsamiR34a000425 | CX1: hsamiR34a000426 | CY1: hsamiR4235p002340 | CZ1: hsamiR494002365 | DA1: hsamiR499001045 | DB1: hsamiR503001048 | DC1: hsamiR92a000431 | DD1: hsamiR96000434 | DE1: NA4343438BLANK | DF1: U6snRNA001973 | DG1: MMP-2 | DH1: MMP-3 | DI1: MMP-9 | DJ1: TIMP-1 | DK1: TIMP-2 | DL1: TIMP-3 | DM1: TIMP-4 | DN1: s-rage | DO1: Tgf-b | DP1: Type | DQ1: Type | DR1: MAP (mmHg) | DS1: SV (ml) | DT1: CO (ml/min) | DU1: Dasc (mm) | DV1: Dasc (mm) | DW1: Angle Sagi (deg) | DX1: Angle Axial (deg) | DY1: curvat (1/mm) | DZ1: tort | EA1: Psmod(kPa)
A2: 71.73150685 | B2: 1 | C2: 170 | D2: 72 | E2: =SQRT((C2*D2)/3600) -> 1.843908891 | F2: =(D2/POWER(C2,2))*10000 -> 24.91349481 | G2: 130 | H2: 78 | I2: 60 | J2: 1 | K2: 0 | L2: 0 | M2: 0 | N2: 0 | O2: 0 | P2: 0 | Q2: 0 | R2: 0 | S2: 0 | T2: 0 | U2: 0 | V2: 0 | W2: 0 | X2: 1 | Y2: 0 | Z2: 0 | AA2: 0 | AB2: 0 | AC2: 0 | AD2: 1 | AE2: 0 | AF2: 0 | AG2: 0 | AH2: 96 | AI2: 30 | AJ2: =AH2-AI2 -> 66 | AK2: =AJ2*I2 -> 3960 | AL2: =(G2+ 2*H2)/3 -> 95.33333333 | AM2: 45 | AT2: 41 | BA2: 0.52 | BB2: 0.57 | BC2: 296 | BG2: 1.6 | BL2: 1 | BN2: 37 | BO2: 37 | BP2: 37 | BQ2: 37 | BR2: 37 | BS2: 37 | BT2: 37 | BU2: 37 | BV2: 32.205 | BW2: 37 | BX2: 37 | BY2: 27.29 | BZ2: 37 | CA2: 28.287 | CB2: 37 | CC2: 29.039 | CD2: 37 | CE2: 37 | CF2: 37 | CG2: 37 | CH2: 37 | CI2: 37 | CJ2: 37 | CK2: 37 | CL2: 37 | CM2: 37 | CN2: 37 | CO2: 28.432 | CP2: 32.443 | CQ2: 35 | CR2: 29.452 | CS2: 37 | CT2: 37 | CU2: 29.888 | CV2: 27.586 | CW2: 37 | CX2: 27.115 | CY2: 32.207 | CZ2: 37 | DA2: 37 | DB2: 37 | DC2: 27.673 | DD2: 37 | DE2: 37 | DF2: 32.554 | DG2: 164.5 | DH2: 171.5 | DI2: 241.5 | DJ2: 60990 | DK2: 22040 | DL2: 2620 | DM2: 80 | DN2: 0.56 | DO2: 3.206
A3: 74.18356164 | B3: 1 | C3: 177 | D3: 82 | E3: 2.00790106 | F3: 26.17383255 | G3: 125 | H3: 80 | I3: 62 | J3: 1 | K3: 0 | L3: 0 | M3: 0 | N3: 0 | O3: 0 | P3: 0 | Q3: 0 | R3: 0 | S3: 0 | T3: 0 | U3: 0 | V3: 0 | W3: 0 | X3: 0 | Y3: 0 | Z3: 0 | AA3: 0 | AB3: 0 | AC3: 0 | AD3: 1 | AE3: 1 | AF3: 0 | AG3: 0 | AH3: 108 | AJ3: =AH3-AI3 -> 108 | AK3: =AJ3*I3 -> 6696 | AL3: 95 | AN3: 44 | AO3: 11 | AP3: 8 | AR3: 23 | AS3: 38 | AU3: 41 | AV3: 50 | AZ3: 30 | BA3: 0.83 | BB3: 0.86 | BC3: 190 | BD3: 2 | BE3: 0.07 | BF3: 1.5 | BJ3: 2 | BK3: 2 | BL3: 2.4 | BM3: 30 | BN3: 37 | BO3: 37 | BP3: 31.276 | BQ3: 37 | BR3: 37 | BS3: 31.536 | BT3: 30.706 | BU3: 29.362 | BV3: 37 | BW3: 30.931 | BX3: 37 | BY3: 27.677 | BZ3: 37 | CA3: 37 | CB3: 28.744 | CC3: 22.047 | CD3: 37 | CE3: 37 | CF3: 28.313 | CG3: 37 | CH3: 37 | CI3: 37 | CJ3: 37 | CK3: 28.094 | CL3: 30.687 | CM3: 37 | CN3: 37 | CO3: 26.535 | CP3: 26.878 | CQ3: 28.846 | CR3: 29.574 | CS3: 28.677 | CT3: 37 | CU3: 29.594 | CV3: 28.142 | CW3: 33.566 | CX3: 27.07 | CY3: 28.619 | CZ3: 37 | DA3: 37 | DB3: 37 | DC3: 24.468 | DD3: 37 | DE3: 37 | DF3: 31.291 | DG3: 280 | DH3: 122 | DI3: 20.5 | DJ3: 35885 | DK3: 20040 | DL3: 1110 | DM3: 75 | DN3: 1.229894706 | DO3: 3.253 | DP3: A | DR3: 90 | DS3: 68 | DT3: 4216 | DU3: 47.25 | DV3: 48.88 | DW3: 157.5 | DX3: 177.3 | DY3: 0.0372 | DZ3: 0.205
A4: 61.85479452 | B4: 1 | C4: 170 | D4: 72 | E4: 1.843908891 | F4: 24.91349481 | G4: 135 | H4: 80 | I4: 75 | J4: 0 | K4: 0 | L4: 0 | M4: 0 | N4: 0 | O4: 0 | P4: 0 | Q4: 0 | R4: 0 | S4: 0 | T4: 0 | U4: 1 | V4: 0 | W4: 0 | X4: 0 | Y4: 1 | Z4: 0 | AA4: 1 | AB4: 0 | AC4: 0 | AD4: 1 | AE4: 0 | AF4: 0 | AG4: 0 | AH4: 120 | AI4: 56 | AJ4: 64 | AK4: =AJ4*I4 -> 4800 | AL4: 98.33333333 | AO4: 12 | AP4: 12 | AR4: 11 | AS4: 49 | AV4: 47 | BA4: 0.4 | BB4: 0.61 | BC4: 144 | BD4: 2 | BF4: 1 | BK4: 2 | BN4: 33.017 | BO4: 37 | BP4: 29.224 | BQ4: 32.983 | BR4: 37 | BS4: 29.559 | BT4: 29.59 | BU4: 24.524 | BV4: 29.879 | BW4: 30.958 | BX4: 32.109 | BY4: 23.936 | BZ4: 37 | CA4: 29.402 | CB4: 27.285 | CC4: 20.339 | CD4: 37 | CE4: 37 | CF4: 26.195 | CG4: 37 | CH4: 37 | CI4: 37 | CJ4: 37 | CK4: 25.425 | CL4: 32.437 | CM4: 37 | CN4: 27.425 | CO4: 23.989 | CP4: 22.483 | CQ4: 26.072 | CR4: 25.567 | CS4: 26.071 | CT4: 37 | CU4: 24.913 | CV4: 26.337 | CW4: 33.013 | CX4: 27.122 | CY4: 26.955 | CZ4: 29.249 | DA4: 37 | DB4: 37 | DC4: 22.456 | DD4: 37 | DE4: 37 | DF4: 27.245 | DG4: 213 | DH4: 407.5 | DI4: 404 | DJ4: 49630 | DK4: 26540 | DL4: 9205 | DM4: 120 | DN4: 1.13 | DO4: 5.184 | DP4: N | DR4: 90 | DS4: 64 | DT4: 4800 | DU4: 44.88 | DV4: 38.88 | DW4: 170.13 | DX4: 154.44 | DY4: 0.0261 | DZ4: 0.117 | EA4: 54.84883125
A5: 47.74794521 | B5: 1 | C5: 165 | D5: 77 | E5: 1.87860764 | F5: 28.28282828 | G5: 125 | H5: 63 | I5: 79 | J5: 1 | K5: 0 | L5: 0 | M5: 0 | N5: 0 | O5: 0 | P5: 0 | Q5: 0 | R5: 0 | S5: 0 | T5: 0 | U5: 0 | V5: 0 | W5: 0 | X5: 0 | Y5: 0 | Z5: 0 | AA5: 0 | AB5: 1 | AC5: 0 | AD5: 0 | AE5: 0 | AF5: 0 | AG5: 0 | AL5: 83.66666667 | AM5: 46 | AO5: 8 | AP5: 8 | AS5: 39 | AU5: 34 | AV5: 36 | BA5: 0.51 | BB5: 0.62 | BC5: 194 | BF5: 0.96 | BN5: 37 | BO5: 37 | BP5: 37 | BQ5: 37 | BR5: 37 | BS5: 37 | BT5: 37 | BU5: 37 | BV5: 32.011 | BW5: 37 | BX5: 37 | BY5: 29.975 | BZ5: 37 | CA5: 27.124 | CB5: 37 | CC5: 30.131 | CD5: 37 | CE5: 37 | CF5: 37 | CG5: 37 | CH5: 37 | CI5: 37 | CJ5: 37 | CK5: 31.694 | CL5: 37 | CM5: 37 | CN5: 37 | CO5: 31.627 | CP5: 26.562 | CQ5: 37 | CR5: 32.674 | CS5: 37 | CT5: 37 | CU5: 37 | CV5: 26.918 | CW5: 32.054 | CX5: 26.329 | CY5: 37 | CZ5: 27.855 | DA5: 37 | DB5: 37 | DC5: 26.673 | DD5: 37 | DE5: 37 | DF5: 30.826 | DG5: 155 | DH5: 74.5 | DI5: 327.5 | DJ5: 33480 | DK5: 18085 | DL5: 1730 | DM5: 60 | DN5: 1.067786595 | DO5: 3.969 | DP5: N | DR5: 91 | DU5: 35.62 | DV5: 35.28 | DW5: 153.7 | DX5: 176.5 | DY5: 0.0391 | DZ5: 0.1384 | EA5: 865.9838205
A6: 52.46849315 | B6: 1 | C6: 173 | D6: 95 | E6: 2.136651066 | F6: 31.7417889 | G6: 136 | H6: 77 | I6: 69 | J6: 0 | K6: 0 | L6: 0 | M6: 0 | N6: 0 | O6: 0 | P6: 0 | Q6: 0 | R6: 0 | S6: 0 | T6: 0 | U6: 0 | V6: 0 | W6: 0 | X6: 0 | Y6: 0 | Z6: 0 | AA6: 0 | AB6: 0 | AC6: 0 | AD6: 0 | AE6: 0 | AF6: 0 | AG6: 0 | AH6: 123 | AI6: 50 | AJ6: 73 | AK6: =AJ6*I6 -> 5037 | AL6: 96.66666667 | AM6: 50 | AO6: 10 | AP6: 8 | AR6: 30 | AS6: 37 | AV6: 50 | BA6: 0.9 | BB6: 1.5 | BC6: 303 | BD6: 2 | BF6: 1.7 | BJ6: 2 | BN6: 37 | BO6: 37 | BP6: 37 | BQ6: 37 | BR6: 37 | BS6: 37 | BT6: 37 | BU6: 37 | BV6: 32.585 | BW6: 37 | BX6: 37 | BY6: 37 | BZ6: 37 | CA6: 27.826 | CB6: 37 | CC6: 32.495 | CD6: 37 | CE6: 32.617 | CF6: 37 | CG6: 37 | CH6: 37 | CI6: 37 | CJ6: 37 | CK6: 37 | CL6: 37 | CM6: 37 | CN6: 37 | CO6: 28.523 | CP6: 25.493 | CQ6: 37 | CR6: 37 | CS6: 29.274 | CT6: 10.524 | CU6: 37 | CV6: 27.86 | CW6: 32.625 | CX6: 28.561 | CY6: 37 | CZ6: 37 | DA6: 37 | DB6: 37 | DC6: 25.422 | DD6: 37 | DE6: 37 | DF6: 29.706 | DG6: 85.5 | DH6: 140 | DI6: 280 | DJ6: 37205 | DK6: 19725 | DL6: 1595 | DM6: 40 | DN6: 1.46 | DO6: 4.209 | DP6: A | DR6: 99 | DS6: 73 | DT6: 5037 | DU6: 46.68 | DV6: 47.55 | DW6: 165.31 | DX6: 175.43 | DY6: 0.0368 | DZ6: 0.0951 | EA6: 422.0527135
A7: 65.7260274 | B7: 0 | C7: 165 | D7: 90 | E7: 2.031009601 | F7: 33.05785124 | G7: 141 | H7: 85 | I7: 81 | J7: 1 | K7: 0 | L7: 0 | M7: 0 | N7: 1 | O7: 0 | P7: 0 | Q7: 0 | R7: 0 | S7: 0 | T7: 0 | U7: 0 | V7: 0 | W7: 0 | X7: 0 | Y7: 0 | Z7: 0 | AA7: 0 | AB7: 0 | AC7: 0 | AD7: 1 | AE7: 1 | AF7: 0 | AG7: 0 | AH7: 85 | AI7: 32 | AJ7: 53 | AK7: =AJ7*I7 -> 4293 | AL7: 103.6666667 | AO7: 12 | AS7: 35 | AU7: 30 | AV7: 47 | BA7: 0.81 | BB7: 1.01 | BC7: 2015 | BF7: 2.1 | BJ7: 1 | BK7: 1 | BN7: 37 | BO7: 37 | BP7: 28.984 | BQ7: 37 | BR7: 37 | BS7: 31.572 | BT7: 37 | BU7: 25.293 | BV7: 31.44 | BW7: 29.371 | BX7: 35.157 | BY7: 22.837 | BZ7: 37 | CA7: 37 | CB7: 26.72 | CC7: 19.815 | CD7: 37 | CE7: 37 | CF7: 25.661 | CG7: 37 | CH7: 37 | CI7: 37 | CJ7: 37 | CK7: 25.35 | CL7: 30.403 | CM7: 37 | CN7: 27.011 | CO7: 23.872 | CP7: 21.32 | CQ7: 25.291 | CR7: 25.078 | CS7: 24.899 | CT7: 37 | CU7: 25.4 | CV7: 26.658 | CW7: 32.546 | CX7: 28.101 | CY7: 27.223 | CZ7: 27.598 | DA7: 37 | DB7: 37 | DC7: 23.824 | DD7: 37 | DE7: 37 | DF7: 25.826 | DG7: 201.15 | DH7: 124.5 | DI7: 524 | DJ7: 47525 | DK7: 26935 | DL7: 3095 | DM7: 150 | DN7: 0.58 | DO7: 3.57 | DP7: A | DQ7: AP | DR7: 75 | DS7: 53 | DT7: 4293 | DU7: 45.51 | DV7: 46.24 | DW7: 169.45 | DX7: 177.22 | DY7: 0.0305 | DZ7: 0.1619 | EA7: 465.4522058
A8: 80.69041096 | B8: 1 | C8: 169 | D8: 75 | E8: 1.876388375 | F8: 26.25958475 | G8: 143 | H8: 76 | I8: 63 | J8: 1 | K8: 0 | L8: 0 | M8: 0 | N8: 0 | O8: 0 | P8: 0 | Q8: 0 | R8: 0 | S8: 0 | T8: 0 | U8: 0 | V8: 0 | W8: 0 | X8: 0 | Y8: 0 | Z8: 0 | AA8: 0 | AB8: 1 | AC8: 0 | AD8: 0 | AE8: 0 | AF8: 0 | AG8: 0 | AL8: 98.33333333 | AM8: 42 | AS8: 40 | AV8: 50 | BA8: 0.62 | BB8: 0.85 | BC8: 261 | BF8: 1.4 | BJ8: 2,,3 | BK8: 1 | BN8: 37 | BO8: 37 | BP8: 29.384 | BQ8: 37 | BR8: 37 | BS8: 37 | BT8: 37 | BU8: 27.768 | BV8: 34.94 | BW8: 31.013 | BX8: 33.93 | BY8: 24.61 | BZ8: 37 | CA8: 32.079 | CB8: 28.237 | CC8: 20.628 | CD8: 37 | CE8: 33.969 | CF8: 26.429 | CG8: 37 | CH8: 37 | CI8: 37 | CJ8: 37 | CK8: 26.562 | CL8: 29.125 | CM8: 37 | CN8: 29.309 | CO8: 24.881 | CP8: 22.296 | CQ8: 27.088 | CR8: 28.365 | CS8: 26.134 | CT8: 20.926 | CU8: 27.803 | CV8: 25.745 | CW8: 33.244 | CX8: 26.911 | CY8: 28.577 | CZ8: 27.766 | DA8: 37 | DB8: 31.861 | DC8: 24.083 | DD8: 37 | DE8: 37 | DF8: 25.213 | DG8: 219 | DH8: 319 | DI8: 1206 | DJ8: 62985 | DK8: 24520 | DL8: 4520 | DM8: 115 | DN8: 1.16 | DO8: 1.805 | DP8: A | DR8: 89 | DU8: 48.3 | DV8: 47.34 | DW8: 176.35 | DX8: 179.22 | DY8: 0.0255 | DZ8: 0.1307 | EA8: 449.421444
A9: 71.68219178 | B9: 1 | C9: 168 | D9: 95 | E9: 2.105548226 | F9: 33.65929705 | G9: 140 | H9: 80 | I9: 75 | J9: 0 | K9: 0 | L9: 0 | M9: 2 | N9: 1 | O9: 0 | P9: 0 | Q9: 0 | R9: 0 | S9: 0 | T9: 0 | U9: 0 | V9: 0 | W9: 0 | X9: 0 | Y9: 0 | Z9: 0 | AA9: 0 | AB9: 0 | AC9: 0 | AD9: 1 | AE9: 0 | AF9: 0 | AG9: 0 | AH9: 95 | AJ9: 95 | AK9: =AJ9*I9 -> 7125 | AL9: 100 | AM9: 40 | AO9: 10 | AP9: 10 | AR9: 16 | AS9: 44 | AU9: 36 | AV9: 47 | AY9: 35 | BA9: 0.6 | BB9: 0.5 | BC9: 213 | BE9: 0.06 | BF9: 1.36 | BK9: 1 | BN9: 37 | BO9: 37 | BP9: 37 | BQ9: 37 | BR9: 37 | BS9: 37 | BT9: 37 | BU9: 37 | BV9: 32.217 | BW9: 37 | BX9: 37 | BY9: 27.903 | BZ9: 37 | CA9: 27.793 | CB9: 37 | CC9: 29.631 | CD9: 37 | CE9: 37 | CF9: 33.035 | CG9: 37 | CH9: 37 | CI9: 37 | CJ9: 37 | CK9: 37 | CL9: 37 | CM9: 37 | CN9: 37 | CO9: 28.873 | CP9: 28.08 | CQ9: 37 | CR9: 37 | CS9: 28.924 | CT9: 37 | CU9: 37 | CV9: 26.346 | CW9: 31.814 | CX9: 25.963 | CY9: 27.883 | CZ9: 31.159 | DA9: 37 | DB9: 37 | DC9: 24.704 | DD9: 37 | DE9: 37 | DF9: 31.034 | DG9: 162.5 | DH9: 234 | DI9: 1125.5 | DJ9: 44035 | DK9: 14870 | DL9: 1800 | DM9: 440 | DN9: 0.69 | DP9: N | DR9: 90 | DU9: 44.11 | DV9: 43.89 | DW9: 171.8 | DX9: 177 | DY9: 0.0282 | DZ9: 0.1207 | EA9: 1603.868352
A10: 59.96438356 | B10: 1 | C10: 174 | D10: 80 | E10: 1.966384161 | F10: 26.42356982 | G10: 120 | H10: 65 | I10: 65 | J10: 1 | K10: 0 | L10: 0 | M10: 1 | N10: 1 | O10: 0 | P10: 0 | Q10: 0 | R10: 0 | S10: 0 | T10: 0 | U10: 0 | V10: 0 | W10: 0 | X10: 1 | Y10: 0 | Z10: 0 | AA10: 0 | AB10: 0 | AC10: 0 | AD10: 1 | AE10: 1 | AF10: 0 | AG10: 0 | AL10: 83.33333333 | AM10: 56 | AO10: 11 | AS10: 46 | AV10: 42 | BD10: 1 | BJ10: 1 | BK10: 1 | BN10: 37 | BO10: 37 | BP10: 30.395 | BQ10: 37 | BR10: 37 | BS10: 37 | BT10: 37 | BU10: 26.691 | BV10: 35.657 | BW10: 37 | BX10: 37 | BY10: 24.963 | BZ10: 37 | CA10: 32.53 | CB10: 28.916 | CC10: 21.844 | CD10: 37 | CE10: 37 | CF10: 28.036 | CG10: 37 | CH10: 37 | CI10: 37 | CJ10: 37 | CK10: 26.406 | CL10: 30.041 | CM10: 37 | CN10: 29.633 | CO10: 26.505 | CP10: 23.05 | CQ10: 27.781 | CR10: 27.859 | CS10: 26.778 | CT10: 37 | CU10: 27.981 | CV10: 28.064 | CW10: 31.033 | CX10: 26.922 | CY10: 28.995 | CZ10: 31.479 | DA10: 37 | DB10: 37 | DC10: 25.473 | DD10: 37 | DE10: 37 | DF10: 29.821 | DG10: 175 | DH10: 465.5 | DI10: 1901.5 | DJ10: 43200 | DK10: 26820 | DL10: 1250 | DM10: 120 | DN10: 0.8 | DO10: 3.246 | DP10: N | DR10: 90 | DS10: 90 | DT10: 5850 | DU10: 39.12 | DV10: 39.08 | DW10: 173.18 | DX10: 177.21 | DY10: 0.0198 | DZ10: 0.0742
A11: 74.69589041 | B11: 1 | C11: 165 | D11: 70 | E11: 1.791182105 | F11: 25.71166208 | G11: 145 | H11: 65 | I11: 65 | J11: 1 | K11: 0 | L11: 0 | M11: 1 | N11: 0 | O11: 0 | P11: 1 | Q11: 0 | R11: 0 | S11: 1 BAC | T11: 0 | U11: 0 | V11: 0 | W11: 0 | X11: 1 | Y11: 0 | Z11: 0 | AA11: 0 | AB11: 1 | AC11: 1 | AD11: 0 | AE11: 0 | AF11: 0 | AG11: 0 | AH11: 155 | AI11: 65 | AJ11: 90 | AK11: =AJ11*I11 -> 5850 | AL11: 91.66666667 | AM11: 49 | AO11: 12 | AP11: 11 | AR11: 17 | AS11: 48 | AV11: 51 | BA11: 0.58 | BB11: 0.94 | BC11: 227 | BD11: 2 | BF11: 1 | BJ11: 2 | BK11: 1 | BL11: 2.39 | BM11: 28 | BN11: 37 | BO11: 37 | BP11: 37 | BQ11: 37 | BR11: 37 | BS11: 34.462 | BT11: 37 | BU11: 37 | BV11: 30.016 | BW11: 37 | BX11: 37 | BY11: 25.473 | BZ11: 37 | CA11: 27.463 | CB11: 37 | CC11: 26.001 | CD11: 37 | CE11: 37 | CF11: 37 | CG11: 37 | CH11: 37 | CI11: 37 | CJ11: 32.812 | CK11: 37 | CL11: 37 | CM11: 37 | CN11: 37 | CO11: 28.123 | CP11: 23.897 | CQ11: 30.328 | CR11: 30.591 | CS11: 29.151 | CT11: 37 | CU11: 28.938 | CV11: 26.983 | CW11: 30.763 | CX11: 26.033 | CY11: 28.692 | CZ11: 37 | DA11: 37 | DB11: 37 | DC11: 24.805 | DD11: 37 | DE11: 37 | DF11: 29.697 | DG11: 191 | DH11: 197.5 | DI11: 438.5 | DJ11: 62440 | DK11: 21880 | DL11: 3160 | DM11: 860 | DN11: 0.84 | DO11: 3.071 | DP11: N | DR11: 91 | DS11: 90 | DT11: 5850 | DU11: 48.6 | DV11: 49.42 | DW11: 168.08 | DX11: 166.46 | DY11: 0.0287 | DZ11: 0.1439 | EA11: 632.1432345
A12: 71.89863014 | B12: 1 | G12: 129 | H12: 77 | I12: 73 | J12: 0 | K12: 0 | L12: 0 | M12: 0 | N12: 0 | O12: 0 | P12: 0 | Q12: 0 | R12: 0 | S12: 0 | T12: 0 | U12: 0 | V12: 0 | W12: 0 | X12: 0 | Y12: 0 | Z12: 0 | AA12: 0 | AB12: 0 | AC12: 0 | AD12: 1 | AE12: 0 | AF12: 0 | AG12: 0 | AL12: 94.33333333 | AM12: 45 | AR12: 15 | AS12: 50 | AV12: 44 | BA12: 0.5 | BB12: 0.61 | BC12: 306 | BF12: 1 | BJ12: 1 | BK12: 1 | BN12: 37 | BO12: 37 | BP12: 33.893 | BQ12: 37 | BR12: 37 | BS12: 37 | BT12: 37 | BU12: 29.651 | BV12: 33.582 | BW12: 37 | BX12: 37 | BY12: 25.349 | BZ12: 37 | CA12: 27.279 | CB12: 37 | CC12: 24.405 | CD12: 37 | CE12: 31.317 | CF12: 30.714 | CG12: 37 | CH12: 37 | CI12: 37 | CJ12: 37 | CK12: 28.507 | CL12: 37 | CM12: 37 | CN12: 37 | CO12: 26.638 | CP12: 25.752 | CQ12: 29.051 | CR12: 29.707 | CS12: 29.402 | CT12: 37 | CU12: 37 | CV12: 25.471 | CW12: 32.129 | CX12: 25.799 | CY12: 27.26 | CZ12: 29.816 | DA12: 37 | DB12: 34.066 | DC12: 22.91 | DD12: 37 | DE12: 37 | DF12: 30.404 | DG12: 206.5 | DH12: 70 | DI12: 215 | DJ12: 55185 | DK12: 20280 | DL12: 6665 | DM12: 115 | DN12: 0.86 | DO12: 0.918 | DP12: N | DR12: 89 | DU12: 40.28 | DV12: 39.13 | DW12: 169.97 | DX12: 171.89 | DY12: 0.0277 | DZ12: 0.1043 | EA12: 242.8276045
A13: 72.56712329 | B13: 1 | C13: 177 | D13: 85 | E13: =SQRT((C13*D13)/3600) -> 2.044301022 | F13: =(D13/POWER(C13,2))*10000 -> 27.13141179 | G13: 122 | H13: 70 | I13: 71 | J13: 1 | K13: 0 | L13: 0 | M13: 2 | N13: 0 | O13: 0 | P13: 0 | Q13: 0 | R13: 0 | S13: 0 | T13: 0 | U13: 0 | V13: 0 | W13: 0 | X13: 0 | Y13: 0 | Z13: 0 | AA13: 0 | AB13: 1 | AC13: 0 | AD13: 1 | AE13: 0 | AF13: 0 | AG13: 0 | AH13: 95 | AI13: 34 | AJ13: 61 | AK13: =AJ13*I13 -> 4331 | AL13: 87.33333333 | AM13: 45 | AO13: 15 | AP13: 12 | AQ13: 38 | AR13: 22 | AS13: 46 | AV13: 49 | AZ13: 22 | BA13: 0.61 | BB13: 0.83 | BC13: 197 | BD13: 2 | BF13: 1.5 | BK13: 1 | BM13: 26 | BN13: 37 | BO13: 37 | BP13: 37 | BQ13: 37 | BR13: 37 | BS13: 37 | BT13: 37 | BU13: 37 | BV13: 29.967 | BW13: 37 | BX13: 37 | BY13: 37 | BZ13: 37 | CA13: 28.344 | CB13: 37 | CC13: 33.965 | CD13: 37 | CE13: 37 | CF13: 37 | CG13: 37 | CH13: 37 | CI13: 37 | CJ13: 37 | CK13: 37 | CL13: 37 | CM13: 37 | CN13: 37 | CO13: 31.172 | CP13: 30.875 | CQ13: 37 | CR13: 37 | CS13: 37 | CT13: 37 | CU13: 37 | CV13: 32.343 | CW13: 32.382 | CX13: 26.062 | CY13: 37 | CZ13: 37 | DA13: 37 | DB13: 37 | DC13: 28.622 | DD13: 37 | DE13: 37 | DF13: 30.665 | DG13: 179.5 | DH13: 88.5 | DI13: 267 | DJ13: 43825 | DK13: 23770 | DL13: 1390 | DM13: 60 | DN13: 1.33 | DO13: 2.12 | DP13: A | DR13: 84 | DS13: 61 | DT13: 4331 | DU13: 46.41 | DV13: 45.09 | DW13: 164.4 | DX13: 166.57 | DY13: 0.0267 | DZ13: 0.1074 | EA13: 243.7496896
A14: 71.76986301 | B14: 1 | C14: 184 | D14: 98 | E14: 2.238054711 | F14: 28.94612476 | G14: 121 | H14: 70 | I14: 69 | J14: 1 | K14: 0 | L14: 0 | M14: 2 | N14: 0 | O14: 0 | P14: 0 | Q14: 0 | R14: 0 | S14: 0 | T14: 0 | U14: 1 | V14: 0 | W14: 0 | X14: 0 | Y14: 0 | Z14: 0 | AA14: 1 | AB14: 1 | AC14: 0 | AD14: 1 | AE14: 0 | AF14: 0 | AG14: 0 | AH14: 120 | AI14: 50 | AJ14: 70 | AK14: =AJ14*I14 -> 4830 | AL14: 87 | AM14: 50 | AO14: 13 | AP14: 12 | AQ14: 41 | AR14: 28 | AS14: 40 | AV14: 49 | AZ14: 25 | BA14: 0.35 | BB14: 0.59 | BC14: 229 | BD14: 2 | BF14: 1.3 | BJ14: 1 | BK14: 1 | BN14: 37 | BO14: 37 | BP14: 37 | BQ14: 37 | BR14: 37 | BS14: 37 | BT14: 37 | BU14: 37 | BV14: 30.18 | BW14: 37 | BX14: 37 | BY14: 26.629 | BZ14: 37 | CA14: 29.539 | CB14: 37 | CC14: 25.652 | CD14: 37 | CE14: 37 | CF14: 37 | CG14: 37 | CH14: 37 | CI14: 37 | CJ14: 37 | CK14: 37 | CL14: 37 | CM14: 37 | CN14: 37 | CO14: 28.442 | CP14: 27.912 | CQ14: 37 | CR14: 37 | CS14: 37 | CT14: 37 | CU14: 37 | CV14: 37 | CW14: 32.807 | CX14: 26.582 | CY14: 37 | CZ14: 28.523 | DA14: 37 | DB14: 37 | DC14: 28.063 | DD14: 37 | DE14: 37 | DF14: 29.293 | DG14: 160.5 | DH14: 185.5 | DI14: 1217 | DJ14: 47850 | DK14: 26105 | DL14: 3565 | DM14: 485 | DN14: 0.54 | DO14: 1.853 | DP14: A | DR14: 84 | DS14: 70 | DT14: 4830 | DU14: 43.83 | DV14: 44.91 | DW14: 166.97 | DX14: 152.18 | DY14: 0.0386 | DZ14: 0.2136 | EA14: 275.9440167
A15: 68.33424658 | B15: 0 | C15: 170 | D15: 102 | E15: 2.194690563 | F15: 35.29411765 | G15: 145 | H15: 75 | I15: 60 | J15: 1 | K15: 0 | L15: 0 | M15: 2 | N15: 1 | O15: 0 | P15: 1 | Q15: 0 | R15: 0 | S15: 0 | T15: 0 | U15: 0 | V15: 0 | W15: 0 | X15: 0 | Y15: 0 | Z15: 0 | AA15: 0 | AB15: 0 | AC15: 0 | AD15: 1 | AE15: 0 | AF15: 0 | AG15: 0 | AH15: 160 | AJ15: 160 | AK15: =AJ15*I15 -> 9600 | AL15: 98.33333333 | AO15: 13 | AS15: 44 | AV15: 48 | BD15: 2 | BF15: 2.5 | BG15: 26 | BH15: 13 | BJ15: 2 | BK15: 1 | BN15: 30.514 | BO15: 37 | BP15: 29.09 | BQ15: 32.977 | BR15: 37 | BS15: 30.616 | BT15: 29.692 | BU15: 24.852 | BV15: 30.337 | BW15: 27.366 | BX15: 29.909 | BY15: 23.494 | BZ15: 37 | CA15: 30.043 | CB15: 25.491 | CC15: 19.218 | CD15: 37 | CE15: 37 | CF15: 25.778 | CG15: 37 | CH15: 31.161 | CI15: 37 | CJ15: 37 | CK15: 25.557 | CL15: 27.953 | CM15: 37 | CN15: 28.259 | CO15: 23.893 | CP15: 20.118 | CQ15: 25.153 | CR15: 25.636 | CS15: 26.003 | CT15: 37 | CU15: 25.602 | CV15: 26.278 | CW15: 32.895 | CX15: 27.052 | CY15: 26.98 | CZ15: 28.445 | DA15: 37 | DB15: 37 | DC15: 22.127 | DD15: 37 | DE15: 37 | DF15: 27.602 | DG15: 209.6 | DH15: 337.5 | DI15: 819.5 | DJ15: 31190 | DK15: 24010 | DL15: 2210 | DM15: 90 | DN15: 0.9 | DO15: 4.225 | DP15: A | DQ15: AP | DR15: 85 | DU15: 49 | DV15: 45.78 | DW15: 170.18 | DX15: 167.86 | DY15: 0.0378 | DZ15: 0.1488 | EA15: 142.0173285
A16: 57.23013699 | B16: 1 | C16: 178 | D16: 100 | E16: 2.223610677 | F16: 31.56167151 | G16: 120 | H16: 69 | I16: 70 | J16: 0 | K16: 0 | L16: 0 | M16: 2 | N16: 0 | O16: 0 | P16: 0 | Q16: 0 | R16: 0 | S16: 0 | T16: 0 | U16: 0 | V16: 0 | W16: 0 | X16: 0 | Y16: 0 | Z16: 0 | AA16: 0 | AB16: 1 | AC16: 0 | AD16: 0 | AE16: 0 | AF16: 0 | AG16: 0 | AH16: 124 | AI16: 55 | AJ16: 69 | AK16: =AJ16*I16 -> 4830 | AL16: 86 | AM16: 43 | AO16: 11 | AP16: 9 | AR16: 23 | AS16: 44 | AV16: 40 | AZ16: 20 | BA16: 0.61 | BB16: 0.71 | BC16: 301 | BF16: 1.21 | BK16: 1 | BL16: 2.2 | BM16: 23 | BN16: 37 | BO16: 33.38 | BP16: 37 | BQ16: 37 | BR16: 37 | BS16: 37 | BT16: 37 | BU16: 37 | BV16: 31.309 | BW16: 37 | BX16: 37 | BY16: 27.997 | BZ16: 37 | CA16: 28.292 | CB16: 37 | CC16: 37 | CD16: 37 | CE16: 37 | CF16: 37 | CG16: 37 | CH16: 37 | CI16: 37 | CJ16: 37 | CK16: 37 | CL16: 32.708 | CM16: 37 | CN16: 37 | CO16: 32.294 | CP16: 37 | CQ16: 37 | CR16: 37 | CS16: 37 | CT16: 37 | CU16: 33.669 | CV16: 37 | CW16: 31.231 | CX16: 25.948 | CY16: 37 | CZ16: 37 | DA16: 37 | DB16: 37 | DC16: 28.022 | DD16: 37 | DE16: 37 | DF16: 31.524 | DG16: 130.875 | DH16: 300 | DI16: 696 | DJ16: 70220 | DK16: 23410 | DL16: 2485 | DM16: 75 | DN16: 0.554 | DO16: 1.917 | DP16: N | DR16: 95 | DS16: 69 | DT16: 4830 | DU16: 36.64 | DV16: 36.19 | DW16: 177.64 | DX16: 166.11 | DY16: 0.0263 | DZ16: 0.0723
A17: 80.42465753 | B17: 1 | C17: 175 | D17: 120 | E17: 2.415229458 | F17: 39.18367347 | G17: 150 | H17: 68 | I17: 94 | J17: 1 | K17: 1 | L17: 1 | M17: 0 | N17: 1 | O17: 0 | P17: 0 | Q17: 0 | R17: 0 | S17: 0 | T17: 0 | U17: 0 | V17: 0 | W17: 0 | AB17: 1 | AL17: 95.33333333 | AM17: 57 | AO17: 12 | AP17: 11 | AS17: 39 | AU17: 37 | AV17: 50 | BD17: 1 | BF17: 1 | BN17: 37 | BO17: 37 | BP17: 37 | BQ17: 37 | BR17: 37 | BS17: 37 | BT17: 37 | BU17: 28.865 | BV17: 30.613 | BW17: 28.459 | BX17: 37 | BY17: 30.701 | BZ17: 37 | CA17: 27.753 | CB17: 37 | CC17: 25.033 | CD17: 37 | CE17: 37 | CF17: 31.802 | CG17: 37 | CH17: 37 | CI17: 37 | CJ17: 37 | CK17: 29.662 | CL17: 37 | CM17: 37 | CN17: 37 | CO17: 30.336 | CP17: 26.3 | CQ17: 37 | CR17: 37 | CS17: 37 | CT17: 37 | CU17: 31.946 | CV17: 37 | CW17: 31.534 | CX17: 26.347 | CY17: 37 | CZ17: 37 | DA17: 37 | DB17: 37 | DC17: 26.694 | DD17: 37 | DE17: 37 | DF17: 37 | DG17: 310.125 | DH17: 233.5 | DI17: 536.5 | DJ17: 54470 | DK17: 32250 | DL17: 1870 | DM17: 350 | DN17: 0.6551290589 | DO17: 6.652 | DP17: A | DR17: 92 | DU17: 45.84 | DV17: 42.47 | DW17: 161.05 | DX17: 177.18 | DY17: 0.0282 | DZ17: 0.1411 | EA17: 148.7070817
A18: 87.03287671 | B18: 1 | C18: 155 | D18: 54 | E18: 1.524795068 | F18: 22.47658689 | G18: 150 | H18: 75 | I18: 66 | J18: 1 | K18: 0 | L18: 0 | M18: 0 | N18: 0 | O18: 0 | P18: 0 | Q18: 0 | R18: 0 | S18: 0 | T18: 1 | U18: 0 | V18: 0 | W18: 0 | X18: 1 | Y18: 0 | Z18: 0 | AA18: 0 | AB18: 0 | AC18: 0 | AD18: 1 | AE18: 1 | AF18: 0 | AG18: 0 | AL18: 100 | AS18: 33 | AV18: 41 | BD18: 2 | BJ18: 2 | BK18: 2 | BL18: 2.5 | BM18: 30 | BN18: 37 | BO18: 37 | BP18: 37 | BQ18: 37 | BR18: 37 | BS18: 37 | BT18: 37 | BU18: 37 | BV18: 32.051 | BW18: 37 | BX18: 37 | BY18: 27.596 | BZ18: 37 | CA18: 28.4 | CB18: 37 | CC18: 30.21 | CD18: 37 | CE18: 37 | CF18: 37 | CG18: 37 | CH18: 37 | CI18: 37 | CJ18: 37 | CK18: 37 | CL18: 37 | CM18: 37 | CN18: 37 | CO18: 33.981 | CP18: 31.961 | CQ18: 37 | CR18: 32.983 | CS18: 37 | CT18: 37 | CU18: 37 | CV18: 29.757 | CW18: 31.111 | CX18: 25.496 | CY18: 37 | CZ18: 37 | DA18: 37 | DB18: 37 | DC18: 28.416 | DD18: 37 | DE18: 37 | DF18: 31.977 | DG18: 308.75 | DH18: 218.5 | DI18: 436 | DJ18: 38935 | DK18: 17825 | DL18: 3160 | DM18: 965 | DN18: 0.4538131557 | DO18: 5.537 | DP18: A | DR18: 81 | DU18: 40.45 | DV18: 42.23 | DW18: 149.22 | DX18: 172.28 | DY18: 0.037 | DZ18: 0.1141 | EA18: 227.2285397
A19: 60.35890411 | B19: 1 | C19: 176 | D19: 75 | E19: 1.914854216 | F19: 24.21229339 | G19: 115 | H19: 86 | I19: 70 | J19: 0 | K19: 0 | L19: 0 | M19: 1 | N19: 0 | O19: 0 | P19: 0 | Q19: 0 | R19: 0 | S19: 0 | T19: 0 | U19: 0 | V19: 0 | W19: 0 | X19: 0 | Y19: 0 | Z19: 0 | AA19: 0 | AB19: 0 | AC19: 0 | AD19: 0 | AE19: 0 | AF19: 0 | AG19: 0 | AL19: 95.66666667 | AM19: 44 | AO19: 12 | AP19: 12 | AS19: 44 | AT19: 43 | AV19: 49 | AY19: 33 | AZ19: 24 | BF19: 0.8 | BK19: 1 | BL19: 2.5 | BM19: 32 | BN19: 37 | BO19: 37 | BP19: 37 | BQ19: 37 | BR19: 37 | BS19: 37 | BT19: 37 | BU19: 37 | BV19: 31.996 | BW19: 37 | BX19: 37 | BY19: 26.905 | BZ19: 37 | CA19: 29.411 | CB19: 37 | CC19: 29.147 | CD19: 37 | CE19: 37 | CF19: 37 | CG19: 37 | CH19: 37 | CI19: 37 | CJ19: 37 | CK19: 37 | CL19: 33.483 | CM19: 37 | CN19: 37 | CO19: 30.69 | CP19: 30.651 | CQ19: 37 | CR19: 32.216 | CS19: 37 | CT19: 37 | CU19: 32.429 | CV19: 37 | CW19: 31.828 | CX19: 25.396 | CY19: 37 | CZ19: 37 | DA19: 37 | DB19: 37 | DC19: 26.826 | DD19: 37 | DE19: 37 | DF19: 29.267 | DG19: 170.25 | DH19: 164.5 | DI19: 816.5 | DJ19: 34335 | DK19: 17770 | DL19: 2280 | DM19: 320 | DN19: 0.4236040284 | DO19: 4.707 | DP19: A | DR19: 94 | DU19: 47.22 | DV19: 46.57 | DW19: 178.2 | DX19: 167.11 | DY19: 0.023 | DZ19: 0.1232 | EA19: 280.8754068
A20: 70.35068493 | B20: 1 | C20: 165 | D20: 81 | E20: 1.926784887 | F20: =(D20/POWER(C20,2))*10000 -> 29.75206612 | G20: 141 | H20: 78 | I20: 62 | J20: 1 | K20: 0 | L20: 0 | M20: 0 | N20: 0 | O20: 0 | P20: 0 | Q20: 0 | R20: 0 | S20: 0 | T20: 0 | U20: 0 | V20: 0 | W20: 0 | X20: 0 | Y20: 0 | Z20: 0 | AA20: 0 | AB20: 1 | AC20: 0 | AD20: 1 | AE20: 0 | AF20: 0 | AG20: 0 | AL20: 99 | AM20: 42 | AO20: 9 | AP20: 9 | AS20: 53 | AU20: 44 | AV20: 47 | BF20: 1.32 | BJ20: 2 | BK20: 2 | BN20: 37 | BO20: 37 | BP20: 31.863 | BQ20: 30.695 | BR20: 37 | BS20: 37 | BT20: 37 | BU20: 25.144 | BV20: 29.254 | BW20: 30.583 | BX20: 37 | BY20: 23.99 | BZ20: 37 | CA20: 37 | CB20: 28.258 | CC20: 22.072 | CD20: 37 | CE20: 37 | CF20: 27.934 | CG20: 37 | CH20: 37 | CI20: 37 | CJ20: 37 | CK20: 26.04 | CL20: 31.568 | CM20: 37 | CN20: 29.015 | CO20: 25.848 | CP20: 23.676 | CQ20: 26.727 | CR20: 25.459 | CS20: 27.379 | CT20: 37 | CU20: 25.203 | CV20: 28.454 | CW20: 33.477 | CX20: 25.511 | CY20: 30.237 | CZ20: 28.906 | DA20: 37 | DB20: 37 | DC20: 25.292 | DD20: 37 | DE20: 37 | DF20: 30.574 | DJ20: 49914 | DK20: 36148 | DL20: 2047.5 | DM20: 544 | DN20: 0.052698 | DO20: 4.9656 | DP20: A | DR20: 95 | DU20: 47.51 | DV20: 47.4 | DW20: 171.56 | DX20: 168.04 | DY20: 0.0265 | DZ20: 0.13 | EA20: 3627.738593
A21: 66.04931507 | B21: 1 | C21: 172 | D21: 88 | E21: 2.0504742 | F21: 29.74580855 | G21: 133 | H21: 69 | I21: 78 | J21: 1 | K21: 0 | L21: 1 | M21: 2 | N21: 0 | O21: 0 | P21: 0 | Q21: 0 | R21: 0 | S21: 0 | T21: 0 | U21: 0 | V21: 0 | W21: 0 | X21: 0 | Y21: 0 | Z21: 0 | AA21: 0 | AB21: 0 | AC21: 0 | AD21: 1 | AE21: 0 | AF21: 0 | AG21: 0 | AL21: 90.33333333 | AM21: 50 | AO21: 10 | AP21: 10 | AR21: 16 | AS21: 52 | AV21: 40 | BF21: 1.3 | BJ21: 3 | BK21: 1 | BN21: 29.811 | BO21: 37 | BP21: 28.25 | BQ21: 37 | BR21: 37 | BS21: 37 | BT21: 31.323 | BU21: 25.496 | BV21: 31.096 | BW21: 27.803 | BX21: 37 | BY21: 25.827 | BZ21: 37 | CA21: 31.167 | CB21: 28.006 | CC21: 19.635 | CD21: 37 | CE21: 37 | CF21: 25.278 | CG21: 37 | CH21: 32.877 | CI21: 37 | CJ21: 37 | CK21: 26.245 | CL21: 28.862 | CM21: 37 | CN21: 30.635 | CO21: 25.221 | CP21: 24.428 | CQ21: 27.384 | CR21: 26.381 | CS21: 25.749 | CT21: 37 | CU21: 27.244 | CV21: 27.696 | CW21: 33.283 | CX21: 26.567 | CY21: 29.126 | CZ21: 29.194 | DA21: 37 | DB21: 37 | DC21: 22.806 | DD21: 37 | DE21: 37 | DF21: 33.213 | DJ21: 60952 | DK21: 30606 | DL21: 1760 | DM21: 66.5 | DN21: 0.051814 | DO21: 5.742 | DP21: N | DR21: 85 | DS21: 119 | DT21: 9282 | DU21: 36.66 | DV21: 35.84 | DW21: 162.25 | DX21: 178.55 | DY21: 0.027 | DZ21: 0.0536 | EA21: 381.4711272
A22: 82.35068493 | B22: 1 | C22: 167 | D22: 74 | E22: 1.852775695 | F22: 26.53375883 | G22: 141 | H22: 78 | I22: 62 | J22: 1 | K22: 0 | L22: 0 | M22: 0 | N22: 0 | O22: 0 | P22: 0 | Q22: 0 | R22: 0 | S22: 0 | T22: 0 | U22: 0 | V22: 0 | W22: 0 | X22: 1 | Y22: 0 | Z22: 0 | AA22: 0 | AB22: 0 | AC22: 1 | AD22: 1 | AE22: 0 | AF22: 0 | AG22: 0 | AH22: 90 | AI22: 30 | AJ22: 60 | AK22: =AJ22*I22 -> 3720 | AL22: 99 | AM22: 41 | AO22: 9 | AP22: 9 | AR22: 17 | AS22: 37 | AU22: 38 | AV22: 46 | AY22: 39 | AZ22: 24 | BA22: 0.75 | BB22: 0.8 | BC22: 211 | BF22: 1.33 | BJ22: 2 | BK22: 2 | BL22: 2.55 | BM22: 31 | BN22: 37 | BO22: 37 | BP22: 37 | BQ22: 37 | BR22: 37 | BS22: 34.141 | BT22: 37 | BU22: 37 | BV22: 32.351 | BW22: 37 | BX22: 37 | BY22: 26.071 | BZ22: 37 | CA22: 28.495 | CB22: 37 | CC22: 27.055 | CD22: 37 | CE22: 37 | CF22: 37 | CG22: 37 | CH22: 37 | CI22: 37 | CJ22: 37 | CK22: 37 | CL22: 37 | CM22: 37 | CN22: 37 | CO22: 30.335 | CP22: 28.2 | CQ22: 37 | CR22: 29.56 | CS22: 37 | CT22: 37 | CU22: 28.848 | CV22: 37 | CW22: 30.54 | CX22: 25.55 | CY22: 37 | CZ22: 37 | DA22: 37 | DB22: 37 | DC22: 26.522 | DD22: 37 | DE22: 37 | DF22: 28.82 | DJ22: 61428 | DK22: 36848 | DL22: 11305 | DM22: 275 | DN22: 0.071431 | DO22: 5.8156 | DP22: A | DR22: 81 | DS22: 60 | DT22: 4260 | DU22: 45.1 | DV22: 42.05 | DW22: 175.53 | DX22: 151.08 | DY22: 0.0304 | DZ22: 0.1053 | EA22: 100.542567
A23: 79.18082192 | B23: 0 | C23: 165 | D23: 78 | E23: 1.89076704 | F23: 28.65013774 | G23: 135 | H23: 67 | I23: 64 | J23: 1 | K23: 0 | L23: 0 | M23: 2 | N23: 0 | O23: 0 | P23: 0 | Q23: 0 | R23: 0 | S23: 0 | T23: 0 | U23: 0 | V23: 0 | W23: 0 | X23: 0 | Y23: 1 | Z23: 0 | AA23: 0 | AB23: 1 | AC23: 0 | AD23: 0 | AE23: 0 | AF23: 0 | AG23: 0 | AH23: 100 | AI23: 40 | AJ23: 60 | AK23: =AJ23*I23 -> 3840 | AL23: 89.66666667 | AM23: 46 | AO23: 12 | AP23: 12 | AS23: 49 | AV23: 48 | BD23: 2 | BJ23: 2 | BK23: 1 | BN23: 37 | BO23: 37 | BP23: 29.297 | BQ23: 37 | BR23: 37 | BS23: 37 | BT23: 31.696 | BU23: 27.496 | BV23: 37 | BW23: 29.692 | BX23: 37 | BY23: 23.768 | BZ23: 37 | CA23: 37 | CB23: 27.765 | CC23: 20.48 | CD23: 37 | CE23: 37 | CF23: 26.405 | CG23: 37 | CH23: 33.1 | CI23: 37 | CJ23: 37 | CK23: 26.452 | CL23: 37 | CM23: 37 | CN23: 29.001 | CO23: 25.477 | CP23: 23.824 | CQ23: 27.242 | CR23: 26.792 | CS23: 26.374 | CT23: 37 | CU23: 26.677 | CV23: 26.743 | CW23: 32.627 | CX23: 27.338 | CY23: 28.147 | CZ23: 37 | DA23: 37 | DB23: 37 | DC23: 22.676 | DD23: 37 | DE23: 37 | DF23: 28.329 | DG23: 283.125 | DH23: 376 | DI23: 994 | DJ23: 56555 | DK23: 28015 | DL23: 2350 | DM23: 330 | DN23: 0.98 | DO23: 5.703
A24: 72.93424658 | B24: 1 | C24: 158 | D24: 68 | E24: 1.727554469 | F24: 27.23922448 | G24: 158 | H24: 75 | I24: 70 | J24: 1 | K24: 0 | L24: 0 | M24: 0 | N24: 1 | O24: 0 | P24: 0 | Q24: 0 | R24: 0 | S24: 0 | T24: 1 | U24: 0 | V24: 0 | W24: 0 | X24: 0 | Y24: 1 | Z24: 1 | AA24: 0 | AB24: 0 | AC24: 0 | AD24: 1 | AE24: 0 | AF24: 0 | AG24: 0 | AL24: 102.6666667 | AM24: 50 | AO24: 15 | AP24: 12 | AS24: 41 | AV24: 52 | AZ24: 18 | BD24: 2 | BF24: 1.2 | BJ24: 3 | BK24: 1 | BN24: 37 | BO24: 37 | BP24: 31.486 | BQ24: 37 | BR24: 37 | BS24: 37 | BT24: 37 | BU24: 37 | BV24: 32.144 | BW24: 37 | BX24: 37 | BY24: 28.086 | BZ24: 37 | CA24: 27.302 | CB24: 37 | CC24: 26.224 | CD24: 37 | CE24: 37 | CF24: 30.559 | CG24: 37 | CH24: 37 | CI24: 37 | CJ24: 37 | CK24: 28.871 | CL24: 37 | CM24: 37 | CN24: 37 | CO24: 28.926 | CP24: 26.652 | CQ24: 30.163 | CR24: 30.982 | CS24: 37 | CT24: 37 | CU24: 29.663 | CV24: 26.588 | CW24: 28.938 | CX24: 25.539 | CY24: 27.574 | CZ24: 32.382 | DA24: 37 | DB24: 37 | DC24: 25.184 | DD24: 37 | DE24: 37 | DF24: 30.144 | DJ24: 51994 | DK24: 26627 | DL24: 1317.5 | DM24: 336.5 | DN24: 0.051789 | DO24: 6.3336 | DP24: A | DR24: 101 | DS24: 63 | DT24: 4410 | DU24: 50.1 | DV24: 50.42 | DW24: 179.48 | DX24: 158.64 | DY24: 0.0289 | DZ24: 0.1564 | EA24: 1732.482795
A25: 72.22465753 | B25: 1 | C25: 172 | D25: 100 | E25: 2.185812841 | F25: 33.80205516 | G25: 154 | H25: 66 | I25: 71 | J25: 0 | K25: 0 | L25: 0 | M25: 0 | N25: 0 | O25: 0 | P25: 0 | Q25: 0 | R25: 0 | S25: 0 | T25: 0 | U25: 0 | V25: 0 | W25: 0 | X25: 1 | Y25: 0 | Z25: 0 | AA25: 0 | AB25: 0 | AC25: 0 | AD25: 0 | AE25: 0 | AF25: 0 | AG25: 0 | AH25: 100 | AI25: 45 | AJ25: 55 | AK25: =AJ25*I25 -> 3905 | AL25: 95.33333333 | AM25: 48 | AO25: 14 | AP25: 11 | AR25: 20 | AS25: 40 | AV25: 43 | AZ25: 18 | BA25: 0.5 | BB25: 0.9 | BD25: 2 | BF25: 1.2 | BK25: 1 | BL25: 2.6 | BM25: 30 | BN25: 37 | BO25: 37 | BP25: 37 | BQ25: 37 | BR25: 37 | BS25: 37 | BT25: 37 | BU25: 29.929 | BV25: 32.395 | BW25: 37 | BX25: 37 | BY25: 25.806 | BZ25: 37 | CA25: 28.986 | CB25: 37 | CC25: 27.549 | CD25: 37 | CE25: 37 | CF25: 32.988 | CG25: 37 | CH25: 37 | CI25: 37 | CJ25: 37 | CK25: 37 | CL25: 37 | CM25: 37 | CN25: 37 | CO25: 32.525 | CP25: 27.805 | CQ25: 31.177 | CR25: 37 | CS25: 37 | CT25: 37 | CU25: 37 | CV25: 29.53 | CW25: 32.358 | CX25: 26.271 | CY25: 37 | CZ25: 30.731 | DA25: 37 | DB25: 37 | DC25: 26.429 | DD25: 37 | DE25: 37 | DF25: 32.238 | DJ25: 49204 | DK25: 35147 | DL25: 2692.5 | DM25: 261.5 | DN25: 0.049563 | DO25: 6.628 | DP25: N | DR25: 101 | DU25: 38.58 | DV25: 38.18 | DW25: 178.17 | DX25: 157.13 | DY25: 0.0357 | DZ25: 0.1485 | EA25: 1131.587117
A26: 57.58082192 | B26: 0 | C26: 175 | D26: 84 | E26: 2.020725942 | F26: 27.42857143 | G26: 116 | H26: 95 | I26: 83 | J26: 1 | K26: 0 | L26: 0 | M26: 1 | N26: 0 | O26: 0 | P26: 0 | Q26: 0 | R26: 0 | S26: 0 | T26: 0 | U26: 0 | V26: 0 | W26: 0 | X26: 1 | Y26: 1 | Z26: 0 | AA26: 0 | AB26: 0 | AC26: 0 | AD26: 1 | AE26: 1 | AF26: 0 | AG26: 0 | AL26: 102 | BN26: 29.433 | BO26: 37 | BP26: 27.256 | BQ26: 37 | BR26: 37 | BS26: 29.817 | BT26: 32.003 | BU26: 25.211 | BV26: 29.68 | BW26: 27.048 | BX26: 30.461 | BY26: 23.488 | BZ26: 37 | CA26: 29.341 | CB26: 26.066 | CC26: 18.098 | CD26: 37 | CE26: 37 | CF26: 24.279 | CG26: 37 | CH26: 31.725 | CI26: 37 | CJ26: 37 | CK26: 24.231 | CL26: 29.675 | CM26: 37 | CN26: 25.397 | CO26: 22.612 | CP26: 18.879 | CQ26: 24.218 | CR26: 24.848 | CS26: 24.726 | CT26: 37 | CU26: 25.294 | CV26: 23.772 | CW26: 34.09 | CX26: 28.196 | CY26: 25.736 | CZ26: 28.578 | DA26: 37 | DB26: 37 | DC26: 20.813 | DD26: 37 | DE26: 37 | DF26: 26.879 | DG26: 233.75 | DH26: 1151.5 | DI26: 4331 | DJ26: 37760 | DK26: 32735 | DL26: 1665 | DM26: 105 | DN26: 0.884 | DO26: 4.577
A27: 73.9369863 | B27: 0 | C27: 181 | D27: 77 | E27: 1.967584532 | F27: 23.50355606 | G27: 107 | H27: 68 | I27: 65 | J27: 1 | K27: 0 | L27: 0 | M27: 2 | N27: 1 | O27: 0 | P27: 0 | Q27: 0 | R27: 0 | S27: 0 | T27: 0 | U27: 0 | V27: 0 | W27: 0 | X27: 1 | Y27: 1 | Z27: 0 | AA27: 0 | AB27: 1 | AC27: 0 | AD27: 0 | AE27: 0 | AF27: 0 | AG27: 0 | AH27: 100 | AI27: 36 | AJ27: 64 | AK27: =AJ27*I27 -> 4160 | AL27: 81 | AM27: 47 | AO27: 14 | AR27: 26 | AS27: 45 | AT27: 1 | AU27: 3 | AV27: 55 | BA27: 0.86 | BB27: 1.2 | BC27: 268 | BF27: 3.6 | BG27: 53 | BH27: 36 | BI27: 3 | BJ27: 1 | BK27: 1 | BN27: 31.708 | BO27: 37 | BP27: 30.776 | BQ27: 37 | BR27: 37 | BS27: 37 | BT27: 37 | BU27: 25.467 | BV27: 29.567 | BW27: 37 | BX27: 32.805 | BY27: 23.945 | BZ27: 37 | CA27: 29.371 | CB27: 27.08 | CC27: 22.6 | CD27: 37 | CE27: 37 | CF27: 27.977 | CG27: 37 | CH27: 37 | CI27: 37 | CJ27: 37 | CK27: 27.466 | CL27: 37 | CM27: 37 | CN27: 27.221 | CO27: 25.913 | CP27: 23.968 | CQ27: 26.932 | CR27: 25.24 | CS27: 29.428 | CT27: 37 | CU27: 25.554 | CV27: 28.291 | CW27: 31.976 | CX27: 26.219 | CY27: 29.91 | CZ27: 28.702 | DA27: 37 | DB27: 37 | DC27: 24.382 | DD27: 37 | DE27: 37 | DF27: 26.303 | DG27: 279.375 | DH27: 3544 | DI27: 4669 | DJ27: 32985 | DK27: 19495 | DL27: 1665 | DM27: 1680 | DN27: 0.46 | DO27: 3.277
A28: 63.96986301 | B28: 1 | C28: 158 | D28: 71 | E28: 1.765251005 | F28: 28.44095498 | G28: 129 | H28: 65 | I28: 62 | J28: 1 | K28: 0 | L28: 0 | M28: 2 | N28: 0 | O28: 1 | P28: 0 | Q28: 0 | R28: 0 | S28: 0 | T28: 0 | U28: 0 | V28: 0 | W28: 0 | X28: 1 | Y28: 0 | Z28: 0 | AA28: 0 | AB28: 1 | AC28: 0 | AD28: 1 | AE28: 1 | AF28: 1 | AG28: 0 | AH28: 79 | AJ28: 79 | AK28: =AJ28*I28 -> 4898 | AL28: 86.33333333 | AM28: 47 | AO28: 12 | AP28: 12 | AR28: 31 | AS28: 29 | AT28: 1 | AU28: 29 | AV28: 51 | AY28: 32 | BD28: 2 | BF28: 1.5 | BJ28: 1 | BK28: 2 | BL28: 2.1 | BM28: 24 | BN28: 37 | BO28: 35.653 | BP28: 37 | BQ28: 37 | BR28: 37 | BS28: 37 | BT28: 37 | BU28: 32.271 | BV28: 32.204 | BW28: 37 | BX28: 37 | BY28: 27.315 | BZ28: 37 | CA28: 28.662 | CB28: 37 | CC28: 37 | CD28: 37 | CE28: 37 | CF28: 37 | CG28: 37 | CH28: 37 | CI28: 37 | CJ28: 37 | CK28: 37 | CL28: 37 | CM28: 37 | CN28: 37 | CO28: 30.948 | CP28: 32.887 | CQ28: 37 | CR28: 32.653 | CS28: 37 | CT28: 37 | CU28: 37 | CV28: 37 | CW28: 31.707 | CX28: 25.665 | CY28: 37 | CZ28: 37 | DA28: 37 | DB28: 37 | DC28: 28.447 | DD28: 37 | DE28: 37 | DF28: 32.833 | DJ28: 60122 | DK28: 40927 | DL28: 2177.5 | DM28: 343.5 | DN28: 0.071236 | DO28: 6.1468 | DP28: A | DR28: 80 | DS28: 88 | DT28: 5456 | DU28: 51.43 | DV28: 52.27 | DW28: 165.82 | DX28: 172.49 | DY28: 0.0376 | DZ28: 0.0608 | EA28: 522.4206109
A29: 49.01369863 | B29: 0 | C29: 174 | D29: 76 | E29: 1.916594202 | F29: 25.10239133 | J29: 0 | K29: 0 | L29: 0 | M29: 1 | N29: 0 | O29: 0 | P29: 0 | Q29: 0 | R29: 0 | S29: 0 | T29: 0 | U29: 0 | V29: 0 | W29: 0 | X29: 0 | Y29: 0 | Z29: 0 | AA29: 0 | AB29: 0 | AC29: 0 | AD29: 1 | AE29: 1 | AF29: 0 | AG29: 0 | AH29: 125 | AI29: 48 | AJ29: 77 | AK29: =AJ29*I29 -> 0 | AL29: 0 | AM29: 51 | AN29: 41 | AO29: 12 | AP29: 10 | AQ29: 35 | AR29: 16 | AS29: 40 | AV29: 35 | AZ29: 20 | BA29: 0.7 | BB29: 1 | BC29: 250 | BD29: 1 | BE29: 0.08 | BF29: 1.5 | BG29: 9 | BH29: 4 | BJ29: 3 | BK29: 2 | BN29: 37 | BO29: 37 | BP29: 30.818 | BQ29: 37 | BR29: 37 | BS29: 37 | BT29: 31.629 | BU29: 26.396 | BV29: 32.662 | BW29: 37 | BX29: 37 | BY29: 24.785 | BZ29: 37 | CA29: 26.579 | CB29: 37 | CC29: 23.495 | CD29: 37 | CE29: 37 | CF29: 30.32 | CG29: 37 | CH29: 37 | CI29: 37 | CJ29: 37 | CK29: 27.288 | CL29: 37 | CM29: 37 | CN29: 29.476 | CO29: 26.565 | CP29: 23.907 | CQ29: 27.224 | CR29: 26.872 | CS29: 26.767 | CT29: 37 | CU29: 27.832 | CV29: 25.307 | CW29: 37 | CX29: 27.571 | CY29: 28.017 | CZ29: 27.376 | DA29: 37 | DB29: 37 | DC29: 22.796 | DD29: 37 | DE29: 37 | DF29: 30.144 | DG29: 165.125 | DH29: 415 | DI29: 1752.5 | DJ29: 37545 | DK29: 26420 | DL29: 2210 | DM29: 160 | DN29: 0.8 | DO29: 5.25
A30: 67.88493151 | B30: 1 | C30: 175 | D30: 77 | E30: 1.934697794 | F30: 25.14285714 | G30: 130 | H30: 80 | I30: 75 | J30: 1 | K30: 0 | L30: 0 | M30: 2 | N30: 0 | O30: 0 | P30: 0 | Q30: 0 | R30: 0 | S30: 0 | T30: 0 | U30: 0 | V30: 0 | W30: 0 | X30: 0 | Y30: 0 | Z30: 0 | AA30: 0 | AB30: 1 | AC30: 0 | AD30: 1 | AE30: 0 | AF30: 0 | AG30: 0 | AL30: 96.66666667 | AM30: 48 | AO30: 12 | AP30: 11 | AQ30: 41 | AR30: 22 | AS30: 45 | AV30: 44 | BF30: 1 | BN30: 37 | BO30: 37 | BP30: 31.469 | BQ30: 37 | BR30: 37 | BS30: 37 | BT30: 37 | BU30: 37 | BV30: 33.563 | BW30: 37 | BX30: 37 | BY30: 26.939 | BZ30: 37 | CA30: 29.834 | CB30: 37 | CC30: 28.206 | CD30: 37 | CE30: 37 | CF30: 37 | CG30: 37 | CH30: 37 | CI30: 37 | CJ30: 37 | CK30: 37 | CL30: 37 | CM30: 37 | CN30: 37 | CO30: 31.508 | CP30: 28.706 | CQ30: 37 | CR30: 29.946 | CS30: 37 | CT30: 37 | CU30: 29.355 | CV30: 37 | CW30: 30.383 | CX30: 25.316 | CY30: 37 | CZ30: 30.551 | DA30: 37 | DB30: 37 | DC30: 27.791 | DD30: 37 | DE30: 37 | DF30: 30.579 | DJ30: 41764 | DK30: 33769 | DL30: 3400 | DM30: 333 | DN30: 0.056253 | DO30: 6.6812 | DP30: N | DR30: 95 | DU30: 36.5 | DV30: 37.71 | DW30: 168.68 | DX30: 179.77 | DY30: 0.0279 | DZ30: 0.0722 | EA30: 201.0854229
A31: 51.07123288 | B31: 0 | C31: 179 | D31: 67 | E31: 1.825209273 | F31: 20.91070816 | G31: 122 | H31: 82 | I31: 72 | J31: 0 | K31: 0 | L31: 0 | M31: 1 | N31: 0 | O31: 0 | P31: 0 | Q31: 0 | R31: 0 | S31: 0 | T31: 0 | U31: 0 | V31: 0 | W31: 0 | X31: 0 | Y31: 0 | Z31: 0 | AA31: 0 | AB31: 0 | AC31: 0 | AD31: 0 | AE31: 0 | AF31: 0 | AG31: 0 | AH31: 80 | AI31: 36 | AJ31: 44 | AK31: =AJ31*I31 -> 3168 | AL31: 95.33333333 | AM31: 42 | AO31: 10 | AP31: 10 | AR31: 14 | AS31: 46 | AV31: 41 | AZ31: 21 | BD31: 1 | BJ31: 3 | BK31: 1 | BN31: 37 | BO31: 34.031 | BP31: 33.958 | BQ31: 37 | BR31: 37 | BS31: 37 | BT31: 30.851 | BU31: 27.267 | BV31: 33.539 | BW31: 37 | BX31: 37 | BY31: 26.66 | BZ31: 37 | CA31: 29.01 | CB31: 37 | CC31: 24.331 | CD31: 37 | CE31: 31.133 | CF31: 29.592 | CG31: 37 | CH31: 37 | CI31: 37 | CJ31: 37 | CK31: 31.019 | CL31: 37 | CM31: 37 | CN31: 17.236 | CO31: 28.961 | CP31: 26.293 | CQ31: 37 | CR31: 29.587 | CS31: 37 | CT31: 37 | CU31: 28.41 | CV31: 28.804 | CW31: 30.18 | CX31: 25.311 | CY31: 37 | CZ31: 26.781 | DA31: 37 | DB31: 37 | DC31: 25.802 | DD31: 37 | DE31: 37 | DF31: 31.776
A32: 70.86027397 | B32: 1 | C32: 170 | D32: 90 | E32: 2.061552813 | F32: 31.14186851 | G32: 140 | H32: 78 | I32: 90 | J32: 1 | K32: 0 | L32: 0 | M32: 0 | N32: 0 | O32: 0 | P32: 0 | Q32: 1 | R32: 0 | S32: 0 | T32: 1 | U32: 0 | V32: 0 | W32: 0 | X32: 0 | Y32: 1 | Z32: 1 | AA32: 0 | AB32: 1 | AC32: 0 | AD32: 1 | AE32: 0 | AF32: 1 | AG32: 1 | AL32: 98.66666667 | AM32: 50 | AO32: 12 | AP32: 12 | AR32: 28 | AS32: 53 | AV32: 52 | AZ32: 25 | BD32: 2 | BF32: 1.5 | BJ32: 2 | BK32: 1 | BM32: 30 | BN32: 37 | BO32: 37 | BP32: 37 | BQ32: 37 | BR32: 37 | BS32: 37 | BT32: 37 | BU32: 30.971 | BV32: 30.08 | BW32: 37 | BX32: 37 | BY32: 25.663 | BZ32: 37 | CA32: 29.181 | CB32: 37 | CC32: 25.241 | CD32: 37 | CE32: 37 | CF32: 32.34 | CG32: 37 | CH32: 37 | CI32: 37 | CJ32: 37 | CK32: 37 | CL32: 37 | CM32: 37 | CN32: 37 | CO32: 26.72 | CP32: 25.682 | CQ32: 31.367 | CR32: 28.375 | CS32: 27.493 | CT32: 37 | CU32: 27.202 | CV32: 29.298 | CW32: 31.405 | CX32: 25.916 | CY32: 37 | CZ32: 27.544 | DA32: 37 | DB32: 37 | DC32: 25.762 | DD32: 37 | DE32: 37 | DF32: 29.079 | DJ32: 48422 | DK32: 29188 | DL32: 1795 | DM32: 312 | DN32: 0.056354 | DO32: 5.1488 | DP32: N | DR32: 88 | DU32: 48.57 | DV32: 44.3 | DW32: 163.56 | DX32: 154.73 | DY32: 0.0256 | DZ32: 0.1228 | EA32: 94.02319576
A33: 81.7890411 | B33: 1 | C33: 166 | D33: 82 | E33: 1.944507935 | F33: 29.75758456 | G33: 145 | H33: 66 | I33: 55 | J33: 1 | K33: 0 | L33: 0 | M33: 2 | N33: 0 | O33: 0 | P33: 0 | Q33: 0 | R33: 0 | S33: 0 | T33: 0 | U33: 0 | V33: 0 | W33: 0 | X33: 1 | Y33: 1 | Z33: 0 | AA33: 0 | AB33: 1 | AC33: 0 | AD33: 1 | AE33: 0 | AF33: 0 | AG33: 0 | AL33: 92.33333333 | AM33: 48 | AO33: 12 | AP33: 12 | AR33: 22 | AS33: 36 | AV33: 49 | AY33: 46 | BA33: 0.91 | BB33: 0.88 | BC33: 313 | BD33: 2 | BF33: 1.6 | BJ33: 2 | BK33: 3 | BL33: 2.8 | BM33: 38 | BN33: 37 | BO33: 37 | BP33: 37 | BQ33: 37 | BR33: 37 | BS33: 32.338 | BT33: 29.551 | BU33: 26.064 | BV33: 32.358 | BW33: 28.975 | BX33: 30.916 | BY33: 23.746 | BZ33: 37 | CA33: 28.196 | CB33: 26.648 | CC33: 24.051 | CD33: 37 | CE33: 37 | CF33: 30.861 | CG33: 37 | CH33: 37 | CI33: 37 | CJ33: 37 | CK33: 37 | CL33: 37 | CM33: 37 | CN33: 26.838 | CO33: 25.432 | CP33: 23.305 | CQ33: 26.006 | CR33: 26.09 | CS33: 26.964 | CT33: 37 | CU33: 25.525 | CV33: 26.715 | CW33: 30.756 | CX33: 25.83 | CY33: 37 | CZ33: 37 | DA33: 37 | DB33: 37 | DC33: 23.888 | DD33: 37 | DE33: 37 | DF33: 27.338 | DJ33: 43488 | DK33: 21604 | DL33: 1262.5 | DM33: 253 | DN33: 0.057034 | DO33: 7.2964 | DP33: A | DR33: 90 | DS33: 49 | DT33: 2695 | DU33: 47.57 | DV33: 47 | DW33: 168.45 | DX33: 161.34 | DY33: 0.0291 | DZ33: 0.1274 | EA33: 878.9991952
A34: 66.66849315 | B34: 1 | C34: 158 | D34: 63.5 | E34: 1.669414402 | F34: 25.43662875 | G34: 145 | H34: 76 | I34: 90 | J34: 0 | K34: 0 | L34: 0 | M34: 1 | N34: 0 | O34: 0 | P34: 0 | Q34: 0 | R34: 0 | S34: 0 | T34: 0 | U34: 0 | V34: 0 | W34: 0 | X34: 0 | Y34: 0 | Z34: 0 | AA34: 0 | AB34: 0 | AC34: 0 | AD34: 0 | AE34: 0 | AF34: 0 | AG34: 0 | AL34: =(G34+ 2*H34)/3 -> 99 | AO34: 12 | AP34: 11 | AS34: 36 | AU34: 31 | AV34: 56 | BA34: 0.83 | BB34: 0.5 | BC34: 189 | BD34: 2 | BF34: 1.2 | BK34: 1 | BN34: 30.467 | BO34: 37 | BP34: 30.955 | BQ34: 37 | BR34: 37 | BS34: 37 | BT34: 37 | BU34: 26.228 | BV34: 29.339 | BW34: 37 | BX34: 37 | BY34: 23.699 | BZ34: 37 | CA34: 28.425 | CB34: 37 | CC34: 25.653 | CD34: 37 | CE34: 37 | CF34: 31.173 | CG34: 37 | CH34: 37 | CI34: 37 | CJ34: 37 | CK34: 37 | CL34: 37 | CM34: 37 | CN34: 26.153 | CO34: 24.888 | CP34: 24.517 | CQ34: 26.859 | CR34: 26.734 | CS34: 28.816 | CT34: 37 | CU34: 25.791 | CV34: 25.423 | CW34: 30.448 | CX34: 26.574 | CY34: 28.575 | CZ34: 37 | DA34: 37 | DB34: 37 | DC34: 24.27 | DD34: 37 | DE34: 37 | DF34: 27.779 | DJ34: 36998 | DK34: 29398 | DL34: 1357.5 | DM34: 184 | DN34: 0.061061 | DO34: 5.2516
A35: 77.32328767 | B35: 0 | C35: 178 | D35: 105 | E35: 2.278522913 | F35: 33.13975508 | G35: 125 | H35: 63 | I35: 89 | J35: 1 | K35: 0 | L35: 0 | M35: 2 | N35: 0 | O35: 0 | P35: 0 | Q35: 0 | R35: 0 | S35: 0 | T35: 0 | U35: 0 | V35: 0 | W35: 1 | X35: 0 | Y35: 0 | Z35: 0 | AA35: 1 | AB35: 0 | AC35: 0 | AD35: 1 | AE35: 0 | AF35: 1 | AG35: 0 | AL35: 83.66666667 | AM35: 39 | AO35: 12 | AP35: 11 | AS35: 49 | AV35: 45 | AY35: 26 | AZ35: 25 | BA35: 0.61 | BB35: 0.97 | BC35: 360 | BD35: 1 | BF35: 1.57 | BJ35: 3 | BK35: 1 | BN35: 31.635 | BO35: 31.717 | BP35: 26.802 | BQ35: 30.344 | BR35: 37 | BS35: 37 | BT35: 29.132 | BU35: 23.094 | BV35: 31.071 | BW35: 26.953 | BX35: 28.984 | BY35: 22.897 | BZ35: 37 | CA35: 31.304 | CB35: 25.484 | CC35: 18.138 | CD35: 37 | CE35: 37 | CF35: 23.933 | CG35: 32.569 | CH35: 29.435 | CI35: 37 | CJ35: 37 | CK35: 24.527 | CL35: 29.498 | CM35: 37 | CN35: 24.646 | CO35: 22.756 | CP35: 21.1 | CQ35: 24.915 | CR35: 23.287 | CS35: 25.697 | CT35: 37 | CU35: 22.941 | CV35: 24.485 | CW35: 32.281 | CX35: 26.285 | CY35: 25.52 | CZ35: 27.232 | DA35: 37 | DB35: 37 | DC35: 20.206 | DD35: 37 | DE35: 37 | DF35: 26.651 | DG35: 214.25 | DH35: 492.5 | DI35: 2100.5 | DJ35: 52515 | DK35: 21800 | DL35: 1530 | DM35: 340 | DN35: 0.5 | DO35: 5.575 | DP35: N | DQ35: RL | DR35: 91 | DS35: 49 | DT35: 4361 | DU35: 41.32 | DV35: 40.49 | DW35: 166.68 | DX35: 156.28 | DY35: 0.0268 | DZ35: 0.1786 | EA35: 411.5067851
A36: 80.6 | B36: 1-0 | C36: 155 | D36: 78 | E36: 1.832575601 | F36: 32.46618106 | G36: 155 | H36: 80 | I36: 63 | J36: 1 | K36: 0 | L36: 0 | M36: 0 | N36: 0 | O36: 0 | P36: 0 | Q36: 0 | R36: 0 | S36: 0 | T36: 0 | U36: 0 | V36: 0 | W36: 1 | X36: 0 | Y36: 0 | Z36: 0 | AA36: 0 | AB36: 0 | AC36: 0 | AD36: 1 | AE36: 1 | AF36: 0 | AG36: 0 | AH36: 104 | AJ36: 104 | AK36: =AJ36*I36 -> 6552 | AL36: 105 | AM36: 38 | AO36: 15 | AP36: 12 | AR36: 24 | AS36: 37 | AU36: 36 | AV36: 50 | BA36: 0.34 | BB36: 0.87 | BC36: 285 | BE36: 0.4 | BF36: 1.7 | BJ36: 1 | BK36: 1 | BN36: 37 | BO36: 37 | BP36: 33.465 | BQ36: 37 | BR36: 37 | BS36: 37 | BT36: 37 | BU36: 29.026 | BV36: 32.522 | BW36: 37 | BX36: 37 | BY36: 25.078 | BZ36: 37 | CA36: 29.069 | CB36: 27.488 | CC36: 24.277 | CD36: 37 | CE36: 37 | CF36: 31.24 | CG36: 37 | CH36: 37 | CI36: 37 | CJ36: 37 | CK36: 28.971 | CL36: 37 | CM36: 37 | CN36: 26.727 | CO36: 28.365 | CP36: 24.167 | CQ36: 30.316 | CR36: 28 | CS36: 26.821 | CT36: 37 | CU36: 27.039 | CV36: 26.95 | CW36: 30.822 | CX36: 26.388 | CY36: 28.627 | CZ36: 37 | DA36: 37 | DB36: 37 | DC36: 24.751 | DD36: 37 | DE36: 37 | DF36: 28.029 | DJ36: 51692 | DK36: 34537 | DL36: 9797.5 | DM36: 328 | DN36: 0.056409 | DO36: 5.4892 | DP36: A | DQ36: RL | DR36: 100 | DS36: 58 | DT36: 3654 | DU36: 49.14 | DV36: 49.87 | DW36: 166.83 | DX36: 151.92 | DY36: 0.0326 | DZ36: 0.1949 | EA36: 673.0954361
A37: 46.83013699 | B37: 0 | C37: 184 | D37: 73 | E37: 1.931608426 | F37: 21.56190926 | G37: 128 | H37: 78 | I37: NA | J37: 0 | K37: 0 | L37: 0 | M37: 0 | N37: 0 | O37: 0 | P37: 0 | Q37: 0 | R37: 0 | S37: 0 | T37: 0 | U37: 0 | V37: 0 | W37: 0 | X37: 0 | Y37: 0 | Z37: 0 | AA37: 0 | AB37: 0 | AC37: 0 | AD37: 0 | AE37: 0 | AF37: 0 | AG37: 0 | AH37: 90 | AI37: 38 | AJ37: 52 | AL37: 94.66666667 | AM37: 42 | AO37: 10 | AP37: 10 | AQ37: 25 | AS37: 40 | AV37: 40 | AZ37: 22 | BA37: 0.67 | BB37: 0.49 | BC37: 229 | BE37: 0.1 | BF37: 1.5 | BG37: 10 | BH37: 5 | BJ37: 3 | BK37: 1 | BL37: 2 | BM37: 25 | BN37: 37 | BO37: 37 | BP37: 29.554 | BQ37: 37 | BR37: 37 | BS37: 37 | BT37: 29.825 | BU37: 24.851 | BV37: 33.772 | BW37: 27.552 | BX37: 28.035 | BY37: 21.27 | BZ37: 37 | CA37: 27.189 | CB37: 26.169 | CC37: 21.531 | CD37: 37 | CE37: 37 | CF37: 27.544 | CG37: 37 | CH37: 37 | CI37: 37 | CJ37: 37 | CK37: 26.184 | CL37: 27.569 | CM37: 37 | CN37: 23.889 | CO37: 24.187 | CP37: 21.688 | CQ37: 24.892 | CR37: 23.834 | CS37: 25.949 | CT37: 37 | CU37: 23.33 | CV37: 24.768 | CW37: 31.952 | CX37: 26.623 | CY37: 27.184 | CZ37: 26.938 | DA37: 37 | DB37: 37 | DC37: 23.115 | DD37: 37 | DE37: 37 | DF37: 28.026 | DG37: 156.25 | DH37: 593 | DI37: 232.5 | DJ37: 59185 | DK37: 22545 | DL37: 3295 | DM37: 10 | DN37: 1.39 | DO37: 6.329
A38: 74.82465753 | B38: 1 | C38: 148 | D38: 79 | E38: 1.802159199 | F38: 36.06647188 | G38: 150 | H38: 68 | I38: 55 | J38: 1 | K38: 0 | L38: 0 | M38: 0 | N38: 0 | O38: 0 | P38: 1 | Q38: 0 | R38: 0 | S38: 0 | T38: 0 | U38: 0 | V38: 0 | W38: 0 | X38: 1 | Y38: 0 | Z38: 0 | AA38: 1 | AB38: 1 | AC38: 0 | AD38: 0 | AE38: 0 | AF38: 0 | AG38: 0 | AH38: 130 | AJ38: 130 | AK38: 7150 | AL38: 95.33333333 | AM38: 49 | AO38: 15 | AP38: 11 | AR38: 32 | AS38: 32 | AV38: 44 | AW38: 39 | AZ38: 23 | BA38: 0.8 | BB38: 1.3 | BC38: 419 | BD38: 2,,3 | BF38: 2 | BG38: 16 | BH38: 8 | BJ38: 2 | BK38: 1 | BL38: 2.2 | BM38: 25 | BN38: 37 | BO38: 37 | BP38: 37 | BQ38: 37 | BR38: 37 | BS38: 37 | BT38: 37 | BU38: 37 | BV38: 29.574 | BW38: 37 | BX38: 29.762 | BY38: 27.353 | BZ38: 37 | CA38: 28.479 | CB38: 37 | CC38: 29.569 | CD38: 37 | CE38: 37 | CF38: 37 | CG38: 37 | CH38: 37 | CI38: 37 | CJ38: 37 | CK38: 37 | CL38: 37 | CM38: 37 | CN38: 37 | CO38: 31.341 | CP38: 29.889 | CQ38: 37 | CR38: 37 | CS38: 29.106 | CT38: 37 | CU38: 37 | CV38: 37 | CW38: 37 | CX38: 25.986 | CY38: 32.886 | CZ38: 37 | DA38: 37 | DB38: 37 | DC38: 27.128 | DD38: 37 | DE38: 37 | DF38: 32.89 | DJ38: 43036 | DK38: 32078 | DL38: 2657.5 | DM38: 234.5 | DN38: 0.052685 | DO38: 5.9044 | DP38: A | DR38: 92 | DS38: 130 | DT38: 7150 | DU38: 44.74 | DV38: 45.19 | DW38: 166.39 | DX38: 165.48 | DY38: 0.0308 | DZ38: 0.1264 | EA38: 1086.927079
A39: 71.84383562 | B39: 1 | C39: 178 | D39: 85 | E39: 2.05006775 | F39: 26.82742078 | G39: 111 | H39: 70 | I39: 77 | J39: 1 | K39: 0 | L39: 0 | M39: 1 | N39: 1 | O39: 0 | P39: 0 | Q39: 0 | R39: 0 | S39: 0 | T39: 0 | U39: 0 | V39: 0 | W39: 0 | X39: 1 | Y39: 1 | Z39: 0 | AA39: 0 | AB39: 1 | AC39: 0 | AD39: 1 | AE39: 0 | AF39: 1 | AG39: 0 | AH39: 78 | AI39: 26 | AJ39: 52 | AK39: 4004 | AL39: 83.66666667 | AO39: 12 | AR39: 19 | AS39: 44 | AV39: 51 | BA39: 0.75 | BB39: 0.76 | BC39: 135 | BF39: 1.3 | BK39: 1 | BN39: 37 | BO39: 37 | BP39: 37 | BQ39: 37 | BR39: 37 | BS39: 37 | BT39: 37 | BU39: 37 | BV39: 31.953 | BW39: 37 | BX39: 37 | BY39: 28.123 | BZ39: 37 | CA39: 28.841 | CB39: 37 | CC39: 30.297 | CD39: 37 | CE39: 37 | CF39: 37 | CG39: 37 | CH39: 37 | CI39: 37 | CJ39: 37 | CK39: 37 | CL39: 37 | CM39: 37 | CN39: 37 | CO39: 33.402 | CP39: 29.885 | CQ39: 37 | CR39: 37 | CS39: 37 | CT39: 37 | CU39: 37 | CV39: 37 | CW39: 30.564 | CX39: 25.578 | CY39: 37 | CZ39: 37 | DA39: 37 | DB39: 37 | DC39: 27.621 | DD39: 37 | DE39: 37 | DF39: 34 | DJ39: 56106 | DK39: 36246 | DL39: 4282.5 | DM39: 411 | DN39: 0.050031 | DO39: 5.8788
A40: 90.15342466 | B40: 1 | C40: 163 | D40: 75 | E40: 1.842778699 | F40: 28.22838647 | G40: 142 | H40: 85 | I40: 88 | J40: 1 | K40: 0 | L40: 0 | M40: 0 | N40: 1 | O40: 0 | P40: 0 | Q40: 0 | R40: 0 | S40: 0 | T40: 0 | U40: 0 | V40: 0 | W40: 0 | X40: 1 | Y40: 1 | Z40: 0 | AA40: 0 | AB40: 0 | AC40: 0 | AD40: 0 | AE40: 0 | AF40: 1 | AG40: 0 | AH40: 100 | AI40: 40 | AJ40: 60 | AK40: 5280 | AL40: 104 | AM40: 41 | AO40: 13 | AP40: 9 | AR40: 30 | AS40: 40 | AV40: 47 | AZ40: 18 | BA40: 0.98 | BB40: 1.2 | BC40: 162 | BD40: 2 | BF40: 2.5 | BG40: 28 | BH40: 18 | BJ40: 2 | BK40: 1 | BL40: 2.5 | BM40: 35 | BN40: 30.937 | BO40: 37 | BP40: 29.371 | BQ40: 33.042 | BR40: 37 | BS40: 37 | BT40: 37 | BU40: 23.948 | BV40: 30.137 | BW40: 37 | BX40: 29.469 | BY40: 22.44 | BZ40: 37 | CA40: 28.776 | CB40: 26.486 | CC40: 20.774 | CD40: 37 | CE40: 37 | CF40: 26.403 | CG40: 37 | CH40: 30.788 | CI40: 37 | CJ40: 37 | CK40: 26.032 | CL40: 30.881 | CM40: 37 | CN40: 26.073 | CO40: 23.864 | CP40: 22.768 | CQ40: 25.399 | CR40: 24.333 | CS40: 27.375 | CT40: 37 | CU40: 23.816 | CV40: 26.966 | CW40: 31.82 | CX40: 26.097 | CY40: 29.93 | CZ40: 27.664 | DA40: 37 | DB40: 37 | DC40: 23.404 | DD40: 37 | DE40: 37 | DF40: 29.103 | DJ40: 60824 | DK40: 34476 | DL40: 2657.5 | DM40: 535 | DN40: 0.056975 | DO40: 6.0484
A41: 74.82739726 | B41: 0 | C41: 165 | D41: 77 | E41: 1.87860764 | F41: 28.28282828 | G41: 150 | H41: 85 | I41: 64 | J41: 1 | K41: 0 | L41: 0 | M41: 2 | N41: 0 | O41: 0 | P41: 0 | Q41: 0 | R41: 0 | S41: 1 | T41: 0 | U41: 0 | V41: 0 | W41: 0 | X41: 1 | Y41: 1 | Z41: 0 | AA41: 0 | AB41: 1 | AC41: 0 | AD41: 1 | AE41: 0 | AF41: 0 | AG41: 0 | AH41: 130 | AI41: 52 | AJ41: 78 | AK41: 4992 | AL41: 106.6666667 | AO41: 13 | AP41: 10 | AR41: 20 | AS41: 41 | AV41: 50 | AZ41: 22 | BA41: 0.57 | BB41: 1 | BC41: 258 | BD41: 2 | BE41: 0.65 | BF41: 4 | BG41: 60 | BH41: 40 | BI41: 3,,4 | BJ41: 2 | BK41: 2 | BN41: 37 | BO41: 37 | BP41: 28.246 | BQ41: 30.941 | BR41: 37 | BS41: 37 | BT41: 29.976 | BU41: 24.661 | BV41: 31.936 | BW41: 29.496 | BX41: 30.126 | BY41: 22.432 | BZ41: 37 | CA41: 27.497 | CB41: 26.157 | CC41: 19.249 | CD41: 37 | CE41: 37 | CF41: 25.242 | CG41: 32.973 | CH41: 37 | CI41: 37 | CJ41: 37 | CK41: 24.342 | CL41: 30.948 | CM41: 37 | CN41: 26.72 | CO41: 23.247 | CP41: 21.926 | CQ41: 25.657 | CR41: 24.461 | CS41: 25.043 | CT41: 37 | CU41: 24.317 | CV41: 24.861 | CW41: 32.861 | CX41: 26.661 | CY41: 25.502 | CZ41: 27.71 | DA41: 37 | DB41: 37 | DC41: 20.714 | DD41: 37 | DE41: 37 | DF41: 27.731 | DG41: 163.125 | DH41: 232.5 | DI41: 643.5 | DJ41: 72065 | DK41: 28890 | DL41: 2755 | DM41: 135 | DN41: 0.44 | DO41: 5.225
A42: 75.61917808 | B42: 1 | C42: 172 | D42: 84 | E42: 2.00333056 | F42: 28.39372634 | G42: 122 | H42: 100 | I42: 84 | J42: 0 | K42: 0 | L42: 0 | M42: 0 | N42: 0 | O42: 0 | P42: 0 | Q42: 1 | R42: 0 | S42: 0 | T42: 0 | U42: 0 | V42: 0 | W42: 0 | AH42: 156 | AI42: 70 | AJ42: 86 | AK42: 7224 | AL42: 107.3333333 | AM42: 59 | AO42: 14 | AP42: 13 | AR42: 20 | AS42: 41 | AV42: 47 | BK42: 1 | BN42: 37 | BO42: 37 | BP42: 37 | BQ42: 37 | BR42: 37 | BS42: 37 | BT42: 37 | BU42: 32.546 | BV42: 33.034 | BW42: 37 | BX42: 37 | BY42: 26.666 | BZ42: 37 | CA42: 27.891 | CB42: 37 | CC42: 30.129 | CD42: 37 | CE42: 37 | CF42: 37 | CG42: 37 | CH42: 37 | CI42: 37 | CJ42: 37 | CK42: 37 | CL42: 37 | CM42: 37 | CN42: 37 | CO42: 32.283 | CP42: 31.615 | CQ42: 37 | CR42: 37 | CS42: 37 | CT42: 37 | CU42: 34.08 | CV42: 37 | CW42: 31.053 | CX42: 26.425 | CY42: 37 | CZ42: 37 | DA42: 37 | DB42: 37 | DC42: 26.902 | DD42: 37 | DE42: 37 | DF42: 37 | DJ42: 35274 | DK42: 24593 | DL42: 1330 | DM42: 210 | DN42: 0.056502 | DO42: 6.3312 | DP42: A | DR42: 115 | DS42: 86 | DT42: 7224 | DU42: 44.41 | DV42: 45.32 | DW42: 165.34 | DX42: 164.47 | DY42: 0.0364 | DZ42: 0.1429 | EA42: 143.1413643
A43: 51.65753425 | B43: 1 | C43: 164 | D43: 90 | E43: 2.024845673 | F43: 33.46222487 | G43: 125 | H43: 69 | I43: 75 | J43: 1 | K43: 0 | L43: 0 | M43: 0 | N43: 0 | O43: 0 | P43: 0 | Q43: 0 | R43: 0 | S43: 0 | T43: 0 | U43: 0 | V43: 0 | W43: 0 | X43: 0 | Y43: 0 | Z43: 0 | AA43: 0 | AB43: 1 | AC43: 0 | AD43: 1 | AE43: 0 | AF43: 0 | AG43: 0 | AH43: 85 | AI43: 32 | AJ43: 53 | AK43: 3975 | AL43: 87.66666667 | AM43: 44 | AO43: 12 | AP43: 10 | AR43: 21 | AS43: 33 | AV43: 48 | AW43: 1.5 | AY43: 23 | AZ43: 23 | BA43: 0.9 | BB43: 0.6 | BC43: 197 | BD43: 1 | BF43: 1.5 | BJ43: 2,,3 | BK43: 1 | BL43: 2 | BM43: 22 | BN43: 37 | BO43: 37 | BP43: 37 | BQ43: 37 | BR43: 37 | BS43: 37 | BT43: 37 | BU43: 27.477 | BV43: 33.135 | BW43: 37 | BX43: 29.258 | BY43: 23.223 | BZ43: 37 | CA43: 27.441 | CB43: 28.929 | CC43: 22.82 | CD43: 37 | CE43: 37 | CF43: 29.917 | CG43: 37 | CH43: 37 | CI43: 37 | CJ43: 37 | CK43: 26.165 | CL43: 37 | CM43: 37 | CN43: 27.952 | CO43: 25.758 | CP43: 23.081 | CQ43: 28.196 | CR43: 25.842 | CS43: 26.436 | CT43: 37 | CU43: 25.708 | CV43: 25.028 | CW43: 30.024 | CX43: 25.75 | CY43: 30.796 | CZ43: 27.21 | DA43: 37 | DB43: 37 | DC43: 23.835 | DD43: 37 | DE43: 37 | DF43: 27.675 | DJ43: 29012 | DK43: 28226 | DL43: 2677.5 | DM43: 424.5 | DN43: 0.052389 | DO43: 6.5188 | DP43: A | DR43: 88 | DS43: 53 | DT43: 3975 | DU43: 49.11 | DV43: 48.15 | DW43: 169.71 | DX43: 179.27 | DY43: 0.0333 | DZ43: 0.1459 | EA43: 381.9353168
A44: 56.74520548 | B44: 1 | C44: 178 | D44: 85 | E44: 2.05006775 | F44: 26.82742078 | G44: 152 | H44: 91 | I44: 63 | J44: 1 | K44: 0 | L44: 0 | M44: 0 | N44: 0 | O44: 0 | P44: 0 | Q44: 0 | R44: 0 | S44: 0 | T44: 0 | U44: 0 | V44: 0 | W44: 0 | X44: 0 | Y44: 0 | Z44: 0 | AA44: 0 | AB44: 1 | AC44: 0 | AD44: 0 | AE44: 0 | AF44: 1 | AG44: 0 | AH44: 101 | AI44: 40 | AJ44: 61 | AK44: 3843 | AL44: 111.3333333 | AM44: 49 | AQ44: 45 | AR44: 18 | AS44: 41 | AU44: 36 | AV44: 49 | AY44: 30 | BA44: 0.7 | BB44: 0.63 | BC44: 350 | BD44: 1 | BF44: 1.4 | BJ44: 2,,3 | BK44: 1 | BN44: 37 | BO44: 37 | BP44: 37 | BQ44: 37 | BR44: 37 | BS44: 37 | BT44: 37 | BU44: 30.066 | BV44: 31.868 | BW44: 37 | BX44: 37 | BY44: 24.459 | BZ44: 37 | CA44: 27.822 | CB44: 29.197 | CC44: 22.601 | CD44: 37 | CE44: 37 | CF44: 28.503 | CG44: 37 | CH44: 37 | CI44: 37 | CJ44: 37 | CK44: 28.166 | CL44: 37 | CM44: 37 | CN44: 28.962 | CO44: 25.846 | CP44: 24.693 | CQ44: 28.882 | CR44: 26.929 | CS44: 25.992 | CT44: 37 | CU44: 27.522 | CV44: 26.033 | CW44: 29.583 | CX44: 26.08 | CY44: 28.141 | CZ44: 27.212 | DA44: 37 | DB44: 37 | DC44: 23.135 | DD44: 37 | DE44: 37 | DF44: 28.987 | DJ44: 107412 | DK44: 30140 | DL44: 1207.5 | DM44: 269 | DN44: 0.050994 | DO44: 4.968 | DP44: A | DR44: 100 | DS44: 61 | DT44: 3843 | DU44: 47.22 | DV44: 47.51 | DW44: 161.54 | DX44: 158.29 | DY44: 0.027 | DZ44: 0.1626
A45: 56.88767123 | B45: 1 | C45: 177 | D45: 130 | E45: =SQRT((C45*D45)/3600) -> 2.528174572 | F45: =(D45/POWER(C45,2))*10000 -> 41.49510039 | G45: 145 | H45: 72 | I45: 84 | J45: 1 | K45: 0 | L45: 0 | M45: 0 | N45: 0 | O45: 0 | P45: 0 | Q45: 0 | R45: 0 | S45: 0 | T45: 0 | U45: 0 | V45: 0 | W45: 0 | X45: 0 | Y45: 0 | Z45: 0 | AA45: 0 | AB45: 1 | AC45: 0 | AD45: 1 | AE45: 0 | AF45: 1 | AG45: 0 | AH45: 140 | AJ45: 140 | AK45: 11760 | AL45: 96.33333333 | AM45: 48 | AO45: 11 | AP45: 11 | AR45: 21 | AS45: 40 | AV45: 48 | AY45: 42 | AZ45: 32 | BA45: 1 | BB45: 0.68 | BC45: 266 | BE45: 0.1 | BF45: 1.6 | BJ45: 1,,2 | BK45: 1 | BN45: 37 | BO45: 37 | BP45: 37 | BQ45: 37 | BR45: 37 | BS45: 37 | BT45: 30.362 | BU45: 37 | BV45: 33.128 | BW45: 37 | BX45: 37 | BY45: 27.306 | BZ45: 37 | CA45: 27.352 | CB45: 37 | CC45: 29.951 | CD45: 37 | CE45: 37 | CF45: 37 | CG45: 37 | CH45: 37 | CI45: 37 | CJ45: 37 | CK45: 37 | CL45: 37 | CM45: 37 | CN45: 37 | CO45: 30.479 | CP45: 28.737 | CQ45: 37 | CR45: 32.918 | CS45: 37 | CT45: 37 | CU45: 31.544 | CV45: 37 | CW45: 30.978 | CX45: 26.204 | CY45: 37 | CZ45: 31.853 | DA45: 37 | DB45: 37 | DC45: 25.906 | DD45: 37 | DE45: 37 | DF45: 30.838 | DN45: 0.052552 | DO45: 4.9872 | DP45: N | DR45: 94 | DU45: 45.64 | DV45: 47.24 | DY45: 0.0281 | DZ45: 0.0859 | EA45: 277.6205458
A46: 72.35068493 | B46: 1 | C46: 167 | D46: 90 | E46: =SQRT((C46*D46)/3600) -> 2.043281674 | F46: =(D46/POWER(C46,2))*10000 -> 32.27078777 | G46: 133 | H46: 76 | I46: 71 | J46: 1 | K46: 0 | L46: 0 | M46: 0 | N46: 0 | O46: 0 | P46: 0 | Q46: 0 | R46: 0 | S46: 0 | T46: 0 | U46: 0 | V46: 0 | W46: 0 | X46: 1 | Y46: 1 | Z46: 0 | AA46: 0 | AB46: 0 | AC46: 0 | AD46: 1 | AE46: 0 | AF46: 1 | AG46: 0 | AL46: 95 | AM46: 42 | AO46: 15 | AP46: 11 | AR46: 22 | AS46: 42 | AT46: 2 | AV46: 42 | BA46: =AZ46/E46 -> 0 | BC46: =BB46/E46 -> 0 | BD46: 1 | BJ46: 2 | BK46: 2 | BN46: 37 | BO46: 37 | BP46: 37 | BQ46: 37 | BR46: 37 | BS46: 37 | BT46: 37 | BU46: 30.837 | BV46: 32.494 | BW46: 30.133 | BX46: 37 | BY46: 26.868 | BZ46: 37 | CA46: 27.43 | CB46: 29.957 | CC46: 23.727 | CD46: 37 | CE46: 29.286 | CF46: 29.035 | CG46: 37 | CH46: 37 | CI46: 37 | CJ46: 33.993 | CK46: 31.616 | CL46: 37 | CM46: 37 | CN46: 28.275 | CO46: 27.486 | CP46: 24.123 | CQ46: 28.792 | CR46: 25.948 | CS46: 37 | CT46: 37 | CU46: 25.724 | CV46: 28.164 | CW46: 31.081 | CX46: 26.692 | CY46: 29.736 | CZ46: 37 | DA46: 37 | DB46: 37 | DC46: 26.389 | DD46: 37 | DE46: 37 | DF46: 32.435 | DJ46: 87038 | DK46: 32552 | DL46: 2590 | DM46: 313.5 | DN46: 0.056387 | DO46: 4.8204 | DP46: N | DR46: 89 | DU46: 39.91 | DV46: 40.75 | DW46: 172.57 | DX46: 165.17 | DY46: 0.0357 | DZ46: 0.1406 | EA46: 361.0608397
A47: 82.47671233 | B47: 1 | C47: 164 | D47: 65 | E47: =SQRT((C47*D47)/3600) -> 1.720787933 | F47: =(D47/POWER(C47,2))*10000 -> 24.1671624 | G47: 176 | H47: 75 | I47: 63 | J47: 0 | K47: 0 | L47: 1 | M47: 2 | N47: 0 | O47: 0 | P47: 0 | Q47: 0 | R47: 0 | S47: 0 | T47: 0 | U47: 0 | V47: 0 | W47: 0 | AL47: 108.6666667 | BN47: 37 | BO47: 37 | BP47: 37 | BQ47: 37 | BR47: 37 | BS47: 37 | BT47: 37 | BU47: 33.011 | BV47: 33.088 | BW47: 37 | BX47: 37 | BY47: 26.561 | BZ47: 37 | CA47: 27.833 | CB47: 37 | CC47: 30.05 | CD47: 37 | CE47: 30.206 | CF47: 37 | CG47: 37 | CH47: 37 | CI47: 37 | CJ47: 37 | CK47: 37 | CL47: 37 | CM47: 37 | CN47: 37 | CO47: 30.473 | CP47: 28.125 | CQ47: 30.276 | CR47: 29.286 | CS47: 29.862 | CT47: 37 | CU47: 31.933 | CV47: 32.795 | CW47: 30.751 | CX47: 26.53 | CY47: 37 | CZ47: 37 | DA47: 37 | DB47: 37 | DC47: 27.514 | DD47: 37 | DE47: 37 | DF47: 29.752 | DJ47: 77256 | DK47: 32750 | DL47: 1987.5 | DM47: 80 | DN47: 0.066855 | DO47: 5.0584 | DP47: A | DR47: 102 | DU47: 40.67 | DV47: 35.63 | DW47: 177.07 | DX47: 177.09 | DY47: 0.0417 | DZ47: 0.1372 | EA47: 108.6595995
A48: 77.39178082 | B48: 1 | C48: 170 | D48: 84 | E48: 1.991649233 | F48: 29.06574394 | G48: 123 | H48: 94 | I48: 86 | J48: 1 | K48: 0 | L48: 0 | M48: 2 | N48: 0 | O48: 0 | P48: 0 | Q48: 0 | R48: 0 | S48: 0 | T48: 0 | U48: 0 | V48: 0 | W48: 0 | X48: 1 | Y48: 0 | Z48: 0 | AA48: 0 | AB48: 0 | AC48: 1 | AD48: 1 | AE48: 0 | AF48: 1 | AG48: 0 | AH48: 87 | AI48: 30 | AJ48: 57 | AK48: =AJ48*I48 -> 4902 | AL48: 103.6666667 | AM48: 40 | AO48: 13 | AP48: 12 | AR48: 22 | AS48: 44 | AU48: 35 | AV48: 50 | AY48: 46 | BA48: 0.74 | BB48: 0.94 | BC48: 225 | BF48: 1.3 | BK48: 1 | BN48: 30.021 | BO48: 37 | BP48: 29.439 | BQ48: 37 | BR48: 30.073 | BS48: 37 | BT48: 31.601 | BU48: 25.819 | BV48: 31.073 | BW48: 37 | BX48: 29.828 | BY48: 23.844 | BZ48: 37 | CA48: 30.774 | CB48: 28.192 | CC48: 20.696 | CD48: 37 | CE48: 37 | CF48: 26.281 | CG48: 37 | CH48: 37 | CI48: 37 | CJ48: 37 | CK48: 26.422 | CL48: 37 | CM48: 37 | CN48: 28.445 | CO48: 25.246 | CP48: 23.226 | CQ48: 27.141 | CR48: 27.147 | CS48: 26.09 | CT48: 37 | CU48: 25.799 | CV48: 26.023 | CW48: 32.432 | CX48: 26.233 | CY48: 26.959 | CZ48: 26.619 | DA48: 37 | DB48: 37 | DC48: 22.601 | DD48: 37 | DE48: 37 | DF48: 27.839 | DJ48: 52538 | DK48: 20481 | DL48: 1792.5 | DM48: 213 | DN48: 0.047746 | DO48: 4.9408 | DP48: A | DR48: 96 | DS48: 57 | DT48: 4902 | DU48: 46.91 | DV48: 47.3 | DW48: 146.96 | DX48: 158.33 | DY48: 0.044 | DZ48: 0.2199 | EA48: 465.052426
A49: 49.76712329 | B49: 0 | C49: 170 | D49: 82 | E49: 1.967796286 | F49: 28.37370242 | G49: 125 | H49: 70 | I49: 58 | J49: 1 | K49: 0 | L49: 0 | M49: 0 | N49: 0 | O49: 0 | P49: 0 | Q49: 0 | R49: 0 | S49: 0 | T49: 1 | U49: 0 | V49: 0 | W49: 0 | X49: 0 | Y49: 0 | Z49: 1 | AA49: 0 | AB49: 1 | AC49: 0 | AD49: 1 | AE49: 1 | AF49: 0 | AG49: 0 | AH49: 151 | AI49: 62 | AJ49: 89 | AK49: 5162 | AL49: 88.33333333 | AM49: 52 | AN49: 37 | AO49: 11 | AP49: 7 | AS49: 42 | AU49: 0 | AV49: 49 | AW49: 1.3 | BF49: 1.3 | BG49: 7 | BH49: 4 | BJ49: 2,,3 | BN49: 37 | BO49: 37 | BP49: 30.804 | BQ49: 37 | BR49: 37 | BS49: 37 | BT49: 37 | BU49: 30.475 | BV49: 37 | BW49: 37 | BX49: 37 | BY49: 28.334 | BZ49: 37 | CA49: 32.479 | CB49: 30.792 | CC49: 23.637 | CD49: 37 | CE49: 37 | CF49: 30.356 | CG49: 37 | CH49: 37 | CI49: 37 | CJ49: 37 | CK49: 31.166 | CL49: 30.503 | CM49: 37 | CN49: 37 | CO49: 30.233 | CP49: 26.982 | CQ49: 31.743 | CR49: 28.487 | CS49: 28.387 | CT49: 37 | CU49: 29.315 | CV49: 30.433 | CW49: 32.995 | CX49: 27.776 | CY49: 28.958 | CZ49: 37 | DA49: 37 | DB49: 37 | DC49: 26.768 | DD49: 37 | DE49: 37 | DF49: 31.087 | DG49: 296 | DH49: 230 | DI49: 1175 | DJ49: 33590 | DK49: 29050 | DL49: 1665 | DM49: 45 | DN49: 0.9682868852 | DO49: 5.076 | DP49: A | DQ49: AP | DR49: 85 | DS49: 89 | DT49: 5162 | DU49: 45.75 | DV49: 47.96 | DY49: 0.0268 | DZ49: 0.1078 | EA49: 151.7974949
A50: 69.74246575 | B50: 0 | C50: 171 | D50: 80 | E50: 1.949358869 | F50: 27.35884546 | G50: 122 | H50: 69 | I50: 77 | J50: 0 | K50: 0 | L50: 0 | M50: 2 | N50: 0 | O50: 0 | P50: 0 | Q50: 0 | R50: 0 | S50: 0 | T50: 0 | U50: 0 | V50: 0 | W50: 0 | X50: 0 | Y50: 0 | Z50: 0 | AA50: 1 | AB50: 0 | AC50: 0 | AD50: 1 | AE50: 0 | AF50: 0 | AG50: 0 | AH50: 141 | AI50: 64 | AJ50: 77 | AK50: 5929 | AL50: 86.66666667 | AM50: 50 | AO50: 12 | AP50: 10 | AR50: 15 | AS50: 41 | AV50: 47 | AW50: 1.8 | AY50: 39 | AZ50: 27 | BA50: 0.84 | BB50: 1.14 | BC50: 268 | BD50: 2 | BE50: 0.085 | BF50: 1.8 | BJ50: 3 | BN50: 37 | BO50: 37 | BP50: 37 | BQ50: 37 | BR50: 37 | BS50: 37 | BT50: 37 | BU50: 37 | BV50: 34.819 | BW50: 37 | BX50: 37 | BY50: 29.898 | BZ50: 37 | CA50: 37 | CB50: 37 | CC50: 29.611 | CD50: 37 | CE50: 37 | CF50: 37 | CG50: 37 | CH50: 37 | CI50: 37 | CJ50: 37 | CK50: 37 | CL50: 37 | CM50: 37 | CN50: 37 | CO50: 33.393 | CP50: 32.744 | CQ50: 37 | CR50: 37 | CS50: 29.607 | CT50: 37 | CU50: 37 | CV50: 34.942 | CW50: 32.916 | CX50: 27.015 | CY50: 37 | CZ50: 37 | DA50: 37 | DB50: 37 | DC50: 28.507 | DD50: 37 | DE50: 37 | DF50: 31.221 | DG50: 247.5 | DH50: 482.5 | DI50: 1469.5 | DJ50: 45045 | DK50: 22630 | DL50: 1665 | DM50: 45 | DN50: 1.059332975 | DO50: 4.781 | DP50: A | DQ50: AP | DR50: 88 | DS50: 77 | DT50: 5929 | DU50: 47.58 | DV50: 45.07 | DW50: 168.03 | DX50: 137.23 | DY50: 0.0359 | DZ50: 0.162 | EA50: 133.9459776
A51: 34.29589041 | B51: 0 | C51: 177 | D51: 79 | E51: 1.970828929 | F51: 25.21625331 | G51: 131 | H51: 66 | I51: 71 | J51: 0 | K51: 0 | L51: 0 | M51: 0 | N51: 0 | O51: 0 | P51: 0 | Q51: 0 | R51: 0 | S51: 0 | T51: 0 | U51: 0 | V51: 0 | W51: 0 | X51: 0 | Y51: 0 | Z51: 0 | AA51: 0 | AB51: 0 | AC51: 0 | AD51: 0 | AE51: 0 | AF51: 0 | AG51: 0 | AH51: 94 | AI51: 40 | AJ51: 54 | AK51: 3834 | AL51: 87.66666667 | AS51: 39 | AV51: 45 | AY51: 31 | BJ51: 2 | BK51: 1 | BN51: 37 | BO51: 37 | BP51: 37 | BQ51: 37 | BR51: 37 | BS51: 37 | BT51: 37 | BU51: 31.534 | BV51: 37 | BW51: 37 | BX51: 34.2 | BY51: 31.182 | BZ51: 37 | CA51: 35.594 | CB51: 32.154 | CC51: 28.537 | CD51: 37 | CE51: 37 | CF51: 37 | CG51: 37 | CH51: 37 | CI51: 37 | CJ51: 37 | CK51: 37 | CL51: 37 | CM51: 37 | CN51: 33.994 | CO51: 30.953 | CP51: 26.767 | CQ51: 32.75 | CR51: 32.676 | CS51: 33.546 | CT51: 37 | CU51: 31.762 | CV51: 32.642 | CW51: 37 | CX51: 37 | CY51: 31.168 | CZ51: 34.443 | DA51: 37 | DB51: 37 | DC51: 27.411 | DD51: 37 | DE51: 37 | DF51: 31.228 | DG51: 288.125 | DH51: 568.5 | DI51: 3048 | DJ51: 51370 | DK51: 26500 | DL51: 8870 | DM51: 70 | DN51: 0.6071828801 | DO51: 6.2306
A52: 75.66027397 | B52: 1 | C52: 170 | D52: 80 | E52: 1.943650632 | F52: 27.6816609 | G52: 148 | H52: 85 | I52: 72 | J52: 0 | K52: 0 | L52: 0 | M52: 2 | N52: 0 | O52: 0 | P52: 0 | Q52: 0 | R52: 0 | S52: 0 | T52: 0 | U52: 0 | V52: 0 | W52: 0 | X52: 0 | Y52: 0 | Z52: 0 | AA52: 0 | AB52: 0 | AC52: 0 | AD52: 0 | AE52: 0 | AF52: 0 | AG52: 0 | AH52: 133 | AI52: 55 | AJ52: 78 | AK52: 5616 | AL52: 106 | AM52: 49 | AN52: 39 | AO52: 12 | AP52: 10 | AR52: 17 | AS52: 41 | AU52: 39 | AV52: 52 | AY52: 30 | AZ52: 24 | BA52: 0.57 | BB52: 0.68 | BC52: 206 | BD52: 1 | BE52: 0.06 | BF52: 1.45 | BJ52: 1 | BK52: 2 | BN52: 37 | BO52: 37 | BP52: 37 | BQ52: 37 | BR52: 37 | BS52: 37 | BT52: 37 | BU52: 37 | BV52: 37 | BW52: 37 | BX52: 37 | BY52: 28.792 | BZ52: 37 | CA52: 32.13 | CB52: 37 | CC52: 31.789 | CD52: 37 | CE52: 37 | CF52: 34.107 | CG52: 37 | CH52: 37 | CI52: 37 | CJ52: 37 | CK52: 37 | CL52: 37 | CM52: 37 | CN52: 37 | CO52: 32.782 | CP52: 33.449 | CQ52: 37 | CR52: 37 | CS52: 32.909 | CT52: 37 | CU52: 37 | CV52: 28.464 | CW52: 33.685 | CX52: 27.126 | CY52: 37 | CZ52: 29.474 | DA52: 37 | DB52: 37 | DC52: 28.355 | DD52: 37 | DE52: 37 | DF52: 29.01 | DJ52: 72188 | DK52: 25153 | DL52: 1885 | DM52: 222.5 | DN52: 0.048962 | DO52: 5.0044
A53: 52.80547945 | B53: 0 | C53: 167 | D53: 60 | E53: 1.668332501 | F53: 21.51385851 | G53: 132 | H53: 65 | I53: 73 | J53: 1 | K53: 0 | L53: 0 | M53: 0 | N53: 1 | O53: 0 | P53: 0 | Q53: 0 | R53: 0 | S53: 0 | T53: 0 | U53: 0 | V53: 0 | W53: 0 | X53: 0 | Y53: 0 | Z53: 0 | AA53: 0 | AB53: 1 | AC53: 0 | AD53: 1 | AE53: 0 | AF53: 0 | AG53: 0 | AH53: 88 | AI53: 38 | AJ53: 50 | AK53: 3650 | AL53: 87.33333333 | AM53: 42 | AO53: 12 | AP53: 11 | AR53: 20 | AS53: 48 | AU53: 33 | AV53: 37 | AY53: 30 | AZ53: 23 | BA53: 0.6 | BB53: 0.59 | BD53: 2 | BE53: 0.09 | BF53: 1.2 | BJ53: 1 | BK53: 2 | BN53: 37 | BO53: 37 | BP53: 37 | BQ53: 37 | BR53: 37 | BS53: 37 | BT53: 37 | BU53: 32.447 | BV53: 37 | BW53: 37 | BX53: 37 | BY53: 33.835 | BZ53: 37 | CA53: 37 | CB53: 37 | CC53: 29.901 | CD53: 37 | CE53: 37 | CF53: 37 | CG53: 37 | CH53: 37 | CI53: 37 | CJ53: 37 | CK53: 34.139 | CL53: 37 | CM53: 37 | CN53: 37 | CO53: 33.132 | CP53: 29.942 | CQ53: 37 | CR53: 33.5 | CS53: 32.756 | CT53: 37 | CU53: 33.871 | CV53: 32.459 | CW53: 37 | CX53: 37 | CY53: 37 | CZ53: 37 | DA53: 37 | DB53: 37 | DC53: 29.545 | DD53: 37 | DE53: 37 | DF53: 32.343 | DG53: 213.5 | DH53: 382.5 | DI53: 1244.5 | DJ53: 53165 | DK53: 28970 | DL53: 2140 | DM53: 40 | DN53: 1.138890024 | DO53: 5.0226
A54: 82.45479452 | B54: 1 | G54: 165 | H54: 74 | I54: 78 | J54: 1 | K54: 0 | L54: 1 | M54: 0 | N54: 0 | O54: 0 | P54: 0 | Q54: 0 | R54: 0 | S54: 0 | T54: 0 | U54: 0 | V54: 0 | W54: 0 | X54: 0 | Y54: 0 | Z54: 0 | AA54: 0 | AB54: 0 | AC54: 0 | AD54: 1 | AE54: 0 | AF54: 1 | AG54: 0 | AL54: 104.3333333 | BN54: 29.732 | BO54: 37 | BP54: 28.39 | BQ54: 31.792 | BR54: 37 | BS54: 37 | BT54: 37 | BU54: 24.643 | BV54: 30.116 | BW54: 28.586 | BX54: 32.73 | BY54: 23.89 | BZ54: 37 | CA54: 28.666 | CB54: 25.687 | CC54: 20.041 | CD54: 37 | CE54: 37 | CF54: 25.813 | CG54: 37 | CH54: 37 | CI54: 37 | CJ54: 37 | CK54: 25.748 | CL54: 37 | CM54: 37 | CN54: 25.807 | CO54: 23.745 | CP54: 21.818 | CQ54: 25.923 | CR54: 24.192 | CS54: 26.082 | CT54: 37 | CU54: 24.133 | CV54: 27.018 | CW54: 32.119 | CX54: 25.942 | CY54: 26.785 | CZ54: 27.841 | DA54: 37 | DB54: 37 | DC54: 22.534 | DD54: 37 | DE54: 37 | DF54: 28.794 | DG54: 167.5 | DH54: 607 | DI54: 1325 | DJ54: 38745 | DK54: 10255 | DL54: 1390 | DM54: 285 | DN54: 0.6679726845 | DO54: 4.544 | DP54: N | DQ54: AP | DR54: 100 | DU54: 35.56 | DV54: 36.04 | DY54: 0.0555 | DZ54: 0.1892 | EA54: 898.8040024
A55: 44.65753425 | B55: 0 | C55: 174 | D55: 101 | E55: =SQRT((C55*D55)/3600) -> 2.209449404 | F55: =(D55/POWER(C55,2))*10000 -> 33.3597569 | J55: 1 | L55: 1 | M55: 2 | N55: 0 | O55: 0 | AB55: 1 | AC55: 0 | AD55: 1 | AE55: 1 | AF55: 0 | AH55: 135 | AI55: 67 | AJ55: 68 | AK55: =AJ55*I55 -> 0 | AL55: 0 | AT55: 2 | AW55: 1.6 | AX55: 11 | AY55: 6 | AZ55: 135 | BB55: 67 | BD55: 50.37 | BN55: 33.013 | BO55: 37 | BP55: 37 | BQ55: 37 | BR55: 37 | BS55: 37 | BT55: 37 | BU55: 37 | BV55: 34.596 | BW55: 34.001 | BX55: 37 | BY55: 29.078 | BZ55: 37 | CA55: 37 | CB55: 37 | CC55: 31.23 | CD55: 37 | CE55: 37 | CF55: 37 | CG55: 37 | CH55: 37 | CI55: 37 | CJ55: 37 | CK55: 32.456 | CL55: 37 | CM55: 37 | CN55: 32.128 | CO55: 29.551 | CP55: 29.579 | CQ55: 31.96 | CR55: 33.057 | CS55: 37 | CT55: 37 | CU55: 37 | CV55: 37 | CW55: 37 | CX55: 29.748 | CY55: 37 | CZ55: 37 | DA55: 37 | DB55: 37 | DC55: 29.114 | DD55: 37 | DE55: 37 | DF55: 32.83 | DJ55: 36196 | DK55: 28763 | DL55: 55762.5 | DM55: 92.5 | DN55: 0.050721 | DO55: 5.7336
A56: 63.22465753 | B56: 0 | C56: 181 | D56: 104 | E56: =SQRT((C56*D56)/3600) -> 2.286676385 | F56: =(D56/POWER(C56,2))*10000 -> 31.74506273 | G56: 129 | H56: 77 | I56: 101 | J56: 1 | K56: 0 | L56: 1 | M56: 0 | N56: 0 | O56: 0 | P56: 0 | Q56: 0 | R56: 0 | S56: 0 | T56: 0 | U56: 0 | V56: 0 | W56: 0 | AH56: 133 | AI56: 55 | AJ56: 78 | AK56: =AJ56*I56 -> 7878 | AL56: 94.33333333 | AM56: 50 | AN56: 33 | AP56: 12 | AQ56: 10 | AS56: 20 | AT56: 42 | AV56: 43 | AY56: 32 | AZ56: 24 | BA56: 0.52 | BB56: 0.64 | BC56: 261 | BD56: 2 | BE56: 0.08 | BF56: 1.3 | BJ56: 2 | BK56: 1 | BN56: 37 | BO56: 37 | BP56: 37 | BQ56: 37 | BR56: 37 | BS56: 37 | BT56: 37 | BU56: 32.683 | BV56: 37 | BW56: 37 | BX56: 37 | BY56: 32.953 | BZ56: 37 | CA56: 37 | CB56: 37 | CC56: 30.749 | CD56: 37 | CE56: 37 | CF56: 37 | CG56: 37 | CH56: 37 | CI56: 37 | CJ56: 37 | CK56: 37 | CL56: 37 | CM56: 37 | CN56: 37 | CO56: 32.655 | CP56: 31.726 | CQ56: 37 | CR56: 33.757 | CS56: 37 | CT56: 37 | CU56: 33.066 | CV56: 32.709 | CW56: 37 | CX56: 33.215 | CY56: 37 | CZ56: 33.249 | DA56: 37 | DB56: 37 | DC56: 30.528 | DD56: 37 | DE56: 37 | DF56: 30.551 | DJ56: 39880 | DK56: 25315 | DL56: 2195 | DM56: 191 | DN56: 0.054244 | DO56: 5.1236 | DP56: N | DQ56: AP | DR56: 88 | DS56: 78 | DT56: 7878 | DU56: 40.74 | DV56: 39.71 | DW56: 159 | DX56: 134.03 | DY56: 0.0275 | DZ56: 0.1219 | EA56: 274.2143852
A57: 54.60821918 | B57: 0 | C57: 182 | D57: 104 | E57: =SQRT((C57*D57)/3600) -> 2.29298447 | F57: =(D57/POWER(C57,2))*10000 -> 31.39717425 | G57: 145 | H57: 90 | I57: 75 | J57: 1 | K57: 0 | L57: 0 | M57: 0 | N57: 0 | O57: 0 | P57: 0 | Q57: 0 | R57: 0 | S57: 0 | T57: 0 | U57: 0 | V57: 0 | W57: 0 | X57: 1 | Y57: 0 | Z57: 0 | AA57: 0 | AB57: 0 | AC57: 0 | AD57: 1 | AE57: 0 | AF57: 0 | AG57: 0 | AH57: 146 | AI57: 60 | AJ57: 86 | AK57: =AJ57*I57 -> 6450 | AL57: 108.3333333 | AO57: 13 | AP57: 10 | AR57: 24 | AS57: 39 | AV57: 48 | AZ57: 20 | BD57: 2 | BF57: 2.9 | BG57: 35 | BH57: 20 | BI57: 3 | BJ57: 2 | BK57: 1 | BN57: 37 | BO57: 37 | BP57: 37 | BQ57: 37 | BR57: 37 | BS57: 37 | BT57: 37 | BU57: 37 | BV57: 35.017 | BW57: 37 | BX57: 37 | BY57: 28.375 | BZ57: 37 | CA57: 32.293 | CB57: 37 | CC57: 31.476 | CD57: 37 | CE57: 37 | CF57: 37 | CG57: 37 | CH57: 37 | CI57: 37 | CJ57: 37 | CK57: 37 | CL57: 37 | CM57: 37 | CN57: 37 | CO57: 32.968 | CP57: 29.389 | CQ57: 37 | CR57: 37 | CS57: 37 | CT57: 37 | CU57: 30.396 | CV57: 30.705 | CW57: 33.846 | CX57: 28.917 | CY57: 29.215 | CZ57: 32.125 | DA57: 37 | DB57: 37 | DC57: 28.936 | DD57: 37 | DE57: 37 | DF57: 30.436 | DJ57: 42188 | DK57: 28822 | DL57: 2765 | DM57: 164 | DN57: 0.052739 | DO57: 5.6424
A58: 78.07945205 | B58: 1 | G58: 129 | H58: 76 | I58: 73 | J58: 1 | K58: 0 | L58: 0 | M58: 0 | N58: 0 | O58: 0 | P58: 0 | Q58: 0 | R58: 0 | S58: 0 | T58: 0 | U58: 0 | V58: 0 | W58: 0 | X58: 1 | Y58: 1 | Z58: 0 | AA58: 1 | AB58: 1 | AC58: 0 | AD58: 1 | AE58: 1 | AF58: 0 | AG58: 0 | AL58: 93.66666667
A59: 81.91506849 | B59: 1 | G59: 140 | H59: 74 | I59: 71 | AL59: 96 | AW59: no tac | BN59: 37 | BO59: 37 | BP59: 37 | BQ59: 37 | BR59: 37 | BS59: 37 | BT59: 37 | BU59: 37 | BV59: 34.034 | BW59: 37 | BX59: 37 | BY59: 31.4 | BZ59: 37 | CA59: 33.973 | CB59: 37 | CC59: 37 | CD59: 37 | CE59: 37 | CF59: 37 | CG59: 37 | CH59: 37 | CI59: 37 | CJ59: 37 | CK59: 37 | CL59: 37 | CM59: 37 | CN59: 37 | CO59: 37 | CP59: 33.019 | CQ59: 37 | CR59: 37 | CS59: 37 | CT59: 37 | CU59: 37 | CV59: 33.755 | CW59: 33.579 | CX59: 27.82 | CY59: 37 | CZ59: 37 | DA59: 37 | DB59: 37 | DC59: 33.948 | DD59: 37 | DE59: 37 | DF59: 32.192 | DJ59: 48470 | DK59: 32195 | DL59: 1207.5 | DM59: 118.5 | DN59: 0.052747 | DO59: 4.866
A60: 79.11780822 | B60: 1 | G60: 150 | H60: 80 | I60: 60 | AL60: 103.3333333 | AW60: no tac | BN60: 37 | BO60: 37 | BP60: 37 | BQ60: 37 | BR60: 37 | BS60: 37 | BT60: 37 | BU60: 37 | BV60: 35.438 | BW60: 37 | BX60: 37 | BY60: 28.55 | BZ60: 37 | CA60: 32.715 | CB60: 37 | CC60: 32.708 | CD60: 37 | CE60: 37 | CF60: 37 | CG60: 37 | CH60: 37 | CI60: 37 | CJ60: 37 | CK60: 37 | CL60: 37 | CM60: 37 | CN60: 37 | CO60: 30.656 | CP60: 31.365 | CQ60: 32.783 | CR60: 37 | CS60: 37 | CT60: 6.534 | CU60: 32.188 | CV60: 29.287 | CW60: 37 | CX60: 29.281 | CY60: 37 | CZ60: 37 | DA60: 37 | DB60: 37 | DC60: 27.791 | DD60: 37 | DE60: 37 | DF60: 32.116 | DJ60: 43338 | DK60: 27863 | DL60: 3555 | DM60: 323 | DN60: 0.054392 | DO60: 4.9864
A61: 56.59452055 | B61: 0 | C61: 184 | D61: 121 | E61: =SQRT((C61*D61)/3600) -> 2.486854327 | F61: =(D61/POWER(C61,2))*10000 -> 35.73960302 | G61: 142 | H61: 94 | I61: 77 | J61: 1 | K61: 0 | L61: 0 | M61: 1 | N61: 0 | O61: 0 | P61: 0 | Q61: 0 | R61: 0 | S61: 0 | T61: 0 | U61: 0 | V61: 0 | W61: 0 | AH61: 200 | AI61: 80 | AJ61: =AH61-AI61 -> 120 | AK61: =AJ61*I61 -> 9240 | AL61: 110 | AM61: 58 | AO61: 14 | AP61: 13 | AQ61: 41 | AS61: 49 | AV61: 55 | AZ61: 20 | BA61: 0.33 | BB61: 0.76 | BC61: 290 | BD61: 1 | BF61: 2.1 | BG61: 17 | BH61: 10 | BJ61: 2,,3 | BK61: 1 | BL61: 2.5 | BM61: 30 | BN61: 37 | BO61: 37 | BP61: 37 | BQ61: 37 | BR61: 37 | BS61: 37 | BT61: 37 | BU61: 37 | BV61: 37 | BW61: 37 | BX61: 37 | BY61: 28.914 | BZ61: 37 | CA61: 37 | CB61: 37 | CC61: 37 | CD61: 37 | CE61: 37 | CF61: 37 | CG61: 37 | CH61: 37 | CI61: 37 | CJ61: 37 | CK61: 37 | CL61: 37 | CM61: 37 | CN61: 37 | CO61: 35.1 | CP61: 31.901 | CQ61: 37 | CR61: 37 | CS61: 37 | CT61: 37 | CU61: 37 | CV61: 33.662 | CW61: 32.612 | CX61: 28.482 | CY61: 37 | CZ61: 37 | DA61: 37 | DB61: 37 | DC61: 37 | DD61: 37 | DE61: 37 | DF61: 33.064 | DG61: 252.875 | DH61: 800 | DI61: 1452 | DJ61: 64780 | DK61: 23260 | DL61: 5455 | DM61: 60 | DN61: 1.711188754 | DO61: 2.981 | DP61: A | DQ61: AP | DR61: 106 | DS61: 120 | DT61: 9240 | DU61: 54.95 | DV61: 55.81 | DW61: 165.47 | DX61: 166.45 | DY61: 0.0391 | DZ61: 0.1682 | EA61: 408.8966696
A62: 60.19726027 | B62: 0 | C62: 168 | D62: 100 | E62: 2.160246899 | F62: 35.430839 | J62: 1 | K62: 0 | L62: 0 | M62: 0 | N62: 0 | O62: 0 | P62: 0 | Q62: 0 | R62: 0 | S62: 0 | T62: 0 | U62: 0 | V62: 0 | W62: 0 | X62: 0 | Y62: 0 | Z62: 0 | AA62: 0 | AB62: 0 | AC62: 0 | AD62: 1 | AE62: 0 | AF62: 0 | AG62: 0 | AH62: 112 | AI62: 47 | AJ62: 65 | AK62: =AJ62*I62 -> 0 | AL62: 0 | AM62: 46 | AO62: 10 | AP62: 8 | AR62: 22 | AS62: 37 | AV62: 48 | AZ62: 22 | BA62: 0.66 | BB62: 0.97 | BC62: 222 | BD62: 2 | BF62: 2.4 | BG62: 22 | BH62: 13 | BI62: 2 | BJ62: 2 | BK62: 2 | BL62: 2.4 | BM62: 28
A63: 66.62739726 | B63: 1 | C63: 188 | D63: 192 | E63: 3.166491223 | F63: 54.32322318 | G63: 145 | H63: 76 | I63: 66 | J63: 0 | K63: 0 | L63: 1 | M63: 2 | N63: 0 | O63: 0 | AB63: 1 | AC63: 0 | AD63: 1 | AE63: 1 | AF63: 0 | AL63: 99 | BN63: 37 | BO63: 33.692 | BP63: 30.124 | BQ63: 37 | BR63: 37 | BS63: 37 | BT63: 37 | BU63: 37 | BV63: 37 | BW63: 37 | BX63: 37 | BY63: 24.368 | BZ63: 37 | CA63: 23.417 | CB63: 37 | CC63: 24.336 | CD63: 37 | CE63: 37 | CF63: 30.874 | CG63: 37 | CH63: 37 | CI63: 37 | CJ63: 37 | CK63: 28.302 | CL63: 37 | CM63: 37 | CN63: 37 | CO63: 25.01 | CP63: 27.958 | CQ63: 37 | CR63: 31.789 | CS63: 28.7 | CT63: 37 | CU63: 27.763 | CV63: 25.128 | CW63: 29.915 | CX63: 24.57 | CY63: 37 | CZ63: 23.817 | DA63: 37 | DB63: 37 | DC63: 23.145 | DD63: 37 | DE63: 37 | DF63: 25.115 | DJ63: 53428 | DK63: 34489 | DL63: 5017.5 | DM63: 488 | DN63: 0.060073 | DO63: 5.2232
A64: 74.90410959 | B64: 1 | C64: 175 | D64: 75 | E64: 1.90940654 | F64: 24.48979592 | G64: 133 | H64: 68 | I64: 75 | J64: 1 | K64: 0 | L64: 1 | M64: 0 | N64: 0 | O64: 0 | P64: 0 | Q64: 0 | R64: 0 | S64: 1 | T64: 0 | U64: 0 | V64: 0 | W64: 0 | X64: 1 | Y64: 0 | Z64: 0 | AA64: 0 | AB64: 0 | AC64: 1 | AD64: 1 | AE64: 0 | AF64: 0 | AG64: 0 | AH64: 137 | AJ64: 137 | AK64: =AJ64*I64 -> 10275 | AL64: 89.66666667 | AM64: 44 | AO64: 13 | AP64: 11 | AR64: 26 | AS64: 49 | AU64: 34 | AV64: 49 | AY64: 32 | AZ64: 14 | BD64: 2 | BF64: 1.27 | BJ64: 2 | BK64: 1 | BL64: 2.5 | BM64: 29 | BN64: 37 | BO64: 37 | BP64: 37 | BQ64: 37 | BR64: 37 | BS64: 37 | BT64: 37 | BU64: 31.492 | BV64: 29.106 | BW64: 37 | BX64: 37 | BY64: 25.024 | BZ64: 37 | CA64: 28.001 | CB64: 37 | CC64: 29.071 | CD64: 37 | CE64: 37 | CF64: 37 | CG64: 37 | CH64: 37 | CI64: 37 | CJ64: 37 | CK64: 29.255 | CL64: 37 | CM64: 37 | CN64: 37 | CO64: 25.838 | CP64: 28.972 | CQ64: 37 | CR64: 36.039 | CS64: 28.049 | CT64: 37 | CU64: 27.555 | CV64: 27.368 | CW64: 31.467 | CX64: 25.138 | CY64: 37 | CZ64: 28.765 | DA64: 37 | DB64: 37 | DC64: 26.877 | DD64: 37 | DE64: 37 | DF64: 29.793 | DJ64: 46346 | DK64: 29653 | DL64: 1667.5 | DM64: 209 | DN64: 0.055795 | DO64: 5.0264 | DP64: N | DR64: 85 | DU64: 40.92 | DV64: 41.2 | DW64: 154.86 | DX64: 150.36 | DY64: 0.0278 | DZ64: 0.1536 | EA64: 1266.467475
A65: 63.6630137 | B65: 0 | C65: 172 | D65: 90 | E65: 2.073644135 | F65: 30.42184965 | G65: 109 | H65: 60 | I65: 70 | J65: 1 | K65: 0 | L65: 1 | M65: 0 | N65: 0 | O65: 0 | P65: 0 | Q65: 0 | R65: 0 | S65: 0 | T65: 0 | U65: 0 | V65: 0 | W65: 0 | AH65: 112 | AI65: 42 | AJ65: 70 | AK65: =AJ65*I65 -> 4900 | AL65: 76.33333333 | AM65: 45 | AO65: 13 | AP65: 10 | AR65: 22 | AS65: 43 | AV65: 51 | BA65: 0.54 | BB65: 0.62 | BC65: 257 | BD65: 1 | BE65: 0.07 | BF65: 1.54 | BI65: 0 | BJ65: 1 | BK65: 1 | BN65: 37 | BO65: 37 | BP65: 37 | BQ65: 37 | BR65: 37 | BS65: 37 | BT65: 37 | BU65: 37 | BV65: 37 | BW65: 37 | BX65: 37 | BY65: 20.478 | BZ65: 37 | CA65: 20.623 | CB65: 37 | CC65: 24.72 | CD65: 37 | CE65: 37 | CF65: 30.116 | CG65: 37 | CH65: 37 | CI65: 37 | CJ65: 37 | CK65: 27.212 | CL65: 37 | CM65: 37 | CN65: 37 | CO65: 23.34 | CP65: 24.778 | CQ65: 30.449 | CR65: 26.963 | CS65: 27.968 | CT65: 27.502 | CU65: 27.534 | CV65: 27.53 | CW65: 28.597 | CX65: 23.634 | CY65: 37 | CZ65: 37 | DA65: 37 | DB65: 37 | DC65: 25.147 | DD65: 37 | DE65: 37 | DF65: 28.15 | DJ65: 35986 | DK65: 24831 | DL65: 1580 | DM65: 204 | DN65: 0.056062 | DO65: 5.2876
A66: 56.20273973 | B66: 1 | C66: 175 | D66: 110 | E66: 2.312406154 | F66: 35.91836735 | G66: 128 | H66: 70 | I66: 81 | J66: 1 | K66: 0 | L66: 0 | M66: 0 | N66: 1 | O66: 0 | P66: 0 | Q66: 0 | R66: 0 | S66: 1 | T66: 1 | U66: 0 | V66: 0 | W66: 0 | X66: 1 | Y66: 1 | Z66: 0 | AA66: 0 | AB66: 1 | AC66: 0 | AD66: 0 | AE66: 0 | AF66: 1 | AG66: 0 | AL66: =(G66+ 2*H66)/3 -> 89.33333333 | AM66: 49 | AO66: 13 | AP66: 12 | AR66: 21 | AS66: 48 | AV66: 35 | BF66: 1.1 | BJ66: 2 | BK66: 1 | BN66: 37 | BO66: 37 | BP66: 27.438 | BQ66: 37 | BR66: 37 | BS66: 37 | BT66: 37 | BU66: 26.87 | BV66: 29.922 | BW66: 37 | BX66: 37 | BY66: 21.734 | BZ66: 37 | CA66: 23.234 | CB66: 37 | CC66: 21.122 | CD66: 37 | CE66: 37 | CF66: 27.094 | CG66: 37 | CH66: 37 | CI66: 37 | CJ66: 37 | CK66: 37 | CL66: 37 | CM66: 37 | CN66: 37 | CO66: 23.543 | CP66: 22.921 | CQ66: 27.517 | CR66: 25.041 | CS66: 26.604 | CT66: 28.188 | CU66: 24.695 | CV66: 28.513 | CW66: 29.472 | CX66: 24.009 | CY66: 29.573 | CZ66: 24.913 | DA66: 37 | DB66: 37 | DC66: 23.034 | DD66: 37 | DE66: 37 | DF66: 26.77 | DJ66: 52254 | DK66: 26056 | DL66: 2412.5 | DM66: 108.5 | DN66: 0.049916 | DO66: 5.3864 | DP66: N | DR66: 88 | DS66: 52 | DT66: 4212 | DU66: 33.23 | DV66: 32.68 | DW66: 163.86 | DX66: 160.51 | DY66: 0.0383 | DZ66: 0.0728
A67: 54.44931507 | B67: 1 | C67: 168 | D67: 67 | E67: 1.768238295 | F67: 23.73866213 | G67: 144 | H67: 74 | I67: 91 | J67: 1 | K67: 0 | L67: 0 | M67: 2 | N67: 0 | O67: 0 | P67: 0 | Q67: 0 | R67: 0 | S67: 0 | T67: 0 | U67: 0 | V67: 0 | W67: 0 | X67: 0 | Y67: 0 | Z67: 0 | AA67: 0 | AB67: 0 | AC67: 0 | AD67: 1 | AE67: 1 | AF67: 0 | AG67: 0 | AH67: 133 | AI67: 50 | AJ67: 83 | AK67: =AJ67*I67 -> 7553 | AL67: 97.33333333 | AM67: 48 | AO67: 14 | AP67: 12 | AS67: 38 | AV67: 48 | AZ67: 25 | BD67: 2 | BF67: 2.8 | BG67: 31 | BH67: 15 | BJ67: 3 | BK67: 1 | BN67: 37 | BO67: 37 | BP67: 37 | BQ67: 37 | BR67: 37 | BS67: 37 | BT67: 37 | BU67: 34.765 | BV67: 37 | BW67: 37 | BX67: 37 | BY67: 31.352 | BZ67: 37 | CA67: 37 | CB67: 37 | CC67: 29.461 | CD67: 37 | CE67: 37 | CF67: 37 | CG67: 37 | CH67: 37 | CI67: 37 | CJ67: 37 | CK67: 37 | CL67: 37 | CM67: 37 | CN67: 33.463 | CO67: 31.462 | CP67: 29.052 | CQ67: 35.721 | CR67: 33.335 | CS67: 37 | CT67: 37 | CU67: 35.007 | CV67: 33.142 | CW67: 37 | CX67: 37 | CY67: 33.144 | CZ67: 37 | DA67: 37 | DB67: 37 | DC67: 29.555 | DD67: 37 | DE67: 37 | DF67: 32.026 | DJ67: 36200 | DK67: 23965 | DL67: 3027.5 | DM67: 594.5 | DN67: 0.050874 | DO67: 5.8116 | DP67: A | DQ67: AP | DR67: 85 | DS67: 83 | DT67: 7553 | DU67: 45.75 | DV67: 40.72 | DW67: 177.39 | DX67: 168.79 | DY67: 0.0294 | DZ67: 0.0851 | EA67: 84.88368866
A68: 78.27945205 | B68: 0 | C68: 155 | D68: 66 | E68: 1.685724374 | F68: 27.47138398 | G68: 124 | H68: 69 | I68: 62 | J68: 1 | K68: 0 | L68: 0 | M68: 0 | N68: 1 | O68: 0 | P68: 0 | Q68: 0 | R68: 0 | S68: 0 | T68: 0 | U68: 0 | V68: 0 | W68: 0 | X68: 1 | Y68: 1 | Z68: 0 | AA68: 0 | AB68: 0 | AC68: 0 | AD68: 1 | AE68: 0 | AF68: 0 | AG68: 0 | AH68: 94 | AI68: 37 | AJ68: 57 | AK68: =AJ68*I68 -> 3534 | AL68: 87.33333333 | AM68: 43 | AO68: 12 | AP68: 9 | AQ68: 30 | AR68: 12 | AS68: 32 | AU68: 32 | AV68: 50 | AZ68: 22 | BA68: 0.67 | BB68: 1.12 | BC68: 197 | BD68: 2 | BF68: 3.3 | BG68: 45 | BH68: 30 | BI68: 0 | BJ68: 2 | BK68: 1 | BN68: 37 | BO68: 37 | BP68: 37 | BQ68: 37 | BR68: 37 | BS68: 37 | BT68: 37 | BU68: 37 | BV68: 37 | BW68: 37 | BX68: 37 | BY68: 34.093 | BZ68: 37 | CA68: 32.156 | CB68: 37 | CC68: 33.873 | CD68: 37 | CE68: 37 | CF68: 37 | CG68: 37 | CH68: 37 | CI68: 37 | CJ68: 37 | CK68: 37 | CL68: 37 | CM68: 37 | CN68: 37 | CO68: 37 | CP68: 33.497 | CQ68: 33.397 | CR68: 37 | CS68: 33.369 | CT68: 37 | CU68: 37 | CV68: 33.738 | CW68: 37 | CX68: 37 | CY68: 37 | CZ68: 34.414 | DA68: 37 | DB68: 37 | DC68: 31.385 | DD68: 37 | DE68: 37 | DF68: 30.698 | DJ68: 136346 | DK68: 30470 | DL68: 907.5 | DM68: 384 | DN68: 0.055532 | DO68: 5.176 | DP68: A | DQ68: RL | DR68: 81 | DS68: 57 | DT68: 3534 | DU68: 49.15 | DV68: 49.31 | DW68: 165.16 | DX68: 159.23 | DY68: 0.029 | DZ68: 0.1728 | EA68: 2252.523442
A69: 55.50684932 | B69: 1 | C69: 173 | D69: 81 | E69: 1.972941966 | F69: 27.06405159 | G69: 139 | H69: 70 | I69: 78 | J69: 1 | L69: 0 | M69: 0 | N69: 0 | O69: 0 | AB69: 1 | AC69: 0 | AD69: 1 | AE69: 1 | AF69: 0 | AH69: 222 | AI69: 76 | AJ69: 146 | AK69: =AJ69*I69 -> 11388 | AL69: 93 | AT69: 3 | AU69: 0 | AW69: 1.85 | AZ69: 222 | BA69: 113.85 | BB69: 76 | BC69: 38.97 | BD69: 65.77 | BN69: 37 | BO69: 37 | BP69: 37 | BQ69: 37 | BR69: 37 | BS69: 37 | BT69: 37 | BU69: 37 | BV69: 37 | BW69: 37 | BX69: 30.124 | BY69: 20.666 | BZ69: 37 | CA69: 21.635 | CB69: 37 | CC69: 26.966 | CD69: 37 | CE69: 37 | CF69: 37 | CG69: 37 | CH69: 37 | CI69: 37 | CJ69: 37 | CK69: 37 | CL69: 37 | CM69: 37 | CN69: 37 | CO69: 21.643 | CP69: 27.98 | CQ69: 37 | CR69: 28.488 | CS69: 37 | CT69: 37 | CU69: 30.948 | CV69: 37 | CW69: 30.872 | CX69: 24.326 | CY69: 37 | CZ69: 30.411 | DA69: 37 | DB69: 37 | DC69: 27.323 | DD69: 37 | DE69: 37 | DF69: 30.697 | DJ69: 59004 | DK69: 24614 | DL69: 5807.5 | DM69: 492.5 | DN69: 0.052763 | DO69: 5.4744 | DP69: A | DR69: 84 | DS69: 146 | DT69: 11388 | DU69: 47.25 | DV69: 41.66 | DY69: 0.0168 | DZ69: 0.1041 | EA69: 77.75748157
A70: 52.23835616 | B70: 0 | C70: 188 | D70: 80 | E70: 2.043961296 | F70: 22.63467632 | G70: 140 | H70: 68 | I70: 55 | J70: 0 | K70: 0 | L70: 0 | M70: 0 | N70: 0 | O70: 0 | P70: 0 | Q70: 0 | R70: 0 | S70: 0 | T70: 0 | U70: 0 | V70: 0 | W70: 0 | X70: 0 | Y70: 0 | Z70: 0 | AA70: 0 | AB70: 0 | AC70: 0 | AD70: 0 | AE70: 0 | AF70: 0 | AG70: 0 | AH70: 221 | AI70: 88 | AJ70: 133 | AK70: =AJ70*I70 -> 7315 | AL70: 92 | AM70: 63 | AN70: 51 | AO70: 14 | AP70: 11 | AS70: 45 | AV70: 49 | BD70: 1 | BF70: 1.87 | BJ70: 3,,4 | BK70: 1 | BL70: 2.02 | BM70: 21 | BN70: 37 | BO70: 37 | BP70: 32.722 | BQ70: 37 | BR70: 37 | BS70: 37 | BT70: 37 | BU70: 28.222 | BV70: 27.712 | BW70: 37 | BX70: 37 | BY70: 20.222 | BZ70: 37 | CA70: 21.991 | CB70: 27.534 | CC70: 24.127 | CD70: 37 | CE70: 37 | CF70: 30.226 | CG70: 37 | CH70: 37 | CI70: 37 | CJ70: 37 | CK70: 37 | CL70: 37 | CM70: 37 | CN70: 31.36 | CO70: 22.581 | CP70: 24.233 | CQ70: 27.817 | CR70: 28.142 | CS70: 27.816 | CT70: 37 | CU70: 26.643 | CV70: 26.253 | CW70: 29.812 | CX70: 24.218 | CY70: 33.624 | CZ70: 25.189 | DA70: 37 | DB70: 37 | DC70: 23.243 | DD70: 37 | DE70: 37 | DF70: 27.604 | DJ70: 53264 | DK70: 26226 | DL70: 1460 | DM70: 231.5 | DN70: 0.051982 | DO70: 5.2532 | DP70: A | DQ70: AP | DR70: 82 | DS70: 133 | DT70: 7315 | DU70: 46.99 | DV70: 43.85 | DW70: 168.31 | DX70: 162.55 | DY70: 0.284 | DZ70: 0.0617 | EA70: 143.6519031
A71: 56.49589041 | B71: 1 | C71: 180 | D71: 105 | E71: 2.291287847 | F71: 32.40740741 | G71: 142 | H71: 90 | I71: 55 | J71: 1 | K71: 0 | L71: 0 | M71: 0 | N71: 0 | O71: 0 | P71: 0 | Q71: 0 | R71: 0 | S71: 0 | T71: 0 | U71: 0 | V71: 0 | W71: 0 | X71: 0 | Y71: 0 | Z71: 0 | AA71: 0 | AB71: 1 | AC71: 0 | AD71: 1 | AE71: 0 | AF71: 0 | AG71: 0 | AL71: 107.3333333 | BD71: 64 | BN71: 37 | BO71: 37 | BP71: 37 | BQ71: 37 | BR71: 37 | BS71: 37 | BT71: 37 | BU71: 37 | BV71: 31.841 | BW71: 37 | BX71: 37 | BY71: 20.496 | BZ71: 37 | CA71: 22.801 | CB71: 37 | CC71: 28.461 | CD71: 37 | CE71: 30.771 | CF71: 37 | CG71: 37 | CH71: 29.605 | CI71: 37 | CJ71: 37 | CK71: 37 | CL71: 37 | CM71: 37 | CN71: 37 | CO71: 23.575 | CP71: 29.031 | CQ71: 37 | CR71: 31.655 | CS71: 37 | CT71: 37 | CU71: 28.009 | CV71: 28.947 | CW71: 29.682 | CX71: 24.407 | CY71: 37 | CZ71: 32.107 | DA71: 37 | DB71: 37 | DC71: 25.125 | DD71: 37 | DE71: 37 | DF71: 29.099 | DJ71: 48628 | DK71: 26050 | DL71: 1985 | DM71: 313 | DN71: 0.052253 | DO71: 4.8084 | DP71: N | DR71: 105 | DU71: 43.22 | DV71: 41.67 | DY71: 0.0284 | DZ71: 0.1479 | EA71: 193.3123046
A72: 67.18082192 | B72: 0 | C72: 170 | D72: 72 | E72: 1.843908891 | F72: 24.91349481 | G72: 146 | H72: 60 | I72: 71 | J72: 1 | K72: 0 | L72: 0 | M72: 2 | N72: 1 | O72: 0 | P72: 0 | Q72: 0 | R72: 0 | S72: 0 | T72: 0 | U72: 0 | V72: 0 | W72: 0 | X72: 0 | Y72: 0 | Z72: 0 | AA72: 0 | AB72: 1 | AC72: 0 | AD72: 1 | AE72: 1 | AF72: 0 | AG72: 0 | AH72: 223 | AI72: 84 | AJ72: 139 | AK72: =AJ72*I72 -> 9869 | AL72: 88.66666667 | AM72: 56 | AO72: 14 | AS72: 49 | AV72: 52 | BD72: 1 | BF72: 2.9 | BG72: 34 | BH72: 16 | BJ72: 3,,4 | BK72: 2 | BN72: 37 | BO72: 37 | BP72: 33.902 | BQ72: 37 | BR72: 37 | BS72: 37 | BT72: 34.032 | BU72: 30.677 | BV72: 37 | BW72: 37 | BX72: 37 | BY72: 28.435 | BZ72: 37 | CA72: 33.79 | CB72: 32.365 | CC72: 26.839 | CD72: 37 | CE72: 37 | CF72: 32.537 | CG72: 37 | CH72: 37 | CI72: 37 | CJ72: 37 | CK72: 31.431 | CL72: 37 | CM72: 37 | CN72: 31.888 | CO72: 28.738 | CP72: 25.333 | CQ72: 31.365 | CR72: 31.172 | CS72: 31.878 | CT72: 37 | CU72: 31.269 | CV72: 29.88 | CW72: 37 | CX72: 33.258 | CY72: 32.599 | CZ72: 31.246 | DA72: 37 | DB72: 37 | DC72: 25.535 | DD72: 37 | DE72: 37 | DF72: 26.627 | DJ72: 52980 | DK72: 32126 | DL72: 2145 | DM72: 199 | DN72: 0.052083 | DO72: 5.2936 | DP72: N | DQ72: AP | DR72: 79 | DS72: 139 | DT72: 9869 | DU72: 48.45 | DV72: 48.79 | DW72: 165.35 | DX72: 126.05 | DY72: 0.0375 | DZ72: 0.1616 | EA72: 1633.865889
A73: 69.39452055 | B73: 0 | C73: 178 | D73: 91 | E73: 2.121189394 | F73: 28.72112107 | G73: 140 | H73: 74 | I73: 62 | J73: 1 | K73: 0 | L73: 0 | M73: 0 | N73: 0 | O73: 0 | P73: 0 | Q73: 0 | R73: 0 | S73: 0 | T73: 2 | U73: 0 | V73: 0 | W73: 0 | X73: 1 | Y73: 0 | Z73: 0 | AA73: 0 | AB73: 1 | AC73: 0 | AD73: 1 | AE73: 0 | AF73: 0 | AG73: 0 | AL73: 96 | AM73: 51 | AO73: 9 | AP73: 10 | AS73: 37 | AU73: 33 | AV73: 50 | BF73: 1.8 | BJ73: 1 | BK73: 1 | BL73: 2.2 | BM73: 23 | BN73: 37 | BO73: 37 | BP73: 37 | BQ73: 37 | BR73: 37 | BS73: 37 | BT73: 37 | BU73: 37 | BV73: 37 | BW73: 37 | BX73: 37 | BY73: 24.47 | BZ73: 37 | CA73: 25.199 | CB73: 37 | CC73: 29.489 | CD73: 37 | CE73: 37 | CF73: 37 | CG73: 37 | CH73: 37 | CI73: 37 | CJ73: 37 | CK73: 37 | CL73: 37 | CM73: 37 | CN73: 37 | CO73: 26.854 | CP73: 28.585 | CQ73: 37 | CR73: 31.557 | CS73: 28.6 | CT73: 37 | CU73: 37 | CV73: 29.095 | CW73: 29.424 | CX73: 23.613 | CY73: 37 | CZ73: 29.831 | DA73: 37 | DB73: 37 | DC73: 26.899 | DD73: 37 | DE73: 37 | DF73: 27.703 | DJ73: 35896 | DK73: 25038 | DL73: 1220 | DM73: 268.5 | DN73: 0.059706 | DO73: 6.1424
A74: 79.35616438 | B74: 1 | C74: 150 | D74: 55 | E74: 1.513825177 | F74: 24.44444444 | G74: 141 | H74: 89 | I74: 78 | J74: 1 | K74: 0 | L74: 0 | M74: 0 | N74: 0 | O74: 0 | P74: 0 | Q74: 0 | R74: 0 | S74: 0 | T74: 0 | U74: 0 | V74: 0 | W74: 0 | X74: 0 | Y74: 0 | Z74: 0 | AA74: 0 | AB74: 0 | AC74: 0 | AD74: 1 | AE74: 0 | AF74: 0 | AG74: 0 | AH74: 94 | AI74: 30 | AJ74: 64 | AK74: =AJ74*I74 -> 4992 | AL74: 106.3333333 | AO74: 12 | AR74: 23 | AS74: 30 | AV74: 58 | AW74: 1.3 | BJ74: 2 | BN74: 27.669 | BO74: 30.263 | BP74: 37 | BQ74: 37 | BR74: 37 | BS74: 37 | BT74: 37 | BU74: 30.018 | BV74: 37 | BW74: 37 | BX74: 37 | BY74: 21.106 | BZ74: 37 | CA74: 21.418 | CB74: 27.222 | CC74: 24.099 | CD74: 37 | CE74: 37 | CF74: 29.985 | CG74: 37 | CH74: 37 | CI74: 37 | CJ74: 37 | CK74: 27.818 | CL74: 37 | CM74: 37 | CN74: 37 | CO74: 21.167 | CP74: 24.701 | CQ74: 29.422 | CR74: 27.228 | CS74: 26.993 | CT74: 30.112 | CU74: 28.735 | CV74: 24.646 | CW74: 28.857 | CX74: 24.132 | CY74: 27.046 | CZ74: 24.379 | DA74: 37 | DB74: 37 | DC74: 23.432 | DD74: 37 | DE74: 37 | DF74: 25.018 | DJ74: 121706 | DK74: 31638 | DL74: 2950 | DM74: 325 | DN74: 0.053647 | DO74: 5.6016 | DP74: A | DR74: 94 | DS74: 64 | DT74: 4992 | DU74: 59.45 | DV74: 59.22 | DW74: 154.75 | DX74: 167.78 | DY74: 0.034 | DZ74: 0.1523 | EA74: 1791.968854
A75: 79.57534247 | B75: 0 | C75: 166 | D75: 62 | E75: 1.690824914 | F75: 22.4996371 | G75: 136 | H75: 69 | I75: 60 | J75: 1 | K75: 0 | L75: 0 | M75: 2 | N75: 0 | O75: 0 | P75: 0 | Q75: 0 | R75: 0 | S75: 0 | T75: 0 | U75: 0 | V75: 0 | W75: 0 | X75: 0 | Y75: 0 | Z75: 0 | AA75: 0 | AB75: 1 | AC75: 0 | AD75: 1 | AE75: 0 | AF75: 1 | AG75: 0 | AL75: 91.33333333 | AO75: 12 | AP75: 12 | AS75: 46 | AV75: 47 | AZ75: 19 | BD75: 2 | BF75: 1.6 | BJ75: 2 | BK75: 2 | BN75: 37 | BO75: 37 | BP75: 37 | BQ75: 37 | BR75: 37 | BS75: 37 | BT75: 37 | BU75: 37 | BV75: 37 | BW75: 37 | BX75: 37 | BY75: 33.388 | BZ75: 37 | CA75: 37 | CB75: 37 | CC75: 32.786 | CD75: 37 | CE75: 37 | CF75: 37 | CG75: 37 | CH75: 37 | CI75: 37 | CJ75: 37 | CK75: 33.848 | CL75: 37 | CM75: 37 | CN75: 33.773 | CO75: 32.178 | CP75: 31.684 | CQ75: 37 | CR75: 37 | CS75: 37 | CT75: 37 | CU75: 37 | CV75: 33.389 | CW75: 37 | CX75: 37 | CY75: 37 | CZ75: 34.156 | DA75: 37 | DB75: 37 | DC75: 30.758 | DD75: 37 | DE75: 37 | DF75: 30.951 | DP75: A | DQ75: AP | DR75: 85 | DS75: 43 | DT75: 2580 | DU75: 46.13 | DV75: 47.09 | DW75: 179.38 | DX75: 148.95 | DY75: 0.0306 | DZ75: 0.1438 | EA75: 429.2300458
A76: 56.55616438 | B76: 0 | C76: 175 | D76: 95 | E76: 2.14896616 | F76: 31.02040816 | J76: 0 | L76: 0 | M76: 0 | N76: 0 | O76: 0 | AB76: 1 | AC76: 0 | AD76: 0 | AE76: 0 | AF76: 0 | AH76: 107 | AI76: 45 | AJ76: 62 | AK76: =AJ76*I76 -> 0 | AL76: 0 | AW76: 1.2 | AZ76: 107 | BB76: 45 | BD76: 58 | BN76: 37 | BO76: 37 | BP76: 37 | BQ76: 37 | BR76: 37 | BS76: 37 | BT76: 37 | BU76: 37 | BV76: 29.023 | BW76: 37 | BX76: 37 | BY76: 25.059 | BZ76: 37 | CA76: 24.76 | CB76: 37 | CC76: 29.428 | CD76: 37 | CE76: 37 | CF76: 37 | CG76: 37 | CH76: 37 | CI76: 37 | CJ76: 37 | CK76: 37 | CL76: 37 | CM76: 37 | CN76: 37 | CO76: 25.082 | CP76: 29.672 | CQ76: 37 | CR76: 33.012 | CS76: 37 | CT76: 37 | CU76: 37 | CV76: 37 | CW76: 30.424 | CX76: 24.281 | CY76: 37 | CZ76: 37 | DA76: 37 | DB76: 37 | DC76: 28.549 | DD76: 37 | DE76: 37 | DF76: 23.918
A77: 50.78356164 | B77: 0 | C77: 180 | D77: 102 | E77: 2.258317958 | F77: 31.48148148 | G77: 121 | H77: 87 | I77: 65 | J77: 0 | K77: 0 | L77: 0 | M77: 0 | N77: 0 | O77: 0 | P77: 0 | Q77: 0 | R77: 0 | S77: 0 | T77: 0 | U77: 0 | V77: 0 | W77: 0 | X77: 0 | Y77: 0 | Z77: 0 | AA77: 0 | AB77: 0 | AC77: 0 | AD77: 0 | AE77: 0 | AF77: 0 | AG77: 0 | AH77: 168 | AI77: 58 | AJ77: 110 | AK77: =AJ77*I77 -> 7150 | AL77: 98.33333333 | AM77: 48 | AO77: 10 | AP77: 10 | AR77: 23 | AS77: 49 | AV77: 40 | BA77: 0.53 | BB77: 0.65 | BC77: 280 | BD77: 2 | BF77: 1.28 | BI77: 0 | BJ77: 3 | BK77: 2 | BL77: 2.3 | BM77: 26 | BN77: 37 | BO77: 37 | BP77: 37 | BQ77: 37 | BR77: 37 | BS77: 37 | BT77: 30.508 | BU77: 37 | BV77: 25.42 | BW77: 37 | BX77: 29.502 | BY77: 22.947 | BZ77: 37 | CA77: 23.977 | CB77: 37 | CC77: 26.487 | CD77: 37 | CE77: 37 | CF77: 37 | CG77: 37 | CH77: 37 | CI77: 37 | CJ77: 37 | CK77: 27.563 | CL77: 37 | CM77: 37 | CN77: 37 | CO77: 23.875 | CP77: 26.699 | CQ77: 31.247 | CR77: 28.635 | CS77: 27.137 | CT77: 37 | CU77: 28.383 | CV77: 24.479 | CW77: 29.357 | CX77: 23.461 | CY77: 25.731 | CZ77: 24.678 | DA77: 37 | DB77: 37 | DC77: 22.287 | DD77: 37 | DE77: 37 | DF77: 25.441 | DP77: N | DQ77: AP | DR77: 93 | DS77: 110 | DT77: 7150 | DU77: 37.4 | DV77: 35.27 | DW77: 156.01 | DX77: 165.38 | DY77: 0.0371 | DZ77: 0.1723 | EA77: 79.5928409
A78: 84.90958904 | B78: 1 | C78: 160 | D78: 95 | E78: 2.054804668 | F78: 37.109375 | G78: 147 | H78: 78 | I78: 71 | J78: 1 | K78: 0 | L78: 0 | M78: 2 | N78: 0 | O78: 0 | P78: 0 | Q78: 0 | R78: 0 | S78: 0 | T78: 0 | U78: 0 | V78: 0 | W78: 0 | X78: 0 | Y78: 1 | Z78: 0 | AA78: 1 | AB78: 1 | AC78: 0 | AD78: 1 | AE78: 1 | AF78: 0 | AG78: 0 | AL78: 101 | BN78: 37 | BO78: 37 | BP78: 37 | BQ78: 37 | BR78: 37 | BS78: 37 | BT78: 37 | BU78: 37 | BV78: 27.364 | BW78: 37 | BX78: 37 | BY78: 24.588 | BZ78: 37 | CA78: 24.924 | CB78: 37 | CC78: 31.379 | CD78: 37 | CE78: 37 | CF78: 37 | CG78: 37 | CH78: 37 | CI78: 37 | CJ78: 37 | CK78: 37 | CL78: 37 | CM78: 37 | CN78: 37 | CO78: 25.257 | CP78: 30.688 | CQ78: 37 | CR78: 29.403 | CS78: 37 | CT78: 37 | CU78: 30.718 | CV78: 30.837 | CW78: 29.529 | CX78: 23.459 | CY78: 37 | CZ78: 29.059 | DA78: 37 | DB78: 37 | DC78: 31.33 | DD78: 37 | DE78: 37 | DF78: 28.626 | DP78: A | DR78: 93 | DU78: 43.13 | DV78: 44.26 | DW78: 168.07 | DX78: 146.72 | DY78: 0.0407 | DZ78: 0.1656 | EA78: 351.1180823
A79: 77.89041096 | B79: 1 | C79: 170 | D79: 101 | E79: 2.183905777 | F79: 34.94809689 | G79: 133 | H79: 69 | I79: 75 | J79: 0 | K79: 0 | L79: 0 | M79: 2 | N79: 0 | O79: 0 | P79: 0 | Q79: 0 | R79: 0 | S79: 0 | T79: 0 | U79: 0 | V79: 0 | W79: 0 | X79: 0 | Y79: 0 | Z79: 0 | AA79: 0 | AB79: 0 | AC79: 0 | AD79: 0 | AE79: 1 | AF79: 0 | AG79: 0 | AH79: 113 | AI79: 36 | AJ79: 77 | AK79: =AJ79*I79 -> 5775 | AL79: 90.33333333 | AM79: 50 | AO79: 13 | AP79: 12 | AQ79: 48 | AR79: 26 | AS79: 35 | AV79: 48 | AY79: 34 | BA79: 1.3 | BB79: 1.6 | BC79: 257 | BF79: 2.2 | BK79: 1 | BN79: 27.742 | BO79: 30.802 | BP79: 29.076 | BQ79: 37 | BR79: 37 | BS79: 28.767 | BT79: 24.558 | BU79: 24.072 | BV79: 24.597 | BW79: 25.105 | BX79: 37 | BY79: 21.342 | BZ79: 37 | CA79: 22.214 | CB79: 24.9 | CC79: 20.212 | CD79: 37 | CE79: 37 | CF79: 26.803 | CG79: 37 | CH79: 30.186 | CI79: 37 | CJ79: 37 | CK79: 25.436 | CL79: 26.163 | CM79: 37 | CN79: 28.773 | CO79: 20.836 | CP79: 21.863 | CQ79: 26.711 | CR79: 29.382 | CS79: 22.264 | CT79: 37 | CU79: 26.288 | CV79: 19.191 | CW79: 29.301 | CX79: 23.358 | CY79: 21.678 | CZ79: 21.957 | DA79: 37 | DB79: 37 | DC79: 15.304 | DD79: 37 | DE79: 37 | DF79: 26.445 | DP79: A | DR79: 82 | DS79: 77 | DT79: 5775 | DU79: 47.23 | DV79: 45 | DW79: 164.05 | DX79: 169.04 | DY79: 0.0368 | DZ79: 0.1298 | EA79: 180.7158093
A80: 59.46849315 | B80: 1 | C80: 178 | D80: 100 | E80: 2.223610677 | F80: 31.56167151 | G80: 156 | H80: 101 | I80: 77 | J80: 1 | K80: 0 | L80: 0 | M80: 0 | N80: 0 | O80: 1 | P80: 0 | Q80: 0 | R80: 0 | S80: 0 | T80: 0 | U80: 0 | V80: 0 | W80: 0 | X80: 0 | Y80: 0 | Z80: 0 | AA80: 0 | AB80: 1 | AC80: 0 | AD80: 0 | AE80: 0 | AF80: 0 | AG80: 0 | AL80: 119.3333333 | BN80: 37 | BO80: 37 | BP80: 37 | BQ80: 37 | BR80: 37 | BS80: 37 | BT80: 37 | BU80: 37 | BV80: 29.179 | BW80: 37 | BX80: 37 | BY80: 23.388 | BZ80: 37 | CA80: 25.039 | CB80: 37 | CC80: 37 | CD80: 37 | CE80: 29.183 | CF80: 37 | CG80: 37 | CH80: 37 | CI80: 37 | CJ80: 37 | CK80: 37 | CL80: 37 | CM80: 37 | CN80: 37 | CO80: 25.096 | CP80: 32.691 | CQ80: 37 | CR80: 32.989 | CS80: 37 | CT80: 37 | CU80: 37 | CV80: 28.067 | CW80: 28.308 | CX80: 24.099 | CY80: 37 | CZ80: 28.697 | DA80: 37 | DB80: 37 | DC80: 26.935 | DD80: 37 | DE80: 37 | DF80: 28.381 | DP80: A | DR80: 109 | DU80: 47.46 | DV80: 48.82 | DW80: 166.18 | DX80: 153.7 | DY80: 0.0286 | DZ80: 0.157 | EA80: 255.8907607
A81: 50.17260274 | B81: 1 | C81: 165 | D81: 55 | E81: 1.58771324 | F81: 20.2020202 | G81: 139 | H81: 95 | I81: 63 | J81: 1 | K81: 0 | L81: 0 | M81: 1 | N81: 1 | O81: 0 | P81: 0 | Q81: 0 | R81: 0 | S81: 0 | T81: 0 | U81: 0 | V81: 0 | W81: 0 | X81: 0 | Y81: 0 | Z81: 0 | AA81: 0 | AB81: 1 | AC81: 0 | AD81: 0 | AE81: 0 | AF81: 0 | AG81: 0 | AL81: 109.6666667 | AM81: 49 | AN81: 19 | AO81: 10 | AP81: 10 | AS81: 40 | AV81: 41 | AY81: 23 | BD81: 62 | BF81: 1.14 | BK81: 1 | BL81: 2 | BM81: 19 | BN81: 37 | BO81: 37 | BP81: 37 | BQ81: 37 | BR81: 37 | BS81: 37 | BT81: 37 | BU81: 37 | BV81: 37 | BW81: 37 | BX81: 37 | BY81: 23.003 | BZ81: 37 | CA81: 24.604 | CB81: 37 | CC81: 27.511 | CD81: 37 | CE81: 37 | CF81: 37 | CG81: 37 | CH81: 37 | CI81: 37 | CJ81: 37 | CK81: 37 | CL81: 37 | CM81: 37 | CN81: 37 | CO81: 23.682 | CP81: 27.139 | CQ81: 37 | CR81: 31.935 | CS81: 37 | CT81: 37 | CU81: 32.23 | CV81: 25.87 | CW81: 29.387 | CX81: 23.821 | CY81: 28.733 | CZ81: 25.883 | DA81: 37 | DB81: 37 | DC81: 23.237 | DD81: 37 | DE81: 37 | DF81: 26.974 | DP81: A | DR81: 103 | DU81: 41.89 | DV81: 41.88 | DY81: 0.0424 | DZ81: 0.1314 | EA81: 24573.44964
A82: 58.60547945 | B82: 1 | C82: 170 | D82: 82 | E82: 1.967796286 | F82: 28.37370242 | G82: 122 | H82: 65 | I82: 71 | J82: 1 | K82: 0 | L82: 0 | M82: 2 | N82: 0 | O82: 0 | P82: 0 | Q82: 0 | R82: 0 | S82: 0 | T82: 0 | U82: 0 | V82: 0 | W82: 0 | X82: 0 | Y82: 0 | Z82: 0 | AA82: 1 | AB82: 1 | AC82: 0 | AD82: 1 | AE82: 0 | AF82: 0 | AG82: 0 | AL82: 84 | AM82: 51 | AO82: 8 | AP82: 8 | AS82: 44 | AV82: 40
A83: 67.56164384 | B83: 1 | C83: 172 | D83: 88 | E83: 2.0504742 | F83: 29.74580855 | G83: 116 | H83: 73 | I83: 73 | J83: 1 | K83: 0 | L83: 0 | M83: 2 | N83: 0 | O83: 0 | P83: 0 | Q83: 0 | R83: 0 | S83: 0 | T83: 0 | U83: 0 | V83: 0 | W83: 0 | X83: 0 | Y83: 0 | Z83: 0 | AA83: 0 | AB83: 0 | AC83: 0 | AD83: 1 | AE83: 0 | AF83: 0 | AG83: 0 | AH83: 105 | AJ83: 105 | AK83: =AJ83*I83 -> 7665 | AL83: 87.33333333 | AM83: 39 | AO83: 13 | AP83: 10 | AS83: 43 | AV83: 49 | BA83: 0.77 | BB83: 0.58 | BC83: 223 | BD83: 2 | BF83: 1.4 | BJ83: 2 | BN83: 29.233 | BO83: 37 | BP83: 37 | BQ83: 37 | BR83: 37 | BS83: 37 | BT83: 37 | BU83: 37 | BV83: 37 | BW83: 37 | BX83: 37 | BY83: 22.177 | BZ83: 37 | CA83: 23.202 | CB83: 37 | CC83: 29.308 | CD83: 37 | CE83: 37 | CF83: 37 | CG83: 37 | CH83: 37 | CI83: 37 | CJ83: 37 | CK83: 27.968 | CL83: 37 | CM83: 37 | CN83: 37 | CO83: 22.667 | CP83: 28.766 | CQ83: 37 | CR83: 29.158 | CS83: 27.133 | CT83: 37 | CU83: 37 | CV83: 27.234 | CW83: 28.132 | CX83: 23.314 | CY83: 37 | CZ83: 26.836 | DA83: 37 | DB83: 37 | DC83: 23.758 | DD83: 37 | DE83: 37 | DF83: 28.321
A84: 52.49315068 | B84: 0 | C84: 164 | D84: 80 | E84: 1.909042808 | F84: 29.74419988 | G84: 148 | H84: 77 | I84: 65 | J84: 1 | K84: 0 | L84: 0 | M84: 0 | N84: 0 | O84: 0 | P84: 0 | Q84: 0 | R84: 0 | S84: 0 | T84: 0 | U84: 0 | V84: 0 | W84: 0 | X84: 0 | Y84: 0 | Z84: 0 | AA84: 0 | AB84: 1 | AC84: 0 | AD84: 1 | AE84: 0 | AF84: 0 | AG84: 0 | AH84: 98 | AI84: 28 | AJ84: 70 | AK84: =AJ84*I84 -> 4550 | AL84: 100.6666667 | AM84: 50 | AO84: 10 | AP84: 8 | AS84: 32 | AV84: 51 | BF84: 1.97 | BK84: 2 | BL84: 2.39 | BM84: 29 | BN84: 37 | BO84: 37 | BP84: 37 | BQ84: 37 | BR84: 37 | BS84: 37 | BT84: 37 | BU84: 37 | BV84: 37 | BW84: 37 | BX84: 37 | BY84: 36.322 | BZ84: 37 | CA84: 37 | CB84: 37 | CC84: 31.705 | CD84: 37 | CE84: 37 | CF84: 37 | CG84: 37 | CH84: 37 | CI84: 37 | CJ84: 37 | CK84: 37 | CL84: 37 | CM84: 37 | CN84: 37 | CO84: 37 | CP84: 32.456 | CQ84: 37 | CR84: 37 | CS84: 37 | CT84: 37 | CU84: 37 | CV84: 33.343 | CW84: 37 | CX84: 37 | CY84: 37 | CZ84: 37 | DA84: 37 | DB84: 37 | DC84: 32.524 | DD84: 37 | DE84: 37 | DF84: 34.731
A85: 48.50410959 | B85: 0 | C85: 180 | D85: 74 | E85: 1.923538406 | F85: 22.83950617 | G85: 124 | H85: 78 | I85: 65 | J85: 0 | K85: 0 | L85: 0 | M85: 0 | N85: 0 | O85: 0 | P85: 0 | Q85: 0 | R85: 0 | S85: 0 | T85: 0 | U85: 0 | V85: 0 | W85: 0 | X85: 0 | Y85: 0 | Z85: 0 | AA85: 0 | AB85: 0 | AC85: 0 | AD85: 0 | AE85: 0 | AF85: 0 | AG85: 0 | AH85: 80 | AI85: 32 | AJ85: 48 | AK85: =AJ85*I85 -> 3120 | AL85: 93.33333333 | AM85: 40 | AO85: 11 | AP85: 11 | AR85: 15 | AS85: 38 | AU85: 35 | AV85: 49 | AZ85: 23 | BA85: 0.84 | BB85: 0.58 | BC85: 218 | BD85: 2 | BF85: 1.8 | BH85: 9 | BJ85: 2 | BK85: 1 | BL85: 2.4 | BM85: 35
A86: 64.55068493 | B86: 1 | C86: 178 | D86: 120 | E86: 2.435843454 | F86: 37.87400581 | G86: 147 | H86: 79 | I86: 75 | J86: 1 | K86: 0 | L86: 0 | M86: 2 | N86: 0 | O86: 0 | P86: 0 | Q86: 0 | R86: 0 | S86: 0 | T86: 0 | U86: 1 | V86: 0 | W86: 0 | X86: 1 | Y86: 0 | Z86: 0 | AA86: 0 | AB86: 1 | AC86: 0 | AD86: 1 | AE86: 0 | AF86: 1 | AG86: 0 | AL86: 101.6666667 | AM86: 51 | AO86: 15 | AP86: 12 | AR86: 23 | AV86: 43 | AZ86: 24 | BA86: 0.61 | BB86: 0.6 | BC86: 162 | BF86: 1.2 | BK86: 1
A87: 70.53424658 | B87: 1 | C87: 176 | D87: 100 | E87: =SQRT((C87*D87)/3600) -> 2.211083194 | F87: =(D87/POWER(C87,2))*10000 -> 32.28305785 | G87: 136 | H87: 75 | I87: 79 | J87: 1 | K87: 0 | L87: 1 | M87: 2 | N87: 0 | O87: 0 | P87: 0 | Q87: 0 | R87: 0 | S87: 0 | T87: 0 | U87: 0 | V87: 0 | W87: 0 | X87: 0 | Y87: 0 | Z87: 0 | AA87: 1 | AB87: 1 | AC87: 0 | AD87: 1 | AE87: 0 | AF87: 0 | AG87: 0 | AH87: 75 | AI87: 23 | AJ87: 52 | AK87: =AJ87*I87 -> 4108 | AL87: 95.33333333 | AO87: 14 | AR87: 31 | AS87: 45 | AV87: 49 | BA87: 0.59 | BB87: 0.57 | BC87: 225 | BJ87: 1 | BK87: 1
A88: 74.80821918 | B88: 1 | C88: 179 | D88: 100 | E88: 2.229848027 | F88: 31.21001217 | G88: 136 | H88: 75 | I88: 72 | J88: 1 | K88: 0 | L88: 0 | M88: 0 | N88: 0 | O88: 0 | P88: 0 | Q88: 0 | R88: 0 | S88: 0 | T88: 0 | U88: 0 | V88: 0 | W88: 0 | X88: 0 | Y88: 0 | Z88: 0 | AA88: 0 | AB88: 0 | AC88: 0 | AD88: 1 | AE88: 0 | AF88: 0 | AG88: 0 | AL88: 95.33333333 | AW88: 1.2
A89: 64.21917808 | B89: 1 | C89: 164 | D89: 72 | E89: 1.811077028 | F89: 26.76977989 | G89: 180 | H89: 86 | I89: 72 | J89: 1 | K89: 0 | L89: 0 | M89: 1 | N89: 0 | O89: 0 | P89: 0 | Q89: 0 | R89: 0 | S89: 0 | T89: 0 | U89: 0 | V89: 1 | W89: 0 | X89: 1 | Y89: 1 | Z89: 0 | AA89: 0 | AB89: 0 | AC89: 0 | AD89: 1 | AE89: 0 | AF89: 0 | AG89: 0 | AH89: 127 | AI89: 51 | AJ89: 76 | AK89: =AJ89*I89 -> 5472 | AL89: 117.3333333 | AM89: 49 | AO89: 9 | AP89: 9 | AS89: 31 | AV89: 50 | BD89: 1 | BJ89: 2 | BK89: 2
A90: 37.98356164 | B90: 1 | C90: 160 | D90: 54 | E90: 1.549193338 | F90: 21.09375 | J90: 0 | L90: 0 | M90: 0 | N90: 0 | O90: 0 | AB90: 0 | AC90: 0 | AD90: 0 | AE90: 0 | AF90: 0 | AL90: 0 | AW90: 1.2
A91: 74.55068493 | B91: 1 | C91: 175 | D91: 85 | E91: 2.032718486 | F91: 27.75510204 | G91: 145 | H91: 70 | I91: 81 | J91: 1 | K91: 0 | L91: 0 | M91: 2 | N91: 0 | O91: 0 | P91: 0 | Q91: 0 | R91: 0 | S91: 0 | T91: 0 | U91: 0 | V91: 0 | W91: 0 | X91: 0 | Y91: 0 | Z91: 0 | AA91: 0 | AB91: 0 | AC91: 0 | AD91: 1 | AE91: 0 | AF91: 0 | AG91: 0 | AL91: 95 | AM91: 48 | AO91: 14 | AP91: 12 | AS91: 54 | AV91: 53 | AZ91: 20 | BA91: 0.3 | BB91: 0.67 | BC91: 119 | BD91: 2 | BF91: 1 | BK91: 1
A92: 57.82739726 | B92: 1 | C92: 165 | D92: 87 | E92: 1.996872555 | F92: 31.95592287 | G92: 128 | H92: 78 | I92: 62 | J92: 0 | K92: 0 | L92: 0 | M92: 1 | N92: 0 | O92: 0 | P92: 0 | Q92: 0 | R92: 0 | S92: 0 | T92: 0 | U92: 0 | V92: 0 | W92: 0 | AL92: 94.66666667 | AM92: 45 | AO92: 12 | AP92: 10 | AS92: 44 | AV92: 46 | BF92: 1.1 | BJ92: 2 | BK92: 1
A93: 83.77534247 | B93: 1 | C93: 167 | D93: 88 | E93: 2.020450995 | F93: 31.55365915 | G93: 156 | H93: 80 | I93: 69 | J93: 1 | K93: 1 | L93: 1 | M93: 0 | N93: 0 | O93: 0 | P93: 0 | Q93: 1 | R93: 0 | S93: 0 | T93: 0 | U93: 0 | V93: 0 | W93: 0 | X93: 0 | Y93: 0 | Z93: 0 | AA93: 0 | AB93: 1 | AC93: 1 | AD93: 1 | AE93: 1 | AF93: 1 | AG93: 0 | AL93: 105.3333333 | AV93: 49
A94: 72.0109589 | B94: 1 | C94: 166 | D94: 70 | E94: 1.79660173 | F94: 25.40281608 | G94: 156 | H94: 79 | I94: 72 | J94: 1 | K94: 0 | L94: 0 | M94: 0 | N94: 0 | O94: 0 | P94: 0 | Q94: 0 | R94: 0 | S94: 0 | T94: 1 | U94: 0 | V94: 0 | W94: 0 | AH94: 80 | AJ94: 80 | AK94: =AJ94*I94 -> 5760 | AL94: 104.6666667 | AM94: 39 | AO94: 11 | AS94: 50 | AU94: 43 | AV94: 47 | AY94: 36 | AZ94: 23 | BD94: 2 | BF94: 1.3 | BJ94: 2 | BK94: 1
A95: 55.9260274 | B95: 0 | C95: 180 | D95: 81 | E95: 2.01246118 | F95: 25 | G95: 126 | H95: 72 | I95: 53 | J95: 0 | K95: 0 | L95: 0 | M95: 0 | N95: 0 | O95: 0 | P95: 0 | Q95: 0 | R95: 0 | S95: 0 | T95: 0 | U95: 0 | V95: 0 | W95: 0 | X95: 1 | Y95: 0 | Z95: 0 | AA95: 0 | AB95: 1 | AC95: 0 | AD95: 0 | AE95: 1 | AF95: 0 | AG95: 0 | AH95: 159 | AI95: 45 | AJ95: 114 | AK95: =AJ95*I95 -> 6042 | AL95: 90 | AM95: 57 | AO95: 12 | AP95: 10 | AR95: 27 | AS95: 35 | AT95: 22 | AV95: 49 | BA95: 1 | BB95: 0.5 | BC95: 140 | BD95: 4 | BF95: 3.2 | BG95: 41 | BH95: 22 | BI95: 2 | BJ95: 3 | BK95: 2 | BL95: 2.9 | BM95: 40
A96: 49.74794521 | B96: 1 | C96: 183 | D96: 90 | E96: 2.138924964 | F96: 26.8744961 | G96: 135 | H96: 85 | I96: 72 | J96: 0 | K96: 0 | L96: 0 | M96: 0 | N96: 0 | O96: 0 | P96: 0 | Q96: 0 | R96: 0 | S96: 0 | T96: 0 | U96: 0 | V96: 0 | W96: 0 | X96: 0 | Y96: 0 | Z96: 0 | AA96: 0 | AB96: 1 | AC96: 0 | AD96: 0 | AE96: 0 | AF96: 0 | AG96: 0 | AL96: 101.6666667 | AM96: 49 | AO96: 12 | AP96: 12 | AS96: 43 | AU96: 36 | AV96: 49.5 | BJ96: 2
A97: 40.91506849 | B97: 0 | C97: 167 | D97: 67 | E97: 1.762967826 | F97: 24.02380867 | G97: 122 | H97: 65 | I97: 80 | J97: 0 | K97: 0 | L97: 0 | M97: 1 | N97: 0 | O97: 0 | P97: 0 | Q97: 0 | R97: 0 | S97: 0 | T97: 0 | U97: 0 | V97: 0 | W97: 0 | X97: 1 | Y97: 0 | Z97: 0 | AA97: 0 | AB97: 0 | AC97: 0 | AD97: 0 | AE97: 0 | AF97: 0 | AG97: 0 | AH97: 70 | AI97: 17 | AJ97: 53 | AK97: =AJ97*I97 -> 4240 | AL97: 84 | AM97: 43 | AO97: 8 | AP97: 8 | AR97: 15 | AS97: 33 | AV97: 39 | BA97: 0.91 | BB97: 0.93 | BC97: 169 | BD97: 2 | BF97: 1.5 | BG97: 11 | BH97: 6 | BJ97: 1 | BK97: 1
A98: 58.38356164 | B98: 1 | C98: 168 | D98: 87 | E98: =SQRT((C98*D98)/3600) -> 2.014944168 | F98: =(D98/POWER(C98,2))*10000 -> 30.82482993 | G98: 95 | H98: 60 | I98: 140 | J98: 1 | K98: 0 | L98: 0 | M98: 1 | N98: 0 | O98: 0 | P98: 0 | Q98: 0 | R98: 0 | S98: 0 | T98: 0 | U98: 0 | V98: 0 | W98: 0 | X98: 1 | Y98: 0 | Z98: 0 | AA98: 0 | AB98: 1 | AC98: 1 | AD98: 1 | AE98: 1 | AF98: 1 | AG98: 0 | AH98: 130 | AI98: 51 | AJ98: 79 | AK98: =AJ98*I98 -> 11060 | AL98: =(G98+ 2*H98)/3 -> 71.66666667 | AM98: 58 | AO98: 11 | AP98: 11 | AQ98: 43 | AR98: 20 | AS98: 38 | AV98: 45
A99: 70.25479452 | B99: 1 | C99: 160 | D99: 97.5 | E99: 2.081665999 | F99: 38.0859375 | G99: 129 | H99: 76 | I99: 55 | J99: 0 | K99: 0 | L99: 1 | M99: 2 | N99: 0 | O99: 0 | P99: 0 | Q99: 0 | R99: 0 | S99: 0 | T99: 0 | U99: 0 | V99: 0 | W99: 0 | X99: 1 | Y99: 1 | Z99: 0 | AA99: 0 | AB99: 1 | AC99: 0 | AD99: 0 | AE99: 0 | AF99: 0 | AG99: 0 | AL99: 93.66666667 | AM99: 44 | AO99: 14 | AP99: 10 | AS99: 36 | AV99: 46
A100: 67.22739726 | B100: 1 | C100: 158 | D100: 58 | E100: 1.595479726 | F100: 23.23345618 | G100: 135 | H100: 68 | I100: 70 | J100: 0 | K100: 0 | L100: 0 | M100: 0 | N100: 0 | O100: 0 | P100: 0 | Q100: 0 | R100: 0 | S100: 0 | T100: 0 | U100: 0 | V100: 0 | W100: 0 | X100: 0 | Y100: 0 | Z100: 0 | AA100: 0 | AB100: 1 | AC100: 0 | AD100: 0 | AE100: 0 | AF100: 0 | AG100: 0 | AH100: 82 | AI100: 30 | AJ100: 52 | AK100: =AJ100*I100 -> 3640 | AL100: 90.33333333 | AM100: 38 | AO100: 11 | AP100: 8 | AS100: 35 | AV100: 47 | AZ100: 32 | BA100: 0.6 | BB100: 0.8 | BC100: 300 | BF100: 1.2 | BJ100: 2,,3 | BK100: 2
A101: 71.23013699 | B101: 1 | C101: 172 | D101: 89 | E101: 2.06209171 | F101: 30.0838291 | G101: 141 | H101: 69 | I101: 68 | J101: 1 | K101: 0 | L101: 0 | M101: 2 | N101: 1 | O101: 0 | P101: 0 | Q101: 0 | R101: 0 | S101: 0 | T101: 0 | U101: 0 | V101: 0 | W101: 0 | X101: 1 | Y101: 1 | Z101: 0 | AA101: 0 | AB101: 1 | AC101: 0 | AD101: 0 | AE101: 1 | AF101: 0 | AG101: 0 | AL101: 93
A102: 75.93424658 | B102: 1 | C102: 175 | D102: 90 | E102: 2.091650066 | F102: 29.3877551 | G102: 144 | H102: 84 | I102: 77 | J102: 1 | K102: 0 | L102: 1 | M102: 0 | N102: 0 | O102: 0 | P102: 0 | Q102: 0 | R102: 0 | S102: 0 | T102: 0 | U102: 0 | V102: 0 | W102: 0 | X102: 1 | Y102: 1 | Z102: 0 | AA102: 0 | AB102: 1 | AC102: 0 | AD102: 0 | AE102: 0 | AF102: 0 | AG102: 0 | AL102: 104 | AM102: 42 | AO102: 12 | AP102: 11 | AS102: 39 | AV102: 49 | BF102: 1.1 | BJ102: 2 | BK102: 1
A103: 41.88219178 | B103: 0 | C103: 170 | D103: 88 | E103: =D103/(C103/100)^2 -> 30.44982699 | F103: =0.007128*C103^0.725*D103^0.425 -> 1.979011394 | G103: 140 | H103: 88 | I103: 74 | J103: 0 | K103: 0 | L103: 0 | M103: 1 | N103: 0 | O103: 0 | P103: 0 | Q103: 0 | R103: 0 | S103: 0 | T103: 0 | U103: 0 | V103: 0 | W103: 0 | X103: 0 | Y103: 0 | Z103: 0 | AA103: 0 | AB103: 0 | AC103: 0 | AD103: 0 | AE103: 0 | AF103: 0 | AG103: 0 | AH103: 90 | AI103: 33 | AJ103: 57 | AK103: =AJ103*I103 -> 4218 | AL103: 105.3333333 | AM103: 45 | AO103: 13 | AP103: 12 | AQ103: 43 | AR103: 20 | AS103: 35 | AV103: 47 | AZ103: 33 | BA103: 0.66 | BB103: 1.01 | BC103: 251 | BE103: 0.1 | BF103: 3.2 | BG103: 42 | BH103: 22 | BI103: 2 | BK103: 1
A104: 59.44931507 | B104: 1 | C104: 175 | D104: 110 | E104: =SQRT((C104*D104)/3600) -> 2.312406154 | F104: =(D104/POWER(C104,2))*10000 -> 35.91836735 | G104: 143 | H104: 87 | I104: 69 | J104: 1 | K104: 0 | L104: 0 | M104: 2 | N104: 0 | O104: 0 | P104: 0 | Q104: 0 | R104: 0 | S104: 0 | T104: 1 | U104: 0 | V104: 0 | W104: 0 | X104: 0 | Y104: 0 | Z104: 1 | AA104: 0 | AB104: 1 | AC104: 0 | AD104: 1 | AE104: 1 | AF104: 0 | AG104: 1 | AH104: 98 | AI104: 35 | AJ104: 63 | AK104: =AJ104*I104 -> 4347 | AL104: 105.6666667 | AM104: 42 | AO104: 13 | AP104: 12 | AR104: 21 | AS104: 50 | AV104: 51 | AZ104: 17 | BA104: 0.78 | BC104: 148 | BD104: 2 | BG104: 19 | BH104: 12 | BI104: 2 | BJ104: 2 | BL104: 2.1 | BM104: 30
A105: 44.93972603 | B105: 0 | C105: 170 | D105: 64 | E105: =SQRT((C105*D105)/3600) -> 1.738453975 | F105: =(D105/POWER(C105,2))*10000 -> 22.14532872 | G105: 131 | H105: 68 | I105: 69 | J105: 0 | K105: 0 | L105: 0 | M105: 2 | N105: 0 | O105: 0 | P105: 0 | Q105: 0 | R105: 0 | S105: 0 | T105: 0 | U105: 0 | V105: 0 | W105: 0 | X105: 0 | Y105: 0 | Z105: 0 | AA105: 0 | AB105: 0 | AC105: 0 | AD105: 0 | AE105: 0 | AF105: 0 | AG105: 0 | AH105: 88 | AI105: 43 | AJ105: 45 | AK105: =AJ105*I105 -> 3105 | AL105: 89 | AM105: 44 | AN105: 32 | AO105: 9 | AP105: 7 | AS105: 32 | AU105: 25 | AV105: 40 | BF105: 1 | BJ105: 1
A106: 83.34520548 | B106: 1 | C106: 172 | D106: 66 | E106: =SQRT((C106*D106)/3600) -> 1.775762747 | F106: =(D106/POWER(C106,2))*10000 -> 22.30935641 | G106: 125 | H106: 65 | I106: 65 | J106: 0 | K106: 0 | L106: 0 | M106: 0 | N106: 0 | O106: 0 | P106: 0 | Q106: 0 | R106: 0 | S106: 0 | T106: 1 | U106: 0 | V106: 0 | W106: 0 | X106: 0 | Y106: 0 | Z106: 0 | AA106: 0 | AB106: 1 | AC106: 0 | AD106: 1 | AE106: 0 | AF106: 1 | AG106: 0 | AL106: 85
A107: 50.65205479 | B107: 0 | C107: 172 | D107: 80 | E107: =D107/(C107/100)^2 -> 27.04164413 | F107: =0.007128*C107^0.725*D107^0.425 -> 1.916633433 | G107: 148 | H107: 90 | I107: 70 | J107: 0 | K107: 0 | L107: 0 | M107: 0 | N107: 0 | O107: 0 | P107: 0 | Q107: 0 | R107: 0 | S107: 0 | T107: 0 | U107: 0 | V107: 0 | W107: 0 | X107: 0 | Y107: 0 | Z107: 0 | AA107: 0 | AB107: 1 | AC107: 0 | AD107: 0 | AE107: 0 | AF107: 0 | AG107: 0 | AH107: 116 | AI107: 41 | AJ107: 75 | AK107: =AJ107*I107 -> 5250 | AL107: 109.3333333 | AO107: 11 | AP107: 10 | AR107: 19 | AS107: 47 | AV107: 46 | AZ107: 24 | BA107: 0.86 | BB107: 0.55 | BC107: 187 | BD107: 2 | BE107: 0.09 | BF107: 1.7 | BG107: 11 | BH107: 6 | BJ107: 2 | BK107: 1
A108: 73.75890411 | B108: 1 | C108: 155 | D108: 73 | E108: =SQRT((C108*D108)/3600) -> 1.77286648 | F108: =(D108/POWER(C108,2))*10000 -> 30.38501561 | G108: 144 | H108: 65 | I108: 77 | J108: 0 | K108: 0 | L108: 0 | M108: 0 | N108: 1 | O108: 0 | P108: 0 | Q108: 0 | R108: 0 | S108: 0 | T108: 0 | U108: 0 | V108: 0 | W108: 0 | X108: 0 | Y108: 0 | Z108: 0 | AA108: 0 | AB108: 0 | AC108: 0 | AD108: 0 | AE108: 0 | AF108: 0 | AG108: 0 | AH108: 70 | AI108: 29 | AJ108: =AH108-AI108 -> 41 | AK108: =AJ108*I108 -> 3157 | AL108: 91.33333333 | AO108: 10 | AR108: 15 | AS108: 35 | AV108: 46 | AZ108: 18 | BA108: 0.7 | BB108: 0.9 | BC108: 254 | BD108: 1 | BF108: 1.5 | BJ108: 1 | BK108: 1 | BL108: 2.8 | BM108: 35
A109: 71.76712329 | B109: 1 | C109: 168 | D109: 85 | E109: 1.991649233 | F109: 30.11621315 | G109: 148 | H109: 62 | I109: 74 | J109: 1 | K109: 0 | L109: 0 | M109: 2 | N109: 1 | O109: 0 | P109: 0 | Q109: 0 | R109: 0 | S109: 0 | T109: 0 | U109: 0 | V109: 0 | W109: 0 | X109: 1 | Y109: 1 | Z109: 0 | AA109: 0 | AB109: 0 | AC109: 0 | AD109: 1 | AE109: 1 | AF109: 0 | AG109: 0 | AH109: 186 | AI109: 58 | AJ109: 128 | AK109: =AJ109*I109 -> 9472 | AL109: 90.66666667 | AM109: 53 | AO109: 15 | AP109: 15 | AR109: 24 | AS109: 45 | AV109: 47 | BF109: 2.5 | BG109: 25 | BJ109: 3 | BK109: 1
A110: 55.1890411 | B110: 1 | C110: 160 | D110: 72 | E110: 1.788854382 | F110: 28.125 | G110: 125 | H110: 70 | I110: 72 | J110: 1 | K110: 0 | L110: 0 | M110: 2 | N110: 0 | O110: 0 | P110: 0 | Q110: 0 | R110: 0 | S110: 0 | T110: 0 | U110: 0 | V110: 0 | W110: 0 | X110: 0 | Y110: 0 | Z110: 0 | AA110: 0 | AB110: 1 | AC110: 0 | AD110: 1 | AE110: 0 | AF110: 0 | AG110: 0 | AL110: 88.33333333 | AM110: 47 | AS110: 42 | AV110: 38 | BJ110: 2
A111: 26.22191781 | B111: 0 | E111: 0 | AL111: 0
A112: 54.22465753 | B112: 1 | E112: 0 | AL112: 0
A113: 26.05205479 | B113: 1 | E113: =SQRT((C113*D113)/3600) -> 0 | F113: =(D113/POWER(C113,2))*10000 ->  | AL113: 0
A114: 59.83287671 | B114: 0 | C114: 160 | D114: 65 | E114: 1.699673171 | F114: 25.390625 | G114: 140 | H114: 75 | I114: 68 | J114: 1 | K114: 0 | L114: 0 | M114: 0 | N114: 0 | O114: 0 | P114: 0 | Q114: 0 | R114: 0 | S114: 0 | T114: 0 | U114: 0 | V114: 0 | W114: 0 | X114: 0 | Y114: 0 | Z114: 0 | AA114: 0 | AB114: 1 | AC114: 0 | AD114: 0 | AE114: 0 | AF114: 0 | AG114: 0 | AH114: 77 | AJ114: 77 | AK114: =AJ114*I114 -> 5236 | AL114: 96.66666667 | AM114: 46 | AO114: 10 | AP114: 9 | AQ114: 29 | AR114: 15 | AS114: 34 | AU114: 37 | AV114: 49 | AY114: 33 | AZ114: 25 | BA114: 0.76 | BB114: 0.51 | BC114: 234 | BD114: 2 | BE114: 0.09 | BF114: 2 | BJ114: 2,,3 | BK114: 2 | BL114: 2.3 | BM114: 28
A115: 64.36164384 | B115: 1 | C115: 164 | D115: 98 | E115: 2.112923199 | F115: 36.43664485 | G115: 144 | H115: 77 | I115: 75 | J115: 1 | K115: 0 | L115: 0 | M115: 0 | N115: 1 | O115: 0 | P115: 0 | Q115: 0 | R115: 0 | S115: 0 | T115: 0 | U115: 0 | V115: 0 | W115: 0 | X115: 0 | Y115: 0 | Z115: 0 | AA115: 0 | AB115: 1 | AC115: 0 | AD115: 1 | AE115: 0 | AF115: 1 | AG115: 0 | AH115: 89 | AI115: 30 | AJ115: 59 | AK115: =AJ115*I115 -> 4425 | AL115: 99.33333333 | AM115: 43 | AO115: 13 | AP115: 12 | AS115: 43 | AV115: 50 | BA115: 0.86 | BB115: 0.98 | BC115: 280 | BF115: 1.5
A116: 67.35342466 | B116: 1 | C116: 174 | D116: 79 | E116: =D116/(C116/100)^2 -> 26.0932752 | F116: =0.007128*C116^0.725*D116^0.425 -> 1.922460432 | G116: 120 | H116: 80 | I116: 95 | J116: 0 | K116: 0 | L116: 0 | M116: 2 | N116: 1 | O116: 0 | P116: 0 | Q116: 0 | R116: 0 | S116: 0 | T116: 0 | U116: 0 | V116: 0 | W116: 0 | X116: 1 | Y116: 1 | Z116: 0 | AA116: 0 | AB116: 1 | AC116: 0 | AD116: 1 | AE116: 0 | AF116: 0 | AG116: 0 | AH116: 80 | AI116: 28 | AJ116: 52 | AK116: =AJ116*I116 -> 4940 | AL116: 93.33333333 | AM116: 42 | AO116: 15 | AP116: 12 | AR116: 23 | AS116: 45 | AV116: 39 | AY116: 33 | BA116: 0.55 | BB116: 1.02 | BC116: 324 | BD116: 1 | BF116: 1.2 | BK116: 1
A117: 70.15068493 | B117: 1 | AL117: 0
A118: 40.45479452 | B118: 1 | AL118: 0
A119: 81.46849315 | B119: 1 | C119: 178 | D119: 80 | E119: =D119/(C119/100)^2 -> 25.2493372 | F119: =0.007128*C119^0.725*D119^0.425 -> 1.964877308 | G119: 130 | H119: 85 | I119: 91 | J119: 1 | K119: 0 | L119: 0 | M119: 0 | N119: 0 | O119: 0 | P119: 0 | Q119: 0 | R119: 0 | S119: 0 | T119: 0 | U119: 0 | V119: 0 | W119: 0 | X119: 0 | Y119: 0 | Z119: 0 | AA119: 0 | AB119: 0 | AC119: 0 | AD119: 0 | AE119: 0 | AF119: 0 | AG119: 0 | AH119: 92 | AI119: 25 | AJ119: 67 | AK119: =AJ119*I119 -> 6097 | AL119: 100 | AM119: 46 | AO119: 13 | AP119: 11 | AS119: 46 | AU119: 34 | AV119: 42 | BF119: 1.2 | BJ119: 2 | BK119: 1
A120: 52.14246575 | B120: 0 | C120: 188 | D120: 88 | E120: =SQRT((C120*D120)/3600) -> 2.143724692 | F120: =(D120/POWER(C120,2))*10000 -> 24.89814396 | G120: 136 | H120: 75 | I120: 65 | J120: 0 | K120: 0 | L120: 0 | M120: 0 | N120: 0 | O120: 0 | P120: 0 | Q120: 0 | R120: 0 | S120: 0 | T120: 0 | U120: 0 | V120: 0 | W120: 0 | X120: 0 | Y120: 0 | Z120: 0 | AA120: 0 | AB120: 0 | AC120: 0 | AD120: 0 | AE120: 0 | AF120: 0 | AG120: 0 | AL120: 95.33333333
A121: 45.86849315 | B121: 0 | C121: 175 | D121: 74 | E121: 1.896634446 | F121: 24.16326531 | G121: 125 | H121: 88 | I121: 70 | J121: 0 | K121: 0 | L121: 0 | M121: 0 | N121: 0 | O121: 0 | P121: 0 | Q121: 0 | R121: 0 | S121: 0 | T121: 0 | U121: 0 | V121: 0 | W121: 0 | X121: 0 | Y121: 0 | Z121: 0 | AA121: 0 | AB121: 0 | AC121: 0 | AD121: 0 | AE121: 0 | AF121: 0 | AG121: 0 | AH121: 128 | AI121: 49 | AJ121: 79 | AK121: =AJ121*I121 -> 5530 | AL121: 100.3333333 | AM121: 54 | AO121: 10 | AP121: 10 | AR121: 15 | AS121: 49 | AT121: 23 | AU121: 36 | AV121: 39 | AY121: 25 | BD121: 1 | BF121: 1 | BJ121: 3
A122: 73.92328767 | B122: 1 | E122: 0 | AL122: 0
A123: 63.68493151 | B123: 1 | C123: 172 | D123: 80 | E123: 1.95505044 | F123: 27.04164413 | G123: 136 | H123: 70 | I123: 75 | J123: 1 | K123: 0 | L123: 1 | M123: 2 | N123: 1 | O123: 0 | P123: 0 | Q123: 0 | R123: 0 | S123: 0 | T123: 0 | U123: 0 | V123: 0 | W123: 0 | X123: 0 | Y123: 1 | Z123: 0 | AA123: 0 | AB123: 1 | AC123: 1 | AD123: 1 | AE123: 0 | AF123: 0 | AG123: 0 | AL123: 92 | AM123: 36 | AO123: 12 | AP123: 12 | AS123: 51 | AU123: 49 | AV123: 44 | BF123: 1.32 | BJ123: 2,,3
A124: 51.09041096 | B124: 0 | C124: 175 | D124: 84 | E124: 2.020725942 | F124: 27.42857143 | G124: 135 | H124: 85 | I124: 58 | J124: 0 | K124: 0 | L124: 0 | M124: 0 | N124: 0 | O124: 0 | P124: 0 | Q124: 0 | R124: 0 | S124: 0 | T124: 0 | U124: 0 | V124: 0 | W124: 0 | X124: 1 | Y124: 1 | Z124: 0 | AA124: 0 | AB124: 0 | AC124: 0 | AD124: 0 | AE124: 0 | AF124: 0 | AG124: 0 | AH124: 92 | AJ124: 92 | AK124: =AJ124*I124 -> 5336 | AL124: 101.6666667 | AV124: 46 | BC124: 270 | BJ124: 2 | BK124: 1
A125: 60.37534247 | B125: 0 | C125: 198 | D125: 125 | E125: 2.62202212 | F125: 31.88450158 | G125: 150 | H125: 70 | I125: 76 | J125: 1 | K125: 0 | L125: 0 | M125: 0 | N125: 0 | O125: 0 | P125: 0 | Q125: 0 | R125: 0 | S125: 0 | T125: 0 | U125: 0 | V125: 0 | W125: 0 | X125: 0 | Y125: 0 | Z125: 0 | AA125: 0 | AB125: 0 | AC125: 0 | AD125: 1 | AE125: 0 | AF125: 0 | AG125: 0 | AL125: 96.66666667 | AM125: 42 | AO125: 12 | AP125: 12 | AS125: 43 | AV125: 49 | AY125: 30 | AZ125: 21 | BF125: 2.1 | BG125: 18 | BH125: 11 | BI125: 2 | BJ125: 0 | BK125: 2 | BL125: 2.7 | BM125: 34
A126: 64.0630137 | B126: 1 | C126: 172 | D126: 115 | E126: 2.344023132 | F126: 38.87236344 | G126: 166 | H126: 80 | I126: 86 | J126: 1 | K126: 0 | L126: 1 | M126: 1 | N126: 0 | O126: 0 | P126: 0 | Q126: 0 | R126: 0 | S126: 0 | T126: 0 | U126: 0 | V126: 0 | W126: 0 | X126: 0 | Y126: 0 | Z126: 0 | AA126: 0 | AB126: 0 | AC126: 0 | AD126: 1 | AE126: 0 | AF126: 1 | AG126: 0 | AH126: 130 | AJ126: 130 | AK126: =AJ126*I126 -> 11180 | AL126: 108.6666667 | AM126: 49 | AO126: 12 | AP126: 12 | AS126: 44 | AV126: 50 | BA126: 0.87 | BB126: 0.66 | BC126: 283 | BD126: 1 | BF126: 1.76 | BJ126: 2,,3 | BK126: 1
A127: 54.16986301 | B127: 1 | C127: 173 | D127: 58 | E127: 1.669497596 | F127: 19.37919743 | G127: 145 | H127: 68 | I127: 86 | J127: 0 | K127: 0 | L127: 0 | M127: 2 | N127: 0 | O127: 0 | P127: 0 | Q127: 0 | R127: 0 | S127: 0 | T127: 0 | U127: 0 | V127: 0 | W127: 0 | X127: 0 | Y127: 0 | Z127: 0 | AA127: 0 | AB127: 0 | AC127: 0 | AD127: 0 | AE127: 0 | AF127: 0 | AG127: 0 | AH127: 74 | AI127: 24 | AJ127: =AH127-AI127 -> 50 | AK127: =AJ127*I127 -> 4300 | AL127: 93.66666667 | AM127: 38 | AO127: 11 | AP127: 6 | AR127: 12 | AS127: 36 | AV127: 45 | AZ127: 20 | BA127: 0.07 | BB127: 0.11 | BD127: 2 | BJ127: 2 | BM127: 30
A128: 68.79726027 | B128: 0 | C128: 166 | D128: 70 | E128: 1.79660173 | F128: 25.40281608 | G128: 145 | H128: 75 | I128: 78 | J128: 1 | K128: 0 | L128: 0 | M128: 2 | N128: 0 | O128: 0 | P128: 0 | Q128: 0 | R128: 0 | S128: 0 | T128: 0 | U128: 0 | V128: 0 | W128: 0 | X128: 0 | Y128: 0 | Z128: 0 | AA128: 0 | AB128: 0 | AC128: 0 | AD128: 1 | AE128: 0 | AF128: 1 | AG128: 0 | AL128: 98.33333333 | AM128: 43 | AO128: 11 | AP128: 10 | AR128: 17 | AS128: 38 | AV128: 46 | BA128: 0.71 | BB128: 0.53 | BC128: 180 | BF128: 2.1 | BG128: 18 | BH128: 9 | BJ128: 2 | BK128: 2 | BL128: 2.7 | BM128: 34
A129: 85.10684932 | B129: 1 | C129: 175 | D129: 84 | E129: 2.020725942 | F129: 27.42857143 | G129: 152 | H129: 73 | I129: 63 | J129: 1 | K129: 0 | L129: 0 | M129: 2 | N129: 0 | O129: 0 | P129: 0 | Q129: 0 | R129: 0 | S129: 0 | T129: 0 | U129: 0 | V129: 0 | W129: 0 | X129: 0 | Y129: 0 | Z129: 0 | AA129: 0 | AB129: 0 | AC129: 0 | AD129: 0 | AE129: 0 | AF129: 1 | AG129: 0 | AH129: 92 | AJ129: 92 | AK129: =AJ129*I129 -> 5796 | AL129: 99.33333333 | AM129: 42 | AO129: 10 | AP129: 13 | AS129: 37 | AV129: 45 | BD129: 1 | BF129: 1.1 | BK129: 2
A130: 71.65753425 | B130: 1 | C130: 168 | D130: 87 | E130: 2.014944168 | F130: 30.82482993 | G130: 153 | H130: 82 | I130: 76 | J130: 0 | K130: 0 | L130: 1 | M130: 1 | N130: 0 | O130: 0 | P130: 0 | Q130: 0 | R130: 0 | S130: 0 | T130: 0 | U130: 0 | V130: 0 | W130: 0 | X130: 0 | Y130: 0 | Z130: 0 | AA130: 0 | AB130: 1 | AC130: 0 | AD130: 1 | AE130: 0 | AF130: 0 | AG130: 0 | AH130: 79 | AI130: 34 | AJ130: 45 | AK130: =AJ130*I130 -> 3420 | AL130: =(G130+ 2*H130)/3 -> 105.6666667 | AM130: 44 | AO130: 15 | AP130: 13 | AS130: 50 | AV130: 50 | BD130: 1 | BF130: 1.2 | BJ130: 2 | BK130: 2
A131: 74.8 | B131: 1 | C131: 155 | D131: 63 | E131: =SQRT((C131*D131)/3600) -> 1.646966909 | F131: =(D131/POWER(C131,2))*10000 -> 26.2226847 | G131: 125 | H131: 62 | I131: 51 | J131: 1 | K131: 0 | L131: 0 | M131: 1 | N131: 0 | O131: 0 | P131: 0 | Q131: 0 | R131: 0 | S131: 0 | T131: 0 | U131: 0 | V131: 0 | W131: 0 | X131: 1 | Y131: 1 | Z131: 0 | AA131: 1 | AB131: 0 | AC131: 0 | AD131: 1 | AE131: 0 | AF131: 0 | AG131: 0 | AH131: 65 | AI131: 25 | AJ131: =AH131-AI131 -> 40 | AK131: =AJ131*I131 -> 2040 | AL131: 83 | AM131: 41 | AO131: 12 | AP131: 10 | AR131: 22 | AS131: 32 | AV131: 49 | AZ131: 21 | BA131: 0.85 | BB131: 0.76 | BC131: 229 | BD131: 2 | BE131: 0.06 | BF131: 1.7 | BJ131: 2 | BK131: 2 | BL131: 2.2 | BM131: 30
A132: 75.69041096 | B132: 1 | C132: 173 | D132: 86 | E132: 2.032923456 | F132: 28.73467206 | G132: 100 | H132: 77 | I132: 70 | J132: 1 | K132: 0 | L132: 0 | M132: 1 | N132: 1 | O132: 0 | P132: 0 | Q132: 0 | R132: 0 | S132: 0 | T132: 0 | U132: 0 | V132: 0 | W132: 0 | X132: 1 | Y132: 1 | Z132: 0 | AA132: 0 | AB132: 0 | AC132: 0 | AD132: 1 | AE132: 0 | AF132: 1 | AG132: 0 | AL132: 84.66666667 | AR132: 28 | AS132: 44 | AV132: 47 | BF132: 1.2 | BJ132: 2 | BK132: 1
A133: 61.36712329 | B133: 0 | C133: 184 | D133: 94 | E133: 2.191904296 | F133: 27.76465028 | G133: 133 | H133: 96 | I133: 99 | J133: 1 | K133: 0 | L133: 0 | M133: 1 | N133: 0 | O133: 0 | P133: 0 | Q133: 0 | R133: 0 | S133: 0 | T133: 0 | U133: 0 | V133: 0 | W133: 0 | X133: 0 | Y133: 0 | Z133: 0 | AA133: 0 | AB133: 0 | AC133: 0 | AD133: 1 | AE133: 0 | AF133: 1 | AG133: 0 | AL133: 108.3333333 | AM133: 59 | AS133: 44 | AV133: 48 | AY133: 31 | AZ133: 32 | BA133: 0.69 | BB133: 0.78 | BC133: 236 | BD133: 1 | BE133: 0.07 | BF133: 1.81 | BJ133: 2
A134: 42.93150685 | B134: 1 | E134: =SQRT((C134*D134)/3600) -> 0 | F134: =(D134/POWER(C134,2))*10000 ->  | AL134: 0
A135: 80.48219178 | B135: 0 | C135: 168 | D135: 77 | E135: 1.895608961 | F135: 27.28174603 | G135: 123 | H135: 78 | I135: 76 | J135: 1 | K135: 0 | L135: 0 | M135: 0 | N135: 0 | O135: 0 | P135: 0 | Q135: 0 | R135: 0 | S135: 0 | T135: 0 | U135: 0 | V135: 0 | W135: 0 | X135: 0 | Y135: 0 | Z135: 1 | AA135: 0 | AB135: 0 | AC135: 0 | AD135: 1 | AE135: 0 | AF135: 0 | AG135: 0 | AL135: 93 | AM135: 43 | AO135: 10 | AP135: 9 | AS135: 41 | AU135: 33 | AV135: 52 | BD135: 2 | BF135: 2.5 | BG135: 25 | BH135: 13 | BK135: 2 | BL135: 2.7 | BM135: 34
A136: 51.38356164 | B136: 1 | C136: 174 | D136: 72 | E136: =SQRT((C136*D136)/3600) -> 1.865475811 | F136: =(D136/POWER(C136,2))*10000 -> 23.78121284 | G136: 142 | H136: 75 | I136: 70 | J136: 0 | K136: 0 | L136: 0 | M136: 2 | N136: 0 | O136: 0 | P136: 0 | Q136: 0 | R136: 0 | S136: 0 | T136: 0 | U136: 0 | V136: 0 | W136: 0 | X136: 0 | Y136: 0 | Z136: 0 | AA136: 0 | AB136: 0 | AC136: 0 | AD136: 0 | AE136: 0 | AF136: 0 | AG136: 0 | AH136: 104 | AI136: 45 | AJ136: 59 | AK136: =AJ136*I136 -> 4130 | AL136: 97.33333333 | AM136: 42 | AO136: 9 | AP136: 9 | AS136: 51 | AV136: 39 | AZ136: 22 | BA136: 0.43 | BB136: 0.53 | BC136: 491 | BD136: 2 | BE136: 0.1 | BF136: 1 | BJ136: 1 | BK136: 1
A137: 58.79178082 | B137: 1 | C137: 180 | D137: 105 | E137: =SQRT((C137*D137)/3600) -> 2.291287847 | F137: =(D137/POWER(C137,2))*10000 -> 32.40740741 | G137: 140 | H137: 74 | I137: 77 | J137: 1 | K137: 0 | L137: 1 | M137: 0 | N137: 0 | O137: 0 | P137: 0 | Q137: 0 | R137: 0 | S137: 0 | T137: 0 | U137: 0 | V137: 0 | W137: 0 | X137: 1 | Y137: 1 | Z137: 0 | AA137: 0 | AB137: 1 | AC137: 0 | AD137: 1 | AE137: 1 | AF137: 0 | AG137: 0 | AJ137: =AH137-AI137 -> 0 | AK137: 0 | AL137: 96 | AM137: 40 | AO137: 11 | AP137: 10 | AR137: 22 | AS137: 35 | AV137: 50 | BF137: 1.2 | BJ137: 2
A138: 61.13424658 | B138: 1 | C138: 167 | D138: 82 | E138: =SQRT((C138*D138)/3600) -> 1.950356093 | F138: =(D138/POWER(C138,2))*10000 -> 29.4022733 | G138: 141 | H138: 70 | I138: 62 | J138: 1 | K138: 0 | L138: 0 | M138: 2 | N138: 0 | O138: 0 | P138: 0 | Q138: 0 | R138: 0 | S138: 0 | T138: 0 | U138: 0 | V138: 0 | W138: 0 | X138: 1 | Y138: 1 | Z138: 0 | AA138: 0 | AB138: 1 | AC138: 0 | AD138: 1 | AE138: 0 | AF138: 0 | AG138: 0 | AJ138: 0 | AK138: 0 | AL138: 93.66666667
A139: 64.72876712 | B139: 0 | C139: 167 | D139: 68 | E139: =SQRT((C139*D139)/3600) -> 1.776075574 | F139: =(D139/POWER(C139,2))*10000 -> 24.38237298 | G139: 135 | H139: 77 | I139: 77 | J139: 0 | K139: 0 | L139: 0 | M139: 0 | N139: 0 | O139: 0 | P139: 0 | Q139: 0 | R139: 0 | S139: 0 | T139: 0 | U139: 0 | V139: 0 | W139: 0 | X139: 0 | Y139: 0 | Z139: 0 | AA139: 0 | AB139: 0 | AC139: 0 | AD139: 0 | AE139: 0 | AF139: 0 | AG139: 0 | AJ139: 0 | AK139: 0 | AL139: 96.33333333 | AM139: 52 | AO139: 11 | AP139: 11 | AS139: 43 | AY139: 37 | BF139: 1.3 | BK139: 1
A140: 63.43835616 | B140: 0 | C140: 177 | D140: 90 | E140: =SQRT((C140*D140)/3600) -> 2.103568397 | F140: =(D140/POWER(C140,2))*10000 -> 28.72737719 | J140: 1 | K140: 0 | L140: 1 | M140: 0 | N140: 1 | O140: 0 | P140: 0 | Q140: 0 | R140: 0 | S140: 0 | T140: 1 | U140: 0 | V140: 0 | X140: 1 | Y140: 1 | Z140: 0 | AA140: 0 | AB140: 1 | AC140: 0 | AD140: 1 | AE140: 0 | AF140: 0 | AG140: 0 | AH140: 106 | AI140: 37 | AJ140: 69 | AK140: 0 | AL140: 0 | AM140: 54 | AO140: 11 | AP140: 11 | AR140: 22.5 | AS140: 41 | AV140: 47 | AY140: 36 | AZ140: 24 | BA140: 1.08 | BB140: 0.62 | BC140: 165 | BD140: 2,,3 | BE140: 0.12 | BF140: 2.36 | BG140: 46 | BH140: 24 | BI140: 2 | BJ140: 1 | BK140: 2 | BL140: 3.01 | BM140: 46
A141: 74.39178082 | B141: 0 | C141: 169 | D141: 74 | E141: 1.863837141 | F141: 25.90945695 | J141: 1 | K141: 0 | L141: 1 | M141: 2 | N141: 0 | O141: 0 | P141: 0 | Q141: 0 | R141: 0 | S141: 0 | T141: 0 | U141: 0 | V141: 0 | W141: 0 | X141: 0 | Y141: 1 | Z141: 0 | AA141: 1 | AB141: 0 | AC141: 0 | AD141: 1 | AE141: 1 | AF141: 1 | AG141: 0 | AH141: 98 | AI141: 32 | AJ141: 66 | AK141: 0 | AL141: 0 | AM141: 50 | AN141: 20 | AO141: 11 | AP141: 11 | AS141: 42 | AU141: 38 | AV141: 50 | AZ141: 25 | BA141: 1.21 | BB141: 1.37 | BC141: 236 | BI141: 3 | BJ141: 2 | BK141: 2 | BL141: 2.36 | BM141: 27
A142: 64.5369863 | B142: 1 | C142: 168 | D142: 81 | E142: 1.94422221 | F142: 28.69897959 | J142: 0 | K142: 0 | L142: 0 | M142: 1 | N142: 0 | O142: 0 | P142: 0 | Q142: 0 | R142: 0 | S142: 0 | T142: 0 | U142: 0 | V142: 0 | W142: 0 | X142: 0 | Y142: 0 | Z142: 0 | AA142: 0 | AB142: 0 | AC142: 0 | AD142: 0 | AE142: 0 | AF142: 0 | AG142: 0 | AH142: 110 | AI142: 43 | AJ142: 67 | AK142: 0 | AL142: 0 | AM142: 42 | AO142: 12 | AP142: 10 | AR142: 20 | AS142: 48 | AV142: 39 | AZ142: 25 | BA142: 0.66 | BB142: 0.71 | BD142: 2 | BE142: 0.1 | BF142: 1.6 | BJ142: 2 | BM142: 37
A143: 59.75342466 | B143: 1 | C143: 180 | D143: 92 | E143: =SQRT((C143*D143)/3600) -> 2.144761059 | F143: =(D143/POWER(C143,2))*10000 -> 28.39506173 | G143: 133 | H143: 65 | I143: 77 | J143: 1 | K143: 0 | L143: 0 | M143: 0 | N143: 0 | O143: 0 | P143: 0 | Q143: 0 | R143: 0 | S143: 0 | T143: 0 | U143: 0 | V143: 0 | W143: 0 | X143: 1 | Y143: 0 | Z143: 0 | AA143: 0 | AB143: 0 | AC143: 0 | AD143: 1 | AE143: 0 | AF143: 0 | AG143: 0 | AH143: 95 | AI143: 37 | AJ143: 58 | AK143: 4466 | AL143: 87.66666667 | AM143: 60 | AO143: 14 | AP143: 13 | AR143: 19 | AS143: 39 | AV143: 49 | AZ143: 22 | BA143: 0.7 | BB143: 0.7 | BC143: 209 | BD143: 2 | BF143: 1.5 | BJ143: 2 | BK143: 1
A144: 67.64931507 | B144: 1 | C144: 196 | D144: 130 | E144: =SQRT((C144*D144)/3600) -> 2.660409325 | F144: =(D144/POWER(C144,2))*10000 -> 33.84006664 | G144: 120 | H144: 75 | I144: 83 | J144: 1 | K144: 0 | L144: 1 | M144: 2 | N144: 1 | O144: 0 | P144: 0 | Q144: 0 | R144: 0 | S144: 0 | T144: 0 | U144: 0 | V144: 0 | W144: 0 | X144: 0 | Y144: 0 | Z144: 1 | AA144: 0 | AB144: 1 | AC144: 1 | AD144: 1 | AE144: 1 | AF144: 0 | AG144: 0 | AJ144: =AH144-AI144 -> 0 | AK144: 0 | AL144: 90 | AM144: 47 | AO144: 14 | AP144: 13 | AR144: 35 | AS144: 53 | AU144: 49 | AV144: 52 | BC144: 214 | BF144: 1.5 | BJ144: 2 | BK144: 1
A145: 59.18630137 | B145: 1 | C145: 163 | D145: 63 | E145: =SQRT((C145*D145)/3600) -> 1.688934575 | F145: =(D145/POWER(C145,2))*10000 -> 23.71184463 | AJ145: 0 | AK145: 0 | AL145: 0
A146: 58.42191781 | B146: 1 | E146: =SQRT((C146*D146)/3600) -> 0 | F146: =(D146/POWER(C146,2))*10000 ->  | AJ146: 0 | AK146: 0 | AL146: 0
A147: 73.4 | B147: 1 | C147: 179 | D147: 104 | E147: 2.27400772 | F147: 32.45841266 | G147: 144 | H147: 68 | I147: 78 | J147: 1 | K147: 0 | L147: 0 | M147: 2 | N147: 0 | O147: 0 | P147: 0 | Q147: 0 | R147: 0 | S147: 0 | T147: 0 | U147: 0 | V147: 0 | W147: 0 | X147: 0 | Y147: 0 | Z147: 0 | AA147: 0 | AB147: 1 | AC147: 0 | AD147: 1 | AE147: 1 | AF147: 0 | AG147: 0 | AH147: 123 | AI147: 52 | AJ147: 71 | AK147: 5538 | AL147: 93.33333333 | AM147: 48 | AO147: 12 | AP147: 10 | AS147: 44 | AU147: 39 | AV147: 50 | BA147: 0.5 | BB147: 0.9 | BF147: 1.3 | BJ147: 2 | BK147: 2 | BL147: 2.2 | BM147: 28
A148: 76.68493151 | B148: 1 | C148: 173 | D148: 102 | E148: =SQRT((C148*D148)/3600) -> 2.213970792 | F148: =(D148/POWER(C148,2))*10000 -> 34.08065756 | J148: 1 | K148: 0 | L148: 0 | M148: 1 | N148: 0 | O148: 0 | P148: 0 | Q148: 0 | R148: 0 | S148: 0 | T148: 0 | U148: 0 | V148: 0 | W148: 0 | X148: 1 | Y148: 0 | Z148: 0 | AA148: 0 | AB148: 0 | AC148: 0 | AD148: 1 | AE148: 1 | AF148: 1 | AG148: 0 | AH148: 105 | AI148: 40 | AJ148: =AH148-AI148 -> 65 | AK148: 0 | AL148: 0 | AM148: 47 | AO148: 13 | AP148: 11 | AR148: 24 | AS148: 44 | AV148: 48 | AZ148: 26 | BD148: 2 | BF148: 1.5 | BJ148: 2 | BK148: 1 | BL148: 2 | BM148: 25
A149: 66.39178082 | B149: 1 | C149: 185 | D149: 105 | E149: =SQRT((C149*D149)/3600) -> 2.322893311 | F149: =(D149/POWER(C149,2))*10000 -> 30.67932798 | G149: 118 | H149: 75 | I149: 65 | J149: 1 | K149: 0 | L149: 0 | M149: 2 | N149: 0 | O149: 0 | P149: 0 | Q149: 0 | R149: 0 | S149: 0 | T149: 0 | U149: 0 | V149: 0 | W149: 0 | X149: 1 | Y149: 0 | Z149: 0 | AA149: 0 | AB149: 1 | AC149: 0 | AD149: 0 | AE149: 1 | AF149: 0 | AG149: 0 | AH149: 103 | AI149: 37 | AJ149: =AH149-AI149 -> 66 | AK149: 4290 | AL149: 89.33333333 | AR149: 23 | AS149: 52 | AV149: 47 | BJ149: 2
A150: 77.8109589 | B150: 1 | C150: 153 | D150: 81 | E150: 1.855397532 | F150: 34.60207612 | G150: 122 | H150: 58 | I150: 68 | J150: 1 | K150: 0 | L150: 1 | M150: 2 | N150: 0 | O150: 0 | P150: 0 | Q150: 0 | R150: 0 | S150: 0 | T150: 0 | U150: 0 | V150: 0 | W150: 0 | X150: 1 | Y150: 0 | Z150: 0 | AA150: 0 | AB150: 1 | AC150: 0 | AD150: 0 | AE150: 1 | AF150: 0 | AG150: 0
BI153: =IF(AND(BF153=0,BG153=0,BH153=0),"",IF(AND(#REF!>#REF!,#REF!>=#REF!),"N",IF(AND(#REF!>#REF!,#REF!<#REF!),"A",IF(AND(#REF!<=#REF!),"E",IF(AND(BF153=0,BG153=0,BH153=0),""))))) -> 
BI154: =IF(AND(BF154=0,BG154=0,BH154=0),"",IF(AND(#REF!>#REF!,#REF!>=#REF!),"N",IF(AND(#REF!>#REF!,#REF!<#REF!),"A",IF(AND(#REF!<=#REF!),"E",IF(AND(BF154=0,BG154=0,BH154=0),""))))) -> 
BI155: =IF(AND(BF155=0,BG155=0,BH155=0),"",IF(AND(#REF!>#REF!,#REF!>=#REF!),"N",IF(AND(#REF!>#REF!,#REF!<#REF!),"A",IF(AND(#REF!<=#REF!),"E",IF(AND(BF155=0,BG155=0,BH155=0),""))))) -> 
BI156: =IF(AND(BF156=0,BG156=0,BH156=0),"",IF(AND(#REF!>#REF!,#REF!>=#REF!),"N",IF(AND(#REF!>#REF!,#REF!<#REF!),"A",IF(AND(#REF!<=#REF!),"E",IF(AND(BF156=0,BG156=0,BH156=0),""))))) -> 
BI157: =IF(AND(BF157=0,BG157=0,BH157=0),"",IF(AND(#REF!>#REF!,#REF!>=#REF!),"N",IF(AND(#REF!>#REF!,#REF!<#REF!),"A",IF(AND(#REF!<=#REF!),"E",IF(AND(BF157=0,BG157=0,BH157=0),""))))) -> 
BI158: =IF(AND(BF158=0,BG158=0,BH158=0),"",IF(AND(#REF!>#REF!,#REF!>=#REF!),"N",IF(AND(#REF!>#REF!,#REF!<#REF!),"A",IF(AND(#REF!<=#REF!),"E",IF(AND(BF158=0,BG158=0,BH158=0),""))))) -> 
BI159: =IF(AND(BF159=0,BG159=0,BH159=0),"",IF(AND(#REF!>#REF!,#REF!>=#REF!),"N",IF(AND(#REF!>#REF!,#REF!<#REF!),"A",IF(AND(#REF!<=#REF!),"E",IF(AND(BF159=0,BG159=0,BH159=0),""))))) -> 
BI160: =IF(AND(BF160=0,BG160=0,BH160=0),"",IF(AND(#REF!>#REF!,#REF!>=#REF!),"N",IF(AND(#REF!>#REF!,#REF!<#REF!),"A",IF(AND(#REF!<=#REF!),"E",IF(AND(BF160=0,BG160=0,BH160=0),""))))) -> 
BI161: =IF(AND(BF161=0,BG161=0,BH161=0),"",IF(AND(#REF!>#REF!,#REF!>=#REF!),"N",IF(AND(#REF!>#REF!,#REF!<#REF!),"A",IF(AND(#REF!<=#REF!),"E",IF(AND(BF161=0,BG161=0,BH161=0),""))))) -> 
BI162: =IF(AND(BF162=0,BG162=0,BH162=0),"",IF(AND(#REF!>#REF!,#REF!>=#REF!),"N",IF(AND(#REF!>#REF!,#REF!<#REF!),"A",IF(AND(#REF!<=#REF!),"E",IF(AND(BF162=0,BG162=0,BH162=0),""))))) -> 
BI163: =IF(AND(BF163=0,BG163=0,BH163=0),"",IF(AND(#REF!>#REF!,#REF!>=#REF!),"N",IF(AND(#REF!>#REF!,#REF!<#REF!),"A",IF(AND(#REF!<=#REF!),"E",IF(AND(BF163=0,BG163=0,BH163=0),""))))) -> 
BI164: =IF(AND(BF164=0,BG164=0,BH164=0),"",IF(AND(#REF!>#REF!,#REF!>=#REF!),"N",IF(AND(#REF!>#REF!,#REF!<#REF!),"A",IF(AND(#REF!<=#REF!),"E",IF(AND(BF164=0,BG164=0,BH164=0),""))))) -> 
BI165: =IF(AND(BF165=0,BG165=0,BH165=0),"",IF(AND(#REF!>#REF!,#REF!>=#REF!),"N",IF(AND(#REF!>#REF!,#REF!<#REF!),"A",IF(AND(#REF!<=#REF!),"E",IF(AND(BF165=0,BG165=0,BH165=0),""))))) -> 
BI166: =IF(AND(BF166=0,BG166=0,BH166=0),"",IF(AND(#REF!>#REF!,#REF!>=#REF!),"N",IF(AND(#REF!>#REF!,#REF!<#REF!),"A",IF(AND(#REF!<=#REF!),"E",IF(AND(BF166=0,BG166=0,BH166=0),""))))) -> 
BI167: =IF(AND(BF167=0,BG167=0,BH167=0),"",IF(AND(#REF!>#REF!,#REF!>=#REF!),"N",IF(AND(#REF!>#REF!,#REF!<#REF!),"A",IF(AND(#REF!<=#REF!),"E",IF(AND(BF167=0,BG167=0,BH167=0),""))))) -> 
BI168: =IF(AND(BF168=0,BG168=0,BH168=0),"",IF(AND(#REF!>#REF!,#REF!>=#REF!),"N",IF(AND(#REF!>#REF!,#REF!<#REF!),"A",IF(AND(#REF!<=#REF!),"E",IF(AND(BF168=0,BG168=0,BH168=0),""))))) -> 
BI169: =IF(AND(BF169=0,BG169=0,BH169=0),"",IF(AND(#REF!>#REF!,#REF!>=#REF!),"N",IF(AND(#REF!>#REF!,#REF!<#REF!),"A",IF(AND(#REF!<=#REF!),"E",IF(AND(BF169=0,BG169=0,BH169=0),""))))) -> 
BI170: =IF(AND(BF170=0,BG170=0,BH170=0),"",IF(AND(#REF!>#REF!,#REF!>=#REF!),"N",IF(AND(#REF!>#REF!,#REF!<#REF!),"A",IF(AND(#REF!<=#REF!),"E",IF(AND(BF170=0,BG170=0,BH170=0),""))))) -> 
BI171: =IF(AND(BF171=0,BG171=0,BH171=0),"",IF(AND(#REF!>#REF!,#REF!>=#REF!),"N",IF(AND(#REF!>#REF!,#REF!<#REF!),"A",IF(AND(#REF!<=#REF!),"E",IF(AND(BF171=0,BG171=0,BH171=0),""))))) -> 
BI172: =IF(AND(BF172=0,BG172=0,BH172=0),"",IF(AND(#REF!>#REF!,#REF!>=#REF!),"N",IF(AND(#REF!>#REF!,#REF!<#REF!),"A",IF(AND(#REF!<=#REF!),"E",IF(AND(BF172=0,BG172=0,BH172=0),""))))) -> 
BI173: =IF(AND(BF173=0,BG173=0,BH173=0),"",IF(AND(#REF!>#REF!,#REF!>=#REF!),"N",IF(AND(#REF!>#REF!,#REF!<#REF!),"A",IF(AND(#REF!<=#REF!),"E",IF(AND(BF173=0,BG173=0,BH173=0),""))))) -> 
BI174: =IF(AND(BF174=0,BG174=0,BH174=0),"",IF(AND(#REF!>#REF!,#REF!>=#REF!),"N",IF(AND(#REF!>#REF!,#REF!<#REF!),"A",IF(AND(#REF!<=#REF!),"E",IF(AND(BF174=0,BG174=0,BH174=0),""))))) -> 
BI175: =IF(AND(BF175=0,BG175=0,BH175=0),"",IF(AND(#REF!>#REF!,#REF!>=#REF!),"N",IF(AND(#REF!>#REF!,#REF!<#REF!),"A",IF(AND(#REF!<=#REF!),"E",IF(AND(BF175=0,BG175=0,BH175=0),""))))) -> 
BI176: =IF(AND(BF176=0,BG176=0,BH176=0),"",IF(AND(#REF!>#REF!,#REF!>=#REF!),"N",IF(AND(#REF!>#REF!,#REF!<#REF!),"A",IF(AND(#REF!<=#REF!),"E",IF(AND(BF176=0,BG176=0,BH176=0),""))))) -> 
BI177: =IF(AND(BF177=0,BG177=0,BH177=0),"",IF(AND(#REF!>#REF!,#REF!>=#REF!),"N",IF(AND(#REF!>#REF!,#REF!<#REF!),"A",IF(AND(#REF!<=#REF!),"E",IF(AND(BF177=0,BG177=0,BH177=0),""))))) -> 
BI178: =IF(AND(BF178=0,BG178=0,BH178=0),"",IF(AND(#REF!>#REF!,#REF!>=#REF!),"N",IF(AND(#REF!>#REF!,#REF!<#REF!),"A",IF(AND(#REF!<=#REF!),"E",IF(AND(BF178=0,BG178=0,BH178=0),""))))) -> 
BI179: =IF(AND(BF179=0,BG179=0,BH179=0),"",IF(AND(#REF!>#REF!,#REF!>=#REF!),"N",IF(AND(#REF!>#REF!,#REF!<#REF!),"A",IF(AND(#REF!<=#REF!),"E",IF(AND(BF179=0,BG179=0,BH179=0),""))))) -> 
BI180: =IF(AND(BF180=0,BG180=0,BH180=0),"",IF(AND(#REF!>#REF!,#REF!>=#REF!),"N",IF(AND(#REF!>#REF!,#REF!<#REF!),"A",IF(AND(#REF!<=#REF!),"E",IF(AND(BF180=0,BG180=0,BH180=0),""))))) -> 
BI181: =IF(AND(BF181=0,BG181=0,BH181=0),"",IF(AND(#REF!>#REF!,#REF!>=#REF!),"N",IF(AND(#REF!>#REF!,#REF!<#REF!),"A",IF(AND(#REF!<=#REF!),"E",IF(AND(BF181=0,BG181=0,BH181=0),""))))) -> 
BI182: =IF(AND(BF182=0,BG182=0,BH182=0),"",IF(AND(#REF!>#REF!,#REF!>=#REF!),"N",IF(AND(#REF!>#REF!,#REF!<#REF!),"A",IF(AND(#REF!<=#REF!),"E",IF(AND(BF182=0,BG182=0,BH182=0),""))))) -> 
BI183: =IF(AND(BF183=0,BG183=0,BH183=0),"",IF(AND(#REF!>#REF!,#REF!>=#REF!),"N",IF(AND(#REF!>#REF!,#REF!<#REF!),"A",IF(AND(#REF!<=#REF!),"E",IF(AND(BF183=0,BG183=0,BH183=0),""))))) -> 
BI184: =IF(AND(BF184=0,BG184=0,BH184=0),"",IF(AND(#REF!>#REF!,#REF!>=#REF!),"N",IF(AND(#REF!>#REF!,#REF!<#REF!),"A",IF(AND(#REF!<=#REF!),"E",IF(AND(BF184=0,BG184=0,BH184=0),""))))) -> 
BI185: =IF(AND(BF185=0,BG185=0,BH185=0),"",IF(AND(#REF!>#REF!,#REF!>=#REF!),"N",IF(AND(#REF!>#REF!,#REF!<#REF!),"A",IF(AND(#REF!<=#REF!),"E",IF(AND(BF185=0,BG185=0,BH185=0),""))))) -> 
BI186: =IF(AND(BF186=0,BG186=0,BH186=0),"",IF(AND(#REF!>#REF!,#REF!>=#REF!),"N",IF(AND(#REF!>#REF!,#REF!<#REF!),"A",IF(AND(#REF!<=#REF!),"E",IF(AND(BF186=0,BG186=0,BH186=0),""))))) -> 
BI187: =IF(AND(BF187=0,BG187=0,BH187=0),"",IF(AND(#REF!>#REF!,#REF!>=#REF!),"N",IF(AND(#REF!>#REF!,#REF!<#REF!),"A",IF(AND(#REF!<=#REF!),"E",IF(AND(BF187=0,BG187=0,BH187=0),""))))) -> 
BI188: =IF(AND(BF188=0,BG188=0,BH188=0),"",IF(AND(#REF!>#REF!,#REF!>=#REF!),"N",IF(AND(#REF!>#REF!,#REF!<#REF!),"A",IF(AND(#REF!<=#REF!),"E",IF(AND(BF188=0,BG188=0,BH188=0),""))))) -> 
BI189: =IF(AND(BF189=0,BG189=0,BH189=0),"",IF(AND(#REF!>#REF!,#REF!>=#REF!),"N",IF(AND(#REF!>#REF!,#REF!<#REF!),"A",IF(AND(#REF!<=#REF!),"E",IF(AND(BF189=0,BG189=0,BH189=0),""))))) -> 
BI190: =IF(AND(BF190=0,BG190=0,BH190=0),"",IF(AND(#REF!>#REF!,#REF!>=#REF!),"N",IF(AND(#REF!>#REF!,#REF!<#REF!),"A",IF(AND(#REF!<=#REF!),"E",IF(AND(BF190=0,BG190=0,BH190=0),""))))) -> 
BI191: =IF(AND(BF191=0,BG191=0,BH191=0),"",IF(AND(#REF!>#REF!,#REF!>=#REF!),"N",IF(AND(#REF!>#REF!,#REF!<#REF!),"A",IF(AND(#REF!<=#REF!),"E",IF(AND(BF191=0,BG191=0,BH191=0),""))))) -> 
BI192: =IF(AND(BF192=0,BG192=0,BH192=0),"",IF(AND(#REF!>#REF!,#REF!>=#REF!),"N",IF(AND(#REF!>#REF!,#REF!<#REF!),"A",IF(AND(#REF!<=#REF!),"E",IF(AND(BF192=0,BG192=0,BH192=0),""))))) -> 
BI193: =IF(AND(BF193=0,BG193=0,BH193=0),"",IF(AND(#REF!>#REF!,#REF!>=#REF!),"N",IF(AND(#REF!>#REF!,#REF!<#REF!),"A",IF(AND(#REF!<=#REF!),"E",IF(AND(BF193=0,BG193=0,BH193=0),""))))) -> 
BI194: =IF(AND(BF194=0,BG194=0,BH194=0),"",IF(AND(#REF!>#REF!,#REF!>=#REF!),"N",IF(AND(#REF!>#REF!,#REF!<#REF!),"A",IF(AND(#REF!<=#REF!),"E",IF(AND(BF194=0,BG194=0,BH194=0),""))))) -> 
BI195: =IF(AND(BF195=0,BG195=0,BH195=0),"",IF(AND(#REF!>#REF!,#REF!>=#REF!),"N",IF(AND(#REF!>#REF!,#REF!<#REF!),"A",IF(AND(#REF!<=#REF!),"E",IF(AND(BF195=0,BG195=0,BH195=0),""))))) -> 
BI196: =IF(AND(BF196=0,BG196=0,BH196=0),"",IF(AND(#REF!>#REF!,#REF!>=#REF!),"N",IF(AND(#REF!>#REF!,#REF!<#REF!),"A",IF(AND(#REF!<=#REF!),"E",IF(AND(BF196=0,BG196=0,BH196=0),""))))) -> 
BI197: =IF(AND(BF197=0,BG197=0,BH197=0),"",IF(AND(#REF!>#REF!,#REF!>=#REF!),"N",IF(AND(#REF!>#REF!,#REF!<#REF!),"A",IF(AND(#REF!<=#REF!),"E",IF(AND(BF197=0,BG197=0,BH197=0),""))))) -> 
BI198: =IF(AND(BF198=0,BG198=0,BH198=0),"",IF(AND(#REF!>#REF!,#REF!>=#REF!),"N",IF(AND(#REF!>#REF!,#REF!<#REF!),"A",IF(AND(#REF!<=#REF!),"E",IF(AND(BF198=0,BG198=0,BH198=0),""))))) -> 
BI199: =IF(AND(BF199=0,BG199=0,BH199=0),"",IF(AND(#REF!>#REF!,#REF!>=#REF!),"N",IF(AND(#REF!>#REF!,#REF!<#REF!),"A",IF(AND(#REF!<=#REF!),"E",IF(AND(BF199=0,BG199=0,BH199=0),""))))) -> 
BI200: =IF(AND(BF200=0,BG200=0,BH200=0),"",IF(AND(#REF!>#REF!,#REF!>=#REF!),"N",IF(AND(#REF!>#REF!,#REF!<#REF!),"A",IF(AND(#REF!<=#REF!),"E",IF(AND(BF200=0,BG200=0,BH200=0),""))))) -> 
BI201: =IF(AND(BF201=0,BG201=0,BH201=0),"",IF(AND(#REF!>#REF!,#REF!>=#REF!),"N",IF(AND(#REF!>#REF!,#REF!<#REF!),"A",IF(AND(#REF!<=#REF!),"E",IF(AND(BF201=0,BG201=0,BH201=0),""))))) -> 
BI202: =IF(AND(BF202=0,BG202=0,BH202=0),"",IF(AND(#REF!>#REF!,#REF!>=#REF!),"N",IF(AND(#REF!>#REF!,#REF!<#REF!),"A",IF(AND(#REF!<=#REF!),"E",IF(AND(BF202=0,BG202=0,BH202=0),""))))) -> 
... 287 more rows
